{"text_format":"1","workbook":"xlsx","n_sheets":20,"sheets":["Intro","Setup","Players","Table","GroupFixtures","GroupMatrix","GroupTable","Matrix","Round1","Round2","Round3","Round4","Round5","Round6","Round7","Round8","Round9","NAF","Working","ChangeLog"],"not_rendered":{"charts":0,"images":0,"macros":1,"external_links":0,"defined_names":34,"comments":2,"pivot_tables":0},"unopened":[],"bounds":{"document_bytes":16777216,"sheet_cells":100000,"rows_first":2000,"rows_last":500,"rows_between":2000,"halvings":0,"cell_chars":16384,"cell_head_chars":4096},"cells_cut":0,"cells_raw":0,"read":"whole","date_system":"1900"}

{"sheet":"Intro","index":0,"n_rows":19,"n_cols":2,"rows_kept":19,"cut":false,"hidden":false,"merged":[]}
[]
[null,"Buttons for running a tournament:"]
[]
[]
[]
[]
[]
[]
[]
[]
[]
[]
[]
[]
[]
[]
[]
[]
[null,"Buttons for practising:"]

{"sheet":"Setup","index":1,"n_rows":24,"n_cols":11,"rows_kept":24,"cut":false,"hidden":false,"merged":[]}
["SCORING SETUP",null,null,"Group/Ind Swiss?","Group",null,"Individual Tie Breaks",null,null,"Group Tie Breaks"]
[null,null,null,null,null,null,"Player",null,null,"Group"]
["Points for…",null,null,"Name of First Bonus","Bonus1",null,"Points","Order",null,"Points","Order"]
["Win by at least 2 TD",1,null,"Name of Second Bonus","Bonus2",null,"TD For",null,null,"TD For"]
["Win by 1 TD",1,null,null,null,null,"TD Against",null,null,"TD Against"]
["Draw",0.5,null,null,null,null,"TD Net",2,null,"Net TDs",2]
["Lose by 1 TD",0,null,null,null,null,"Cas For",null,null,"Cas For"]
["Lose by at least 2 TD",0,null,null,null,null,"Cas Against",null,null,"Cas Against"]
[null,null,null,null,null,null,"Cas Net",3,null,"Net Cas",3]
["Bonus points for TD/Cas etc",null,null,"Test Individual Scoring System Here",null,null,{"$f":"Working!AG16","v":"Bonus1"},null,null,{"$f":"\"Group Total \"&Working!AG16","v":"Group Total Bonus1"}]
["Points per TD",0,null,"Your Score (required)",4,null,{"$f":"Working!AG17","v":"Bonus2"},null,null,{"$f":"\"Group Total \"&Working!AG17","v":"Group Total Bonus2"}]
["Max TD Bonus Pts",0,null,"Opponent Score (required)",3,null,"Wins",null,null,"Group Wins"]
["Points per Cas",0,null,"Your Cas (optional)",3,null,"Draws",null,null,"Groups Draws"]
["Max Cas Bonus Pts",0,null,{"$f":"\"Your \"&Working!AG16&\" (optional)\"","v":"Your Bonus1 (optional)"},1,null,"Losses",null,null,"Group Losses"]
[{"$f":"Working!AG16&\" Max Bonus Pts\"","v":"Bonus1 Max Bonus Pts"},0,null,{"$f":"\"Your \"&Working!AG17&\" (optional)\"","v":"Your Bonus2 (optional)"},2,null,"Opp Score",1,null,"Individual Wins"]
[{"$f":"Working!AG17&\" Max Bonus Pts\"","v":"Bonus2 Max Bonus Pts"},0,null,null,null,null,null,null,null,"Individual Draws"]
[null,null,null,"Your Points",{"$f":"fctScore(E11,E12,E13,E14,E15)","v":1},null,null,null,null,"Individual Losses"]
["Group Scoring Options",null,null,null,null,null,null,null,null,"Total Individual Points"]
["Points for a win",1,null,null,null,null,null,null,null,"Opponent Score",1]
["Points for a draw",0.5]
["Points for a loss",0]
["Points for a group win",1]
["Points for a group draw",0.5]
["Points for a group loss",0]

{"sheet":"Players","index":2,"n_rows":160,"n_cols":16,"rows_kept":160,"cut":false,"hidden":false,"merged":[]}
["Num","Display Name","NAF Name","NAF Number (Random)","Race","Group",null,null,null,null,null,null,"Groups",null,"Team Size",8]
[{"$f":"IF(C2=\"\",\"\",MAX(A$1:A1)+1)","v":1},"Driesfield ","Driesfield ",6183,"Slann","Belgium",null,null,null,null,null,null,"Belgium"]
[{"$f":"IF(C3=\"\",\"\",MAX(A$1:A2)+1)","v":2},"Malodoror ","Malodoror ",20793,"Chaos Pact","Belgium",null,null,null,null,null,null,"Denmark"]
[{"$f":"IF(C4=\"\",\"\",MAX(A$1:A3)+1)","v":3},"JJ ","JJ ",10488,"Underworld","Belgium",null,null,null,null,null,null,"England"]
[{"$f":"IF(C5=\"\",\"\",MAX(A$1:A4)+1)","v":4},"Araznaroth ","Araznaroth ",13199,"Goblins","Belgium",null,null,null,null,null,null,"Finland"]
[{"$f":"IF(C6=\"\",\"\",MAX(A$1:A5)+1)","v":5},"Woete ","Woete ",12500,"Chaos Dwarves","Belgium",null,null,null,null,null,null,"France"]
[{"$f":"IF(C7=\"\",\"\",MAX(A$1:A6)+1)","v":6},"gninocker ","gninocker ",17832,"Vampires","Belgium",null,null,null,null,null,null,"Germany"]
[{"$f":"IF(C8=\"\",\"\",MAX(A$1:A7)+1)","v":7},"Phoenix11 ","Phoenix11 ",8402,"Dark Elves","Belgium",null,null,null,null,null,null,"Hungary"]
[{"$f":"IF(C9=\"\",\"\",MAX(A$1:A8)+1)","v":8},"Dekra1979 ","Dekra1979 ",16259,"High Elves","Belgium",null,null,null,null,null,null,"Italy"]
[{"$f":"IF(C10=\"\",\"\",MAX(A$1:A9)+1)","v":9},"Tripleskull ","Tripleskull ",9524,"Chaos","Denmark",null,null,null,null,null,null,"Norway"]
[{"$f":"IF(C11=\"\",\"\",MAX(A$1:A10)+1)","v":10},"MissSweden ","MissSweden ",11498,"Chaos","Denmark",null,null,null,null,null,null,"Poland"]
[{"$f":"IF(C12=\"\",\"\",MAX(A$1:A11)+1)","v":11},"kfoged ","kfoged ",10691,"Slann","Denmark",null,null,null,null,null,null,"Scotland"]
[{"$f":"IF(C13=\"\",\"\",MAX(A$1:A12)+1)","v":12},"Tank ","Tank ",11501,"Necromantic","Denmark",null,null,null,null,null,null,"Spain"]
[{"$f":"IF(C14=\"\",\"\",MAX(A$1:A13)+1)","v":13},"Topper ","Topper ",6363,"Chaos","Denmark",null,null,null,null,null,null,"Sweden"]
[{"$f":"IF(C15=\"\",\"\",MAX(A$1:A14)+1)","v":14},"SpecialOne ","SpecialOne ",16742,"Lizardmen","Denmark",null,null,null,null,null,null,"Switzerland"]
[{"$f":"IF(C16=\"\",\"\",MAX(A$1:A15)+1)","v":15},"Jaqra ","Jaqra ",19750,"Skaven","Denmark",null,null,null,null,null,null,"Viking"]
[{"$f":"IF(C17=\"\",\"\",MAX(A$1:A16)+1)","v":16},"Niebling ","Niebling ",11499,"Amazons","Denmark",null,null,null,null,null,null,"Wales"]
[{"$f":"IF(C18=\"\",\"\",MAX(A$1:A17)+1)","v":17},"Lycos ","Lycos ",2870,"Ogres","England"]
[{"$f":"IF(C19=\"\",\"\",MAX(A$1:A18)+1)","v":18},"PurpleGoo ","PurpleGoo ",11777,"Amazons","England"]
[{"$f":"IF(C20=\"\",\"\",MAX(A$1:A19)+1)","v":19},"Geggster ","Geggster ",70,"Orc","England"]
[{"$f":"IF(C21=\"\",\"\",MAX(A$1:A20)+1)","v":20},"Podfrey ","Podfrey ",149,"Slann","England"]
[{"$f":"IF(C22=\"\",\"\",MAX(A$1:A21)+1)","v":21},"JimJimany ","JimJimany ",12403,"Goblins","England"]
[{"$f":"IF(C23=\"\",\"\",MAX(A$1:A22)+1)","v":22},"Joemanji ","Joemanji ",3312,"Chaos","England"]
[{"$f":"IF(C24=\"\",\"\",MAX(A$1:A23)+1)","v":23},"Mubo ","Mubo ",13409,"Amazons","England"]
[{"$f":"IF(C25=\"\",\"\",MAX(A$1:A24)+1)","v":24},"Wilzif ","Wilzif ",8901,"Underworld","England"]
[{"$f":"IF(B26=\"\",\"\",MAX(A$1:A25)+1)","v":25},"MacWitt ","MacWitt ",19932,"Elves","Finland"]
[{"$f":"IF(B27=\"\",\"\",MAX(A$1:A26)+1)","v":26},"Harza ","Harza ",20060,"Dwarves","Finland"]
[{"$f":"IF(B28=\"\",\"\",MAX(A$1:A27)+1)","v":27},"jopotzuki ","jopotzuki ",20783,"Nurgle's Rotters","Finland"]
[{"$f":"IF(B29=\"\",\"\",MAX(A$1:A28)+1)","v":28},"edheim ","edheim ",20760,"Chaos","Finland"]
[{"$f":"IF(B30=\"\",\"\",MAX(A$1:A29)+1)","v":29},"BeerBeer ","BeerBeer ",18245,"Necromantic","Finland"]
[{"$f":"IF(B31=\"\",\"\",MAX(A$1:A30)+1)","v":30},"J-Ho","J-Ho",19106,"Nurgle's Rotters","Finland"]
[{"$f":"IF(B32=\"\",\"\",MAX(A$1:A31)+1)","v":31},"ratogre ","ratogre ",22007,"Necromantic","Finland"]
[{"$f":"IF(B33=\"\",\"\",MAX(A$1:A32)+1)","v":32},"valkohukka ","valkohukka ",18772,"Slann","Finland"]
[{"$f":"IF(B34=\"\",\"\",MAX(A$1:A33)+1)","v":33},"BiBi ","BiBi ",11491,"Undead","France"]
[{"$f":"IF(B35=\"\",\"\",MAX(A$1:A34)+1)","v":34},"Bouzzy ","Bouzzy ",15733,"Chaos Pact","France"]
[{"$f":"IF(B36=\"\",\"\",MAX(A$1:A35)+1)","v":35},"BudWiser ","BudWiser ",12987,"Necromantic","France"]
[{"$f":"IF(B37=\"\",\"\",MAX(A$1:A36)+1)","v":36},"Gros Nain ","Gros Nain ",14524,"Norse","France"]
[{"$f":"IF(B38=\"\",\"\",MAX(A$1:A37)+1)","v":37},"Harti ","Harti ",13583,"Skaven","France"]
[{"$f":"IF(B39=\"\",\"\",MAX(A$1:A38)+1)","v":38},"Justicium ","Justicium ",12319,"Wood Elves","France"]
[{"$f":"IF(B40=\"\",\"\",MAX(A$1:A39)+1)","v":39},"Matt le fou ","Matt le fou ",13561,"Undead","France"]
[{"$f":"IF(B41=\"\",\"\",MAX(A$1:A40)+1)","v":40},"Simon_ACP ","Simon_ACP ",17603,"Humans","France"]
[{"$f":"IF(B42=\"\",\"\",MAX(A$1:A41)+1)","v":41},"Arioso ","Arioso ",18738,"Orc","Germany"]
[{"$f":"IF(B43=\"\",\"\",MAX(A$1:A42)+1)","v":42},"RoterSternHochdahl","RoterSternHochdahl",18704,"Chaos Dwarves","Germany"]
[{"$f":"IF(B44=\"\",\"\",MAX(A$1:A43)+1)","v":43},"Muadib ","Muadib ",2800,"Khemri","Germany"]
[{"$f":"IF(B45=\"\",\"\",MAX(A$1:A44)+1)","v":44},"Candlejack ","Candlejack ",5844,"Undead","Germany"]
[{"$f":"IF(B46=\"\",\"\",MAX(A$1:A45)+1)","v":45},"Gaunab ","Gaunab ",2150,"Orc","Germany"]
[{"$f":"IF(B47=\"\",\"\",MAX(A$1:A46)+1)","v":46},"Prince ","Prince ",341,"Lizardmen","Germany"]
[{"$f":"IF(B48=\"\",\"\",MAX(A$1:A47)+1)","v":47},"DocMaxx ","DocMaxx ",16347,"Chaos Pact","Germany"]
[{"$f":"IF(B49=\"\",\"\",MAX(A$1:A48)+1)","v":48},"Jonny_Kanone ","Jonny_Kanone ",9621,"Chaos Dwarves","Germany"]
[{"$f":"IF(B50=\"\",\"\",MAX(A$1:A49)+1)","v":49},"BlackOrc ","BlackOrc ",6233,"Chaos Pact","Hungary"]
[{"$f":"IF(B51=\"\",\"\",MAX(A$1:A50)+1)","v":50},"Itzla ","Itzla ",9758,"Chaos Dwarves","Hungary"]
[{"$f":"IF(B52=\"\",\"\",MAX(A$1:A51)+1)","v":51},"Wolio ","Wolio ",20061,"Dark Elves","Hungary"]
[{"$f":"IF(B53=\"\",\"\",MAX(A$1:A52)+1)","v":52},"noraal ","noraal ",21798,"Underworld","Hungary"]
[{"$f":"IF(B54=\"\",\"\",MAX(A$1:A53)+1)","v":53},"Favi ","Favi ",20062,"Skaven","Hungary"]
[{"$f":"IF(B55=\"\",\"\",MAX(A$1:A54)+1)","v":54},"cz ","cz ",21604,"Underworld","Hungary"]
[{"$f":"IF(B56=\"\",\"\",MAX(A$1:A55)+1)","v":55},"swifty ","swifty ",20309,"Khemri","Hungary"]
[{"$f":"IF(B57=\"\",\"\",MAX(A$1:A56)+1)","v":56},"Alex05 ","Alex05 ",22352,"Orc","Hungary"]
[{"$f":"IF(B58=\"\",\"\",MAX(A$1:A57)+1)","v":57},"Beppe ","Beppe ",3564,"Orc","Italy"]
[{"$f":"IF(B59=\"\",\"\",MAX(A$1:A58)+1)","v":58},"Dirold ","Dirold ",5900,"Amazons","Italy"]
[{"$f":"IF(B60=\"\",\"\",MAX(A$1:A59)+1)","v":59},"Farina ","Farina ",3533,"Chaos Dwarves","Italy"]
[{"$f":"IF(B61=\"\",\"\",MAX(A$1:A60)+1)","v":60},"Kaltenland ","Kaltenland ",11924,"Chaos Pact","Italy"]
[{"$f":"IF(B62=\"\",\"\",MAX(A$1:A61)+1)","v":61},"Liam ","Liam ",5906,"Wood Elves","Italy"]
[{"$f":"IF(B63=\"\",\"\",MAX(A$1:A62)+1)","v":62},"Matte8 ","Matte8 ",13785,"Khemri","Italy"]
[{"$f":"IF(B64=\"\",\"\",MAX(A$1:A63)+1)","v":63},"Spartako ","Spartako ",13417,"Skaven","Italy"]
[{"$f":"IF(B65=\"\",\"\",MAX(A$1:A64)+1)","v":64},"Verrinho ","Verrinho ",16930,"Nurgle's Rotters","Italy"]
[{"$f":"IF(B66=\"\",\"\",MAX(A$1:A65)+1)","v":65},"zulu ","zulu ",16829,"Goblins","Norway"]
[{"$f":"IF(B67=\"\",\"\",MAX(A$1:A66)+1)","v":66},"Endalos ","Endalos ",17242,"Wood Elves","Norway"]
[{"$f":"IF(B68=\"\",\"\",MAX(A$1:A67)+1)","v":67},"The_Ref ","The_Ref ",9441,"Amazons","Norway"]
[{"$f":"IF(B69=\"\",\"\",MAX(A$1:A68)+1)","v":68},"straume ","straume ",20685,"High Elves","Norway"]
[{"$f":"IF(B70=\"\",\"\",MAX(A$1:A69)+1)","v":69},"bothun ","bothun ",20953,"Wood Elves","Norway"]
[{"$f":"IF(B71=\"\",\"\",MAX(A$1:A70)+1)","v":70},"FrankPedersen ","FrankPedersen ",20899,"Chaos","Norway"]
[{"$f":"IF(B72=\"\",\"\",MAX(A$1:A71)+1)","v":71},"mynock ","mynock ",20775,"Goblins","Norway"]
[{"$f":"IF(B73=\"\",\"\",MAX(A$1:A72)+1)","v":72},"GreatWhiteHope ","GreatWhiteHope ",20881,"Lizardmen","Norway"]
[{"$f":"IF(B74=\"\",\"\",MAX(A$1:A73)+1)","v":73},"Mewash ","Mewash ",21627,"Vampires","Poland"]
[{"$f":"IF(B75=\"\",\"\",MAX(A$1:A74)+1)","v":74},"Reszka ","Reszka ",21573,"Dark Elves","Poland"]
[{"$f":"IF(B76=\"\",\"\",MAX(A$1:A75)+1)","v":75},"Leonek ","Leonek ",22375,"Vampires","Poland"]
[{"$f":"IF(B77=\"\",\"\",MAX(A$1:A76)+1)","v":76},"Domingo ","Domingo ",20280,"Ogres","Poland"]
[{"$f":"IF(B78=\"\",\"\",MAX(A$1:A77)+1)","v":77},"Slimaq ","Slimaq ",21957,"Dark Elves","Poland"]
[{"$f":"IF(B79=\"\",\"\",MAX(A$1:A78)+1)","v":78},"Warrior1980 ","Warrior1980 ",22376,"Norse","Poland"]
[{"$f":"IF(B80=\"\",\"\",MAX(A$1:A79)+1)","v":79},"Juniooor7 ","Juniooor7 ",22455,"Norse","Poland"]
[{"$f":"IF(B81=\"\",\"\",MAX(A$1:A80)+1)","v":80},"Shawass ","Shawass ",18416,"Chaos Pact","Poland"]
[{"$f":"IF(B82=\"\",\"\",MAX(A$1:A81)+1)","v":81},"DonShula ","DonShula ",14445,"Skaven","Scotland"]
[{"$f":"IF(B83=\"\",\"\",MAX(A$1:A82)+1)","v":82},"Garrick ","Garrick ",18506,"Chaos Dwarves","Scotland"]
[{"$f":"IF(B84=\"\",\"\",MAX(A$1:A83)+1)","v":83},"Purdindas ","Purdindas ",10831,"Undead","Scotland"]
[{"$f":"IF(B85=\"\",\"\",MAX(A$1:A84)+1)","v":84},"JamesEs ","JamesEs ",17875,"Vampires","Scotland"]
[{"$f":"IF(B86=\"\",\"\",MAX(A$1:A85)+1)","v":85},"sann0638 ","sann0638 ",8866,"Humans","Scotland"]
[{"$f":"IF(B87=\"\",\"\",MAX(A$1:A86)+1)","v":86},"Valen ","Valen ",1538,"Nurgle's Rotters","Scotland"]
[{"$f":"IF(B88=\"\",\"\",MAX(A$1:A87)+1)","v":87},"Loki ","Loki ",371,"Underworld","Scotland"]
[{"$f":"IF(B89=\"\",\"\",MAX(A$1:A88)+1)","v":88},"HumptyTrump ","HumptyTrump ",20360,"Skaven","Scotland"]
[{"$f":"IF(B90=\"\",\"\",MAX(A$1:A89)+1)","v":89},"Dark Duke ","Dark Duke ",2925,"Chaos Dwarves","Spain"]
[{"$f":"IF(B91=\"\",\"\",MAX(A$1:A90)+1)","v":90},"Obeliz ","Obeliz ",2519,"Chaos","Spain"]
[{"$f":"IF(B92=\"\",\"\",MAX(A$1:A91)+1)","v":91},"Joanet ","Joanet ",7690,"Khemri","Spain"]
[{"$f":"IF(B93=\"\",\"\",MAX(A$1:A92)+1)","v":92},"Duke_Luthor_Von_Hawkfire ","Duke_Luthor_Von_Hawkfire ",11793,"Vampires","Spain"]
[{"$f":"IF(B94=\"\",\"\",MAX(A$1:A93)+1)","v":93},"Barry ","Barry ",3290,"High Elves","Spain"]
[{"$f":"IF(B95=\"\",\"\",MAX(A$1:A94)+1)","v":94},"Idroj ","Idroj ",20930,"Dwarves","Spain"]
[{"$f":"IF(B96=\"\",\"\",MAX(A$1:A95)+1)","v":95},"Malasnoticias ","Malasnoticias ",17068,"Chaos Pact","Spain"]
[{"$f":"IF(B97=\"\",\"\",MAX(A$1:A96)+1)","v":96},"Tactel ","Tactel ",20218,"High Elves","Spain"]
[{"$f":"IF(B98=\"\",\"\",MAX(A$1:A97)+1)","v":97},"Melisqus ","Melisqus ",16238,"Orc","Sweden"]
[{"$f":"IF(B99=\"\",\"\",MAX(A$1:A98)+1)","v":98},"Inforthepain ","Inforthepain ",19483,"Wood Elves","Sweden"]
[{"$f":"IF(B100=\"\",\"\",MAX(A$1:A99)+1)","v":99},"Pidpad ","Pidpad ",20957,"High Elves","Sweden"]
[{"$f":"IF(B101=\"\",\"\",MAX(A$1:A100)+1)","v":100},"Skuld ","Skuld ",20481,"Dark Elves","Sweden"]
[{"$f":"IF(B102=\"\",\"\",MAX(A$1:A101)+1)","v":101},"JohnnyD ","JohnnyD ",18171,"Halflings","Sweden"]
[{"$f":"IF(B103=\"\",\"\",MAX(A$1:A102)+1)","v":102},"Skoberget ","Skoberget ",19448,"Slann","Sweden"]
[{"$f":"IF(B104=\"\",\"\",MAX(A$1:A103)+1)","v":103},"Dragons ","Dragons ",19003,"Orc","Sweden"]
[{"$f":"IF(B105=\"\",\"\",MAX(A$1:A104)+1)","v":104},"Pellevin ","Pellevin ",19271,"Elves","Sweden"]
[{"$f":"IF(B106=\"\",\"\",MAX(A$1:A105)+1)","v":105},"Strider84 ","Strider84 ",14113,"Goblins","Switzerland"]
[{"$f":"IF(B107=\"\",\"\",MAX(A$1:A106)+1)","v":106},"Jokaero ","Jokaero ",2785,"Vampires","Switzerland"]
[{"$f":"IF(B108=\"\",\"\",MAX(A$1:A107)+1)","v":107},"Phifoe ","Phifoe ",16959,"Goblins","Switzerland"]
[{"$f":"IF(B109=\"\",\"\",MAX(A$1:A108)+1)","v":108},"Goss ","Goss ",18266,"Humans","Switzerland"]
[{"$f":"IF(B110=\"\",\"\",MAX(A$1:A109)+1)","v":109},"Madmatt13 ","Madmatt13 ",19790,"Norse","Switzerland"]
[{"$f":"IF(B111=\"\",\"\",MAX(A$1:A110)+1)","v":110},"Elrik ","Elrik ",19344,"High Elves","Switzerland"]
[{"$f":"IF(B112=\"\",\"\",MAX(A$1:A111)+1)","v":111},"sigu70 ","sigu70 ",17003,"Wood Elves","Switzerland"]
[{"$f":"IF(B113=\"\",\"\",MAX(A$1:A112)+1)","v":112},"Macabeo ","Macabeo ",18608,"Chaos Pact","Switzerland"]
[{"$f":"IF(B114=\"\",\"\",MAX(A$1:A113)+1)","v":113},"Balder ","Balder ",17725,"Dark Elves","Viking"]
[{"$f":"IF(B115=\"\",\"\",MAX(A$1:A114)+1)","v":114},"Corwin ","Corwin ",17878,"Chaos Pact","Viking"]
[{"$f":"IF(B116=\"\",\"\",MAX(A$1:A115)+1)","v":115},"Faccko ","Faccko ",17893,"Dwarves","Viking"]
[{"$f":"IF(B117=\"\",\"\",MAX(A$1:A116)+1)","v":116},"Mufflo ","Mufflo ",15048,"Ogres","Viking"]
[{"$f":"IF(B118=\"\",\"\",MAX(A$1:A117)+1)","v":117},"brocCooli ","brocCooli ",12552,"Slann","Viking"]
[{"$f":"IF(B119=\"\",\"\",MAX(A$1:A118)+1)","v":118},"Duckwing ","Duckwing ",16278,"Vampires","Viking"]
[{"$f":"IF(B120=\"\",\"\",MAX(A$1:A119)+1)","v":119},"Bernuz ","Bernuz ",19542,"Lizardmen","Viking"]
[{"$f":"IF(B121=\"\",\"\",MAX(A$1:A120)+1)","v":120},"Purrelito ","Purrelito ",15323,"Skaven","Viking"]
[{"$f":"IF(B122=\"\",\"\",MAX(A$1:A121)+1)","v":121},"nonumber ","nonumber ",8923,"Skaven","Wales"]
[{"$f":"IF(B123=\"\",\"\",MAX(A$1:A122)+1)","v":122},"20Phoenix ","20Phoenix ",19395,"Chaos Dwarves","Wales"]
[{"$f":"IF(B124=\"\",\"\",MAX(A$1:A123)+1)","v":123},"SFisher91 ","SFisher91 ",16057,"Chaos Pact","Wales"]
[{"$f":"IF(B125=\"\",\"\",MAX(A$1:A124)+1)","v":124},"Dionysian ","Dionysian ",19480,"Dark Elves","Wales"]
[{"$f":"IF(B126=\"\",\"\",MAX(A$1:A125)+1)","v":125},"Northernknight ","Northernknight ",7569,"Chaos","Wales"]
[{"$f":"IF(B127=\"\",\"\",MAX(A$1:A126)+1)","v":126},"MadeofWelsh ","MadeofWelsh ",12184,"Lizardmen","Wales"]
[{"$f":"IF(B128=\"\",\"\",MAX(A$1:A127)+1)","v":127},"Ploppy_McPloppy ","Ploppy_McPloppy ",16417,"Slann","Wales"]
[{"$f":"IF(B129=\"\",\"\",MAX(A$1:A128)+1)","v":128},"andydavo ","andydavo ",19726,"Ogres","Wales"]
[{"$f":"IF(B130=\"\",\"\",MAX(A$1:A129)+1)","v":""}]
[{"$f":"IF(B131=\"\",\"\",MAX(A$1:A130)+1)","v":""}]
[{"$f":"IF(B132=\"\",\"\",MAX(A$1:A131)+1)","v":""}]
[{"$f":"IF(B133=\"\",\"\",MAX(A$1:A132)+1)","v":""}]
[{"$f":"IF(B134=\"\",\"\",MAX(A$1:A133)+1)","v":""}]
[{"$f":"IF(B135=\"\",\"\",MAX(A$1:A134)+1)","v":""}]
[{"$f":"IF(B136=\"\",\"\",MAX(A$1:A135)+1)","v":""}]
[{"$f":"IF(B137=\"\",\"\",MAX(A$1:A136)+1)","v":""}]
[{"$f":"IF(B138=\"\",\"\",MAX(A$1:A137)+1)","v":""}]
[{"$f":"IF(B139=\"\",\"\",MAX(A$1:A138)+1)","v":""}]
[{"$f":"IF(B140=\"\",\"\",MAX(A$1:A139)+1)","v":""}]
[{"$f":"IF(B141=\"\",\"\",MAX(A$1:A140)+1)","v":""}]
[{"$f":"IF(B142=\"\",\"\",MAX(A$1:A141)+1)","v":""}]
[{"$f":"IF(B143=\"\",\"\",MAX(A$1:A142)+1)","v":""}]
[{"$f":"IF(B144=\"\",\"\",MAX(A$1:A143)+1)","v":""}]
[{"$f":"IF(B145=\"\",\"\",MAX(A$1:A144)+1)","v":""}]
[{"$f":"IF(B146=\"\",\"\",MAX(A$1:A145)+1)","v":""}]
[{"$f":"IF(B147=\"\",\"\",MAX(A$1:A146)+1)","v":""}]
[{"$f":"IF(B148=\"\",\"\",MAX(A$1:A147)+1)","v":""}]
[{"$f":"IF(B149=\"\",\"\",MAX(A$1:A148)+1)","v":""}]
[{"$f":"IF(B150=\"\",\"\",MAX(A$1:A149)+1)","v":""}]
[{"$f":"IF(B151=\"\",\"\",MAX(A$1:A150)+1)","v":""}]
[{"$f":"IF(B152=\"\",\"\",MAX(A$1:A151)+1)","v":""}]
[{"$f":"IF(B153=\"\",\"\",MAX(A$1:A152)+1)","v":""}]
[{"$f":"IF(B154=\"\",\"\",MAX(A$1:A153)+1)","v":""}]
[{"$f":"IF(B155=\"\",\"\",MAX(A$1:A154)+1)","v":""}]
[{"$f":"IF(B156=\"\",\"\",MAX(A$1:A155)+1)","v":""}]
[{"$f":"IF(B157=\"\",\"\",MAX(A$1:A156)+1)","v":""}]
[{"$f":"IF(B158=\"\",\"\",MAX(A$1:A157)+1)","v":""}]
[{"$f":"IF(B159=\"\",\"\",MAX(A$1:A158)+1)","v":""}]
[{"$f":"IF(B160=\"\",\"\",MAX(A$1:A159)+1)","v":""}]

{"sheet":"Table","index":3,"n_rows":0,"n_cols":0,"rows_kept":0,"cut":false,"hidden":false,"merged":[]}

{"sheet":"GroupFixtures","index":4,"n_rows":0,"n_cols":0,"rows_kept":0,"cut":false,"hidden":false,"merged":[]}

{"sheet":"GroupMatrix","index":5,"n_rows":0,"n_cols":0,"rows_kept":0,"cut":false,"hidden":false,"merged":[]}

{"sheet":"GroupTable","index":6,"n_rows":0,"n_cols":0,"rows_kept":0,"cut":false,"hidden":false,"merged":[]}

{"sheet":"Matrix","index":7,"n_rows":129,"n_cols":129,"rows_kept":129,"cut":false,"hidden":false,"merged":[]}
[null,null,null,null,null,null,null,null,null,null,null,null,null,null,null,null,null,null,null,null,null,null,null,null,null,null,null,null,null,null,null,null,null,null,null,null,null,null,null,null,null,null,null,null,null,null,null,null,null,null,null,null,null,null,null,null,null,null,null,null,null,null,null,null,null,null,null,null,null,null,null,null,null,null,null,null,null,null,null,null,null,null,null,null,null,null,null,null,null,null,null,null,null,null,null,null,null,null,null,null,"Skuld ","JohnnyD ","Skoberget ","Dragons ","Pellevin ","Strider84 ","Jokaero ","Phifoe ","Goss ","Madmatt13 ","Elrik ","sigu70 ","Macabeo ","Balder ","Corwin ","Faccko ","Mufflo ","brocCooli ","Duckwing ","Bernuz ","Purrelito ","nonumber ","20Phoenix ","SFisher91 ","Dionysian ","Northernknight ","MadeofWelsh ","Ploppy_McPloppy ","andydavo "]
[null,null,null,null,null,null,null,null,null,null,null,null,null,null,null,null,null,null,null,null,null,null,null,null,null,null,null,null,null,null,null,null,null,null,null,null,null,null,null,null,null,null,null,null,null,null,null,null,null,null,null,null,null,null,null,null,null,null,null,null,null,null,null,null,null,null,null,null,null,null,null,null,null,null,null,null,null,null,null,null,null,null,null,null,null,null,null,null,null,null,null,null,null,null,null,null,null,null,null,null,"R1, 1 - 0","R5, 1 - 0","R1, 1 - 0","R3, 0 - 1",null,"R4, 1 - 0","R6, 1 - 0",null,"R1, 0.5 - 0.5","R4, 4 - 18","R2, 0 - 1",null,"R4, 1 - 0",null,"R5, 0 - 1",null,"R1, 1 - 0","R1, 1 - 0","R3, 0 - 1","R3, 1 - 0","R3, 23 - 5",null,"R3, 0 - 1",null,null,null,null,"R2, 0.5 - 0.5","R5, 1 - 0"]
[null,null,null,null,null,null,null,null,null,null,null,null,null,null,null,null,null,null,null,null,null,null,null,null,null,null,null,null,null,null,null,null,null,null,null,null,null,null,null,null,null,null,null,null,null,null,null,null,null,null,null,null,null,null,null,null,null,null,null,null,null,null,null,null,null,null,null,null,null,null,null,null,null,null,null,null,null,null,null,null,null,null,null,null,null,null,null,null,null,null,null,null,null,null,null,null,null,null,null,null,null,"R1, 0.5 - 0.5",null,"R4, 0.5 - 0.5","R5, 0.5 - 0.5","R2, 0 - 1","R1, 1 - 0",null,null,"R4, 0.5 - 0.5",null,"R3, 1 - 0",null,"R1, 0.5 - 0.5",null,"R3, 0.5 - 0.5",null,null,null,null,"R1, 1 - 0","R3, 0 - 1","R5, 1 - 0",null,null,"R4, 5 - 22","R6, 0 - 1"]
[null,null,null,null,null,null,null,null,null,null,null,null,null,null,null,null,null,null,null,null,null,null,null,null,null,null,null,null,null,null,null,null,null,null,null,null,null,null,null,null,null,null,null,null,null,null,null,null,null,null,null,null,null,null,null,null,null,null,null,null,null,null,null,null,null,null,null,null,null,null,null,null,null,null,null,null,null,null,null,null,null,null,null,null,null,null,null,null,null,null,null,null,null,null,null,null,null,null,null,null,"R1, 0.5 - 0.5","R4, 0.5 - 0.5","R1, 0 - 1","R1, 0.5 - 0.5",null,"R3, 0 - 1",null,"R4, 0 - 1","R4, 0 - 1","R5, 3 - 20","R4, 1 - 0",null,null,"R5, 0 - 1","R5, 0.5 - 0.5","R6, 1 - 0","R1, 1 - 0","R3, 1 - 0","R2, 0 - 1","R1, 0.5 - 0.5","R2, 0 - 1",null,null,"R2, 0 - 1","R2, 22 - 6","R5, 0.5 - 0.5","R3, 0 - 1","R4, 0 - 1"]
[null,null,null,null,null,null,null,null,null,null,null,null,null,null,null,null,null,null,null,null,null,null,null,null,null,null,null,null,null,null,null,null,null,null,null,null,null,null,null,null,null,null,null,null,null,null,null,null,null,null,null,null,null,null,null,null,null,null,null,null,null,null,null,null,null,null,null,null,null,null,null,null,null,null,null,null,null,null,null,null,null,null,null,null,null,null,null,null,null,null,null,null,null,null,null,null,null,null,null,null,"R4, 0 - 1","R5, 0.5 - 0.5","R1, 0 - 1","R1, 1 - 0","R1, 0.5 - 0.5","R4, 0.5 - 0.5","R4, 0.5 - 0.5","R3, 0.5 - 0.5",null,null,null,null,"R1, 0 - 1","R3, 0.5 - 0.5","R2, 0.5 - 0.5","R1, 1 - 0","R1, 1 - 0","R4, 0.5 - 0.5",null,"R2, 1 - 0","R1, 0.5 - 0.5","R3, 0.5 - 0.5",null,"R3, 21 - 4","R2, 0 - 1","R6, 0.5 - 0.5",null,"R3, 0.5 - 0.5","R6, 19 - 3"]
[null,null,null,null,null,null,null,null,null,null,null,null,null,null,null,null,null,null,null,null,null,null,null,null,null,null,null,null,null,null,null,null,null,null,null,null,null,null,null,null,null,null,null,null,null,null,null,null,null,null,null,null,null,null,null,null,null,null,null,null,null,null,null,null,null,null,null,null,null,null,null,null,null,null,null,null,null,null,null,null,null,null,null,null,null,null,null,null,null,null,null,null,null,null,null,null,null,null,null,null,null,null,"R5, 0 - 1","R2, 1 - 0","R1, 0.5 - 0.5","R2, 0.5 - 0.5",null,null,"R4, 1 - 0","R5, 1 - 0","R4, 0 - 1","R1, 0 - 1",null,"R3, 0.5 - 0.5","R1, 0 - 1","R1, 0.5 - 0.5",null,null,"R5, 0 - 1","R1, 0.5 - 0.5",null,null,null,"R3, 1 - 0",null,null,"R2, 1 - 0",null,"R2, 0 - 1"]
[null,null,null,null,null,null,null,null,null,null,null,null,null,null,null,null,null,null,null,null,null,null,null,null,null,null,null,null,null,null,null,null,null,null,null,null,null,null,null,null,null,null,null,null,null,null,null,null,null,null,null,null,null,null,null,null,null,null,null,null,null,null,null,null,null,null,null,null,null,null,null,null,null,null,null,null,null,null,null,null,null,null,null,null,null,null,null,null,null,null,null,null,null,null,null,null,null,null,null,null,"R5, 1 - 0","R1, 0 - 1","R5, 0.5 - 0.5",null,null,null,"R4, 0.5 - 0.5",null,"R4, 0.5 - 0.5",null,"R1, 0.5 - 0.5","R3, 1 - 0","R3, 1 - 0","R6, 0.5 - 0.5","R3, 0.5 - 0.5","R2, 1 - 0","R2, 1 - 0","R3, 0.5 - 0.5","R1, 1 - 0","R3, 1 - 0",null,"R5, 0.5 - 0.5",null,null,"R3, 1 - 0","R2, 1 - 0"]
[null,null,null,null,null,null,null,null,null,null,null,null,null,null,null,null,null,null,null,null,null,null,null,null,null,null,null,null,null,null,null,null,null,null,null,null,null,null,null,null,null,null,null,null,null,null,null,null,null,null,null,null,null,null,null,null,null,null,null,null,null,null,null,null,null,null,null,null,null,null,null,null,null,null,null,null,null,null,null,null,null,null,null,null,null,null,null,null,null,null,null,null,null,null,null,null,null,null,null,null,"R1, 1 - 0",null,"R4, 0 - 1","R1, 1 - 0",null,"R1, 1 - 0",null,"R4, 0.5 - 0.5",null,"R3, 0 - 1",null,"R4, 1 - 0",null,"R2, 1 - 0",null,"R1, 0 - 1","R5, 1 - 0","R1, 1 - 0","R2, 0 - 1",null,"R1, 0.5 - 0.5",null,null,null,null,"R3, 0.5 - 0.5","R5, 0.5 - 0.5",null,"R2, 0 - 1"]
[null,null,null,null,null,null,null,null,null,null,null,null,null,null,null,null,null,null,null,null,null,null,null,null,null,null,null,null,null,null,null,null,null,null,null,null,null,null,null,null,null,null,null,null,null,null,null,null,null,null,null,null,null,null,null,null,null,null,null,null,null,null,null,null,null,null,null,null,null,null,null,null,null,null,null,null,null,null,null,null,null,null,null,null,null,null,null,null,null,null,null,null,null,null,null,null,null,null,null,null,"R1, 0 - 1","R1, 1 - 0","R1, 0.5 - 0.5","R5, 0 - 1",null,null,"R3, 0 - 1","R3, 2 - 18",null,"R1, 1 - 0",null,"R4, 0 - 1","R4, 0 - 1","R1, 0 - 1","R1, 0 - 1",null,"R3, 0 - 1",null,"R3, 0.5 - 0.5",null,null,null,"R2, 1 - 0","R4, 19 - 4","R5, 0.5 - 0.5","R2, 0.5 - 0.5",null,null,"R3, 1 - 0"]
[null,null,null,null,null,null,null,null,null,null,null,null,null,null,null,null,null,null,null,null,null,null,null,null,null,null,null,null,null,null,null,null,null,null,null,null,null,null,null,null,null,null,null,null,null,null,null,null,null,null,null,null,null,null,null,null,null,null,null,null,null,null,null,null,null,null,null,null,null,null,null,null,null,null,null,null,null,null,null,null,null,null,null,null,null,null,null,null,null,null,null,null,null,null,null,null,null,null,null,null,"R4, 1 - 0",null,"R1, 0.5 - 0.5","R1, 0.5 - 0.5","R1, 1 - 0","R2, 1 - 0","R2, 0.5 - 0.5","R2, 1 - 0","R2, 1 - 0","R1, 0.5 - 0.5","R1, 0.5 - 0.5","R3, 1 - 0","R5, 0 - 1",null,"R1, 1 - 0","R2, 1 - 0","R6, 0.5 - 0.5",null,null,"R1, 0.5 - 0.5","R2, 0 - 1","R1, 0 - 1","R1, 0.5 - 0.5","R1, 0.5 - 0.5",null,"R3, 1 - 0",null,"R5, 0.5 - 0.5","R1, 1 - 0"]
[null,null,null,null,null,null,null,null,null,null,null,null,null,null,null,null,null,null,null,null,null,null,null,null,null,null,null,null,null,null,null,null,null,null,null,null,null,null,null,null,null,null,null,null,null,null,null,null,null,null,null,null,null,null,null,null,null,null,null,null,null,null,null,null,null,null,null,null,null,null,null,null,null,null,null,null,null,null,null,null,null,null,null,null,null,null,null,null,null,null,null,null,null,null,null,null,null,null,null,null,null,"R1, 1 - 0","R1, 1 - 0","R4, 1 - 0","R1, 0 - 1","R2, 1 - 0","R1, 0.5 - 0.5",null,"R1, 0 - 1","R3, 1 - 0",null,"R2, 0.5 - 0.5","R2, 0.5 - 0.5","R1, 0.5 - 0.5","R2, 1 - 0","R6, 1 - 0",null,"R1, 0.5 - 0.5",null,"R2, 1 - 0",null,null,"R1, 1 - 0","R5, 0 - 1",null,"R1, 0.5 - 0.5","R4, 1 - 0","R1, 0.5 - 0.5","R1, 0.5 - 0.5"]
[null,null,null,null,null,null,null,null,null,null,null,null,null,null,null,null,null,null,null,null,null,null,null,null,null,null,null,null,null,null,null,null,null,null,null,null,null,null,null,null,null,null,null,null,null,null,null,null,null,null,null,null,null,null,null,null,null,null,null,null,null,null,null,null,null,null,null,null,null,null,null,null,null,null,null,null,null,null,null,null,null,null,null,null,null,null,null,null,null,null,null,null,null,null,null,null,null,null,null,null,"R1, 1 - 0",null,null,"R1, 0.5 - 0.5","R3, 0 - 1","R3, 0 - 1",null,"R1, 1 - 0",null,"R2, 0.5 - 0.5","R2, 1 - 0","R1, 1 - 0",null,"R4, 20 - 3","R2, 1 - 0",null,"R2, 1 - 0",null,"R1, 0.5 - 0.5",null,null,"R1, 0.5 - 0.5",null,"R3, 1 - 0","R1, 1 - 0",null,"R1, 0 - 1"]
[null,null,null,null,null,null,null,null,null,null,null,null,null,null,null,null,null,null,null,null,null,null,null,null,null,null,null,null,null,null,null,null,null,null,null,null,null,null,null,null,null,null,null,null,null,null,null,null,null,null,null,null,null,null,null,null,null,null,null,null,null,null,null,null,null,null,null,null,null,null,null,null,null,null,null,null,null,null,null,null,null,null,null,null,null,null,null,null,null,null,null,null,null,null,null,null,null,null,null,null,"R4, 0.5 - 0.5",null,null,"R1, 0.5 - 0.5","R1, 0.5 - 0.5","R1, 0 - 1","R2, 0.5 - 0.5","R4, 0 - 1","R1, 0.5 - 0.5","R2, 0 - 1","R3, 0.5 - 0.5","R2, 0.5 - 0.5",null,"R2, 1 - 0",null,null,"R1, 1 - 0",null,null,"R4, 0 - 1","R2, 0 - 1","R3, 0.5 - 0.5",null,null,"R4, 0 - 1","R5, 0 - 1","R1, 1 - 0","R5, 0 - 1","R1, 1 - 0"]
[null,null,null,null,null,null,null,null,null,null,null,null,null,null,null,null,null,null,null,null,null,null,null,null,null,null,null,null,null,null,null,null,null,null,null,null,null,null,null,null,null,null,null,null,null,null,null,null,null,null,null,null,null,null,null,null,null,null,null,null,null,null,null,null,null,null,null,null,null,null,null,null,null,null,null,null,null,null,null,null,null,null,null,null,null,null,null,null,null,null,null,null,null,null,null,null,null,null,null,null,null,"R2, 0 - 1",null,"R1, 0.5 - 0.5","R4, 0 - 1",null,"R1, 0 - 1",null,"R2, 1 - 0",null,null,null,"R2, 1 - 0","R2, 6 - 22","R6, 0.5 - 0.5",null,null,"R2, 0.5 - 0.5","R1, 1 - 0","R2, 0 - 1","R1, 1 - 0","R5, 0.5 - 0.5",null,"R1, 0.5 - 0.5","R3, 1 - 0","R6, 20 - 3","R1, 0 - 1","R1, 0 - 1"]
[null,null,null,null,null,null,null,null,null,null,null,null,null,null,null,null,null,null,null,null,null,null,null,null,null,null,null,null,null,null,null,null,null,null,null,null,null,null,null,null,null,null,null,null,null,null,null,null,null,null,null,null,null,null,null,null,null,null,null,null,null,null,null,null,null,null,null,null,null,null,null,null,null,null,null,null,null,null,null,null,null,null,null,null,null,null,null,null,null,null,null,null,null,null,null,null,null,null,null,null,"R1, 0 - 1","R1, 0.5 - 0.5","R1, 1 - 0",null,null,"R2, 0 - 1","R2, 1 - 0",null,"R3, 1 - 0","R1, 0 - 1","R1, 0.5 - 0.5",null,"R2, 0 - 1","R1, 0.5 - 0.5",null,"R1, 1 - 0",null,"R2, 0.5 - 0.5","R2, 0 - 1","R6, 0 - 1",null,"R1, 0.5 - 0.5",null,"R5, 0.5 - 0.5",null,"R1, 0.5 - 0.5","R3, 1 - 0","R1, 0.5 - 0.5"]
[null,null,null,null,null,null,null,null,null,null,null,null,null,null,null,null,null,null,null,null,null,null,null,null,null,null,null,null,null,null,null,null,null,null,null,null,null,null,null,null,null,null,null,null,null,null,null,null,null,null,null,null,null,null,null,null,null,null,null,null,null,null,null,null,null,null,null,null,null,null,null,null,null,null,null,null,null,null,null,null,null,null,null,null,null,null,null,null,null,null,null,null,null,null,null,null,null,null,null,null,"R1, 0.5 - 0.5","R4, 0 - 1","R1, 0.5 - 0.5",null,"R2, 0 - 1","R1, 0 - 1","R2, 19 - 3","R2, 0 - 1","R2, 1 - 0","R2, 1 - 0","R2, 1 - 0","R1, 1 - 0","R3, 0 - 1",null,null,"R1, 0 - 1","R2, 0 - 1","R1, 1 - 0","R2, 1 - 0",null,null,"R1, 0.5 - 0.5","R1, 0.5 - 0.5","R1, 1 - 0","R1, 0.5 - 0.5",null,null,"R3, 0.5 - 0.5"]
[null,null,null,null,null,null,null,null,null,null,null,null,null,null,null,null,null,null,null,null,null,null,null,null,null,null,null,null,null,null,null,null,null,null,null,null,null,null,null,null,null,null,null,null,null,null,null,null,null,null,null,null,null,null,null,null,null,null,null,null,null,null,null,null,null,null,null,null,null,null,null,null,null,null,null,null,null,null,null,null,null,null,null,null,null,null,null,null,null,null,null,null,null,null,null,null,null,null,null,null,"R1, 1 - 0","R1, 0.5 - 0.5","R4, 0.5 - 0.5",null,"R1, 0 - 1","R3, 0.5 - 0.5",null,"R2, 0.5 - 0.5",null,null,null,null,"R1, 0 - 1","R2, 0.5 - 0.5","R1, 1 - 0","R2, 0.5 - 0.5",null,null,null,"R1, 0 - 1",null,null,"R1, 1 - 0",null,"R1, 1 - 0","R1, 1 - 0","R5, 0.5 - 0.5"]
[null,null,null,null,null,null,null,null,null,null,null,null,null,null,null,null,null,null,null,null,null,null,null,null,null,null,null,null,null,null,null,null,null,null,null,null,null,null,null,null,null,null,null,null,null,null,null,null,null,null,null,null,null,null,null,null,null,null,null,null,null,null,null,null,null,null,null,null,null,null,null,null,null,null,null,null,null,null,null,null,null,null,null,null,null,null,null,null,null,null,null,null,null,null,null,null,null,null,null,null,"R2, 0 - 1",null,"R1, 0.5 - 0.5","R1, 1 - 0","R2, 0.5 - 0.5","R3, 0 - 1","R4, 1 - 0","R6, 0.5 - 0.5","R1, 0 - 1","R4, 1 - 0",null,"R1, 1 - 0","R2, 0.5 - 0.5",null,null,"R1, 0 - 1","R1, 0 - 1","R3, 1 - 0","R1, 0.5 - 0.5",null,"R2, 0 - 1",null,null,null,"R1, 0 - 1",null,null,"R1, 0.5 - 0.5","R2, 12 - 10"]
[null,null,null,null,null,null,null,null,null,null,null,null,null,null,null,null,null,null,null,null,null,null,null,null,null,null,null,null,null,null,null,null,null,null,null,null,null,null,null,null,null,null,null,null,null,null,null,null,null,null,null,null,null,null,null,null,null,null,null,null,null,null,null,null,null,null,null,null,null,null,null,null,null,null,null,null,null,null,null,null,null,null,null,null,null,null,null,null,null,null,null,null,null,null,null,null,null,null,null,null,"R2, 0 - 1","R2, 1 - 0",null,null,"R3, 0.5 - 0.5",null,"R3, 0.5 - 0.5",null,"R5, 0 - 1","R4, 0.5 - 0.5","R2, 0 - 1",null,"R3, 1 - 0",null,"R4, 0 - 1",null,"R1, 1 - 0","R1, 0.5 - 0.5","R2, 0 - 1","R1, 1 - 0","R1, 0 - 1","R1, 0.5 - 0.5",null,"R1, 0 - 1","R5, 0 - 1","R1, 1 - 0"]
[null,null,null,null,null,null,null,null,null,null,null,null,null,null,null,null,null,null,null,null,null,null,null,null,null,null,null,null,null,null,null,null,null,null,null,null,null,null,null,null,null,null,null,null,null,null,null,null,null,null,null,null,null,null,null,null,null,null,null,null,null,null,null,null,null,null,null,null,null,null,null,null,null,null,null,null,null,null,null,null,null,null,null,null,null,null,null,null,null,null,null,null,null,null,null,null,null,null,null,null,"R2, 0.5 - 0.5","R3, 0.5 - 0.5",null,"R5, 1 - 0",null,null,null,"R2, 0.5 - 0.5","R1, 0 - 1","R2, 0 - 1","R4, 0.5 - 0.5","R5, 1 - 0","R3, 1 - 0","R3, 1 - 0","R1, 0.5 - 0.5","R2, 0.5 - 0.5","R4, 0.5 - 0.5","R1, 0.5 - 0.5",null,null,null,null,null,"R1, 0.5 - 0.5",null,"R1, 0 - 1","R2, 1 - 0","R3, 1 - 0"]
[null,null,null,null,null,null,null,null,null,null,null,null,null,null,null,null,null,null,null,null,null,null,null,null,null,null,null,null,null,null,null,null,null,null,null,null,null,null,null,null,null,null,null,null,null,null,null,null,null,null,null,null,null,null,null,null,null,null,null,null,null,null,null,null,null,null,null,null,null,null,null,null,null,null,null,null,null,null,null,null,null,null,null,null,null,null,null,null,null,null,null,null,null,null,null,null,null,null,null,null,"R5, 1 - 0","R1, 0 - 1","R3, 1 - 0","R2, 1 - 0","R4, 1 - 0",null,"R1, 0.5 - 0.5","R4, 0.5 - 0.5",null,"R5, 1 - 0","R3, 0.5 - 0.5","R2, 1 - 0","R1, 1 - 0",null,"R2, 1 - 0","R2, 0 - 1",null,"R1, 0.5 - 0.5","R1, 1 - 0","R1, 0.5 - 0.5",null,null,"R2, 0 - 1",null,"R6, 1 - 0","R1, 0.5 - 0.5","R1, 1 - 0",null,"R1, 0.5 - 0.5"]
[null,null,null,null,null,null,null,null,null,null,null,null,null,null,null,null,null,null,null,null,null,null,null,null,null,null,null,null,null,null,null,null,null,null,null,null,null,null,null,null,null,null,null,null,null,null,null,null,null,null,null,null,null,null,null,null,null,null,null,null,null,null,null,null,null,null,null,null,null,null,null,null,null,null,null,null,null,null,null,null,null,null,null,null,null,null,null,null,null,null,null,null,null,null,null,null,null,null,null,null,"R3, 22 - 4","R2, 1 - 0","R2, 0 - 1",null,"R1, 0.5 - 0.5","R2, 1 - 0","R1, 0 - 1",null,null,"R3, 0 - 1",null,"R1, 0 - 1","R6, 0.5 - 0.5","R1, 1 - 0","R1, 1 - 0","R5, 0.5 - 0.5","R3, 0.5 - 0.5",null,null,"R4, 1 - 0","R1, 0 - 1","R1, 0.5 - 0.5",null,null,"R1, 0 - 1",null,null,null,"R1, 1 - 0"]
[null,null,null,null,null,null,null,null,null,null,null,null,null,null,null,null,null,null,null,null,null,null,null,null,null,null,null,null,null,null,null,null,null,null,null,null,null,null,null,null,null,null,null,null,null,null,null,null,null,null,null,null,null,null,null,null,null,null,null,null,null,null,null,null,null,null,null,null,null,null,null,null,null,null,null,null,null,null,null,null,null,null,null,null,null,null,null,null,null,null,null,null,null,null,null,null,null,null,null,null,"R4, 1 - 0","R1, 0 - 1","R3, 0.5 - 0.5","R2, 1 - 0","R5, 0 - 1","R1, 0.5 - 0.5",null,"R5, 0 - 1","R2, 0 - 1","R6, 0 - 1",null,"R3, 0 - 1",null,"R1, 0.5 - 0.5","R1, 1 - 0",null,"R1, 0.5 - 0.5","R2, 0 - 1","R1, 0.5 - 0.5","R3, 1 - 0","R4, 0.5 - 0.5","R1, 1 - 0",null,null,"R5, 0.5 - 0.5","R2, 0.5 - 0.5",null,"R1, 1 - 0"]
[null,null,null,null,null,null,null,null,null,null,null,null,null,null,null,null,null,null,null,null,null,null,null,null,null,null,null,null,null,null,null,null,null,null,null,null,null,null,null,null,null,null,null,null,null,null,null,null,null,null,null,null,null,null,null,null,null,null,null,null,null,null,null,null,null,null,null,null,null,null,null,null,null,null,null,null,null,null,null,null,null,null,null,null,null,null,null,null,null,null,null,null,null,null,null,null,null,null,null,null,null,null,null,"R3, 0.5 - 0.5","R3, 0.5 - 0.5","R6, 1 - 0",null,"R2, 0 - 1","R3, 0 - 1",null,null,"R4, 0.5 - 0.5","R1, 1 - 0","R1, 0.5 - 0.5","R3, 1 - 0","R1, 0.5 - 0.5","R1, 1 - 0",null,"R1, 0.5 - 0.5","R2, 0 - 1",null,"R2, 0.5 - 0.5","R1, 0 - 1",null,"R2, 0 - 1",null,"R1, 1 - 0","R5, 0 - 1","R1, 0.5 - 0.5"]
[null,null,null,null,null,null,null,null,null,null,null,null,null,null,null,null,null,null,null,null,null,null,null,null,null,null,null,null,null,null,null,null,null,null,null,null,null,null,null,null,null,null,null,null,null,null,null,null,null,null,null,null,null,null,null,null,null,null,null,null,null,null,null,null,null,null,null,null,null,null,null,null,null,null,null,null,null,null,null,null,null,null,null,null,null,null,null,null,null,null,null,null,null,null,null,null,null,null,null,null,"R3, 0 - 1","R4, 0.5 - 0.5","R5, 0 - 1","R3, 0.5 - 0.5","R2, 0 - 1","R4, 0 - 1","R2, 0.5 - 0.5","R3, 0 - 1",null,null,"R5, 1 - 0","R4, 0 - 1",null,"R1, 1 - 0",null,"R3, 1 - 0","R2, 1 - 0","R2, 0 - 1",null,"R1, 0.5 - 0.5","R1, 0 - 1",null,"R1, 0.5 - 0.5","R1, 0 - 1",null,null,null,"R2, 0.5 - 0.5"]
[null,null,null,null,null,null,null,null,null,null,null,null,null,null,null,null,null,null,null,null,null,null,null,null,null,null,null,null,null,null,null,null,null,null,null,null,null,null,null,null,null,null,null,null,null,null,null,null,null,null,null,null,null,null,null,null,null,null,null,null,null,null,null,null,null,null,null,null,null,null,null,null,null,null,null,null,null,null,null,null,null,null,null,null,null,null,null,null,null,null,null,null,null,null,null,null,null,null,null,null,null,"R2, 0 - 1",null,null,null,null,"R3, 0 - 1","R1, 1 - 0","R2, 1 - 0",null,null,null,null,"R1, 1 - 0",null,"R5, 1 - 0","R3, 0.5 - 0.5",null,"R2, 1 - 0",null,"R3, 0 - 1","R2, 0 - 1",null,"R6, 0 - 1","R2, 0 - 1","R1, 1 - 0",null,"R3, 0.5 - 0.5","R2, 0.5 - 0.5"]
[null,null,null,null,null,null,null,null,null,null,null,null,null,null,null,null,null,null,null,null,null,null,null,null,null,null,null,null,null,null,null,null,null,null,null,null,null,null,null,null,null,null,null,null,null,null,null,null,null,null,null,null,null,null,null,null,null,null,null,null,null,null,null,null,null,null,null,null,null,null,null,null,null,null,null,null,null,null,null,null,null,null,null,null,null,null,null,null,null,null,null,null,null,null,null,null,null,null,null,null,"R4, 0.5 - 0.5",null,"R2, 1 - 0","R4, 1 - 0","R1, 0 - 1",null,"R1, 0.5 - 0.5","R5, 1 - 0",null,"R2, 1 - 0",null,"R2, 1 - 0","R3, 0.5 - 0.5","R1, 21 - 4","R3, 0.5 - 0.5",null,null,"R1, 1 - 0","R5, 0 - 1","R5, 1 - 0","R2, 0 - 1","R1, 0.5 - 0.5","R2, 0.5 - 0.5","R5, 23 - 7","R1, 0 - 1",null,null,"R6, 0.5 - 0.5","R2, 0.5 - 0.5"]
[null,null,null,null,null,null,null,null,null,null,null,null,null,null,null,null,null,null,null,null,null,null,null,null,null,null,null,null,null,null,null,null,null,null,null,null,null,null,null,null,null,null,null,null,null,null,null,null,null,null,null,null,null,null,null,null,null,null,null,null,null,null,null,null,null,null,null,null,null,null,null,null,null,null,null,null,null,null,null,null,null,null,null,null,null,null,null,null,null,null,null,null,null,null,null,null,null,null,null,null,null,null,null,"R1, 0 - 1","R2, 1 - 0","R2, 0 - 1","R3, 0 - 1",null,"R1, 0 - 1","R2, 0 - 1",null,null,"R1, 0 - 1","R5, 0 - 1",null,null,null,"R2, 1 - 0","R3, 0.5 - 0.5","R5, 0 - 1","R1, 0 - 1","R6, 0.5 - 0.5","R1, 0 - 1","R3, 0.5 - 0.5","R2, 0.5 - 0.5","R1, 0.5 - 0.5",null,null,"R2, 0 - 1"]
[null,null,null,null,null,null,null,null,null,null,null,null,null,null,null,null,null,null,null,null,null,null,null,null,null,null,null,null,null,null,null,null,null,null,null,null,null,null,null,null,null,null,null,null,null,null,null,null,null,null,null,null,null,null,null,null,null,null,null,null,null,null,null,null,null,null,null,null,null,null,null,null,null,null,null,null,null,null,null,null,null,null,null,null,null,null,null,null,null,null,null,null,null,null,null,null,null,null,null,null,null,null,null,"R2, 1 - 0",null,null,"R1, 1 - 0",null,"R3, 0.5 - 0.5",null,null,"R1, 0 - 1","R2, 0 - 1","R2, 0 - 1",null,null,null,"R3, 0 - 1","R5, 0 - 1","R1, 0.5 - 0.5",null,"R1, 0.5 - 0.5","R6, 0.5 - 0.5",null,"R3, 0.5 - 0.5",null,"R2, 0 - 1",null,"R1, 0 - 1"]
[null,null,null,null,null,null,null,null,null,null,null,null,null,null,null,null,null,null,null,null,null,null,null,null,null,null,null,null,null,null,null,null,null,null,null,null,null,null,null,null,null,null,null,null,null,null,null,null,null,null,null,null,null,null,null,null,null,null,null,null,null,null,null,null,null,null,null,null,null,null,null,null,null,null,null,null,null,null,null,null,null,null,null,null,null,null,null,null,null,null,null,null,null,null,null,null,null,null,null,null,"R2, 0 - 1",null,"R1, 0.5 - 0.5",null,"R4, 1 - 0","R3, 0.5 - 0.5","R2, 0 - 1","R2, 0.5 - 0.5","R1, 0.5 - 0.5","R1, 0.5 - 0.5","R3, 0.5 - 0.5","R2, 0.5 - 0.5",null,"R3, 1 - 0","R5, 0 - 1","R1, 0.5 - 0.5",null,null,null,"R2, 0 - 1","R5, 0.5 - 0.5","R3, 0.5 - 0.5","R1, 1 - 0","R2, 0.5 - 0.5","R1, 0.5 - 0.5","R6, 1 - 0",null,"R1, 1 - 0"]
[null,null,null,null,null,null,null,null,null,null,null,null,null,null,null,null,null,null,null,null,null,null,null,null,null,null,null,null,null,null,null,null,null,null,null,null,null,null,null,null,null,null,null,null,null,null,null,null,null,null,null,null,null,null,null,null,null,null,null,null,null,null,null,null,null,null,null,null,null,null,null,null,null,null,null,null,null,null,null,null,null,null,null,null,null,null,null,null,null,null,null,null,null,null,null,null,null,null,null,null,null,"R1, 1 - 0","R4, 0.5 - 0.5","R3, 1 - 20","R4, 0 - 1","R1, 1 - 0",null,"R2, 1 - 0",null,null,"R2, 0.5 - 0.5","R3, 1 - 0","R1, 0 - 1","R3, 1 - 0",null,"R3, 1 - 0","R2, 0.5 - 0.5","R5, 1 - 0","R1, 1 - 0","R1, 6 - 20","R4, 1 - 0","R4, 20 - 4","R2, 0.5 - 0.5","R1, 0 - 1","R6, 0.5 - 0.5","R2, 1 - 0","R2, 0.5 - 0.5","R2, 0.5 - 0.5","R3, 1 - 0"]
[null,null,null,null,null,null,null,null,null,null,null,null,null,null,null,null,null,null,null,null,null,null,null,null,null,null,null,null,null,null,null,null,null,null,null,null,null,null,null,null,null,null,null,null,null,null,null,null,null,null,null,null,null,null,null,null,null,null,null,null,null,null,null,null,null,null,null,null,null,null,null,null,null,null,null,null,null,null,null,null,null,null,null,null,null,null,null,null,null,null,null,null,null,null,null,null,null,null,null,null,"R4, 1 - 0",null,"R4, 0 - 1",null,"R2, 1 - 0",null,null,"R3, 1 - 0","R2, 3 - 18","R2, 1 - 0","R1, 1 - 0","R3, 0 - 1",null,null,"R2, 0.5 - 0.5",null,"R3, 0.5 - 0.5",null,null,null,"R3, 0 - 1","R2, 0 - 1",null,"R2, 0.5 - 0.5",null,null,"R1, 0 - 1","R2, 0.5 - 0.5","R6, 0 - 1"]
[null,null,null,null,null,null,null,null,null,null,null,null,null,null,null,null,null,null,null,null,null,null,null,null,null,null,null,null,null,null,null,null,null,null,null,null,null,null,null,null,null,null,null,null,null,null,null,null,null,null,null,null,null,null,null,null,null,null,null,null,null,null,null,null,null,null,null,null,null,null,null,null,null,null,null,null,null,null,null,null,null,null,null,null,null,null,null,null,null,null,null,null,null,null,null,null,null,null,null,null,null,"R4, 0 - 1","R2, 1 - 0",null,null,"R1, 0.5 - 0.5",null,"R2, 0.5 - 0.5","R5, 1 - 0","R3, 0.5 - 0.5","R1, 0.5 - 0.5","R6, 20 - 5",null,null,null,"R2, 0 - 1","R1, 0 - 1","R5, 0 - 1",null,"R3, 0 - 1",null,"R1, 0 - 1",null,null,"R2, 0.5 - 0.5","R2, 0 - 1","R6, 0.5 - 0.5","R6, 0.5 - 0.5","R1, 0.5 - 0.5"]
[null,null,null,null,null,null,null,null,null,null,null,null,null,null,null,null,null,null,null,null,null,null,null,null,null,null,null,null,null,null,null,null,null,null,null,null,null,null,null,null,null,null,null,null,null,null,null,null,null,null,null,null,null,null,null,null,null,null,null,null,null,null,null,null,null,null,null,null,null,null,null,null,null,null,null,null,null,null,null,null,null,null,null,null,null,null,null,null,null,null,null,null,null,null,null,null,null,null,null,null,null,"R1, 0 - 1",null,null,"R5, 0 - 1","R6, 1 - 0",null,"R1, 9 - 9","R5, 0 - 1","R2, 0.5 - 0.5","R1, 0.5 - 0.5",null,null,"R2, 0.5 - 0.5",null,null,"R4, 0 - 1","R4, 0.5 - 0.5",null,"R1, 1 - 0","R3, 1 - 0","R4, 0.5 - 0.5","R1, 0 - 1","R4, 0.5 - 0.5","R1, 1 - 0",null,null,"R5, 0.5 - 0.5","R3, 0.5 - 0.5"]
[null,null,null,null,null,null,null,null,null,null,null,null,null,null,null,null,null,null,null,null,null,null,null,null,null,null,null,null,null,null,null,null,null,null,null,null,null,null,null,null,null,null,null,null,null,null,null,null,null,null,null,null,null,null,null,null,null,null,null,null,null,null,null,null,null,null,null,null,null,null,null,null,null,null,null,null,null,null,null,null,null,null,null,null,null,null,null,null,null,null,null,null,null,null,null,null,null,null,null,null,null,"R5, 1 - 0","R4, 1 - 0",null,null,"R1, 1 - 0","R6, 0.5 - 0.5","R1, 0 - 1","R2, 1 - 0",null,null,null,"R1, 0.5 - 0.5","R5, 0 - 1","R3, 1 - 0",null,"R1, 0 - 1",null,"R4, 0.5 - 0.5","R2, 0.5 - 0.5","R4, 0.5 - 0.5","R1, 0 - 1","R4, 3 - 18","R1, 0 - 1","R6, 1 - 0",null,"R4, 0 - 1","R1, 1 - 0","R5, 0.5 - 0.5"]
[null,null,null,null,null,null,null,null,null,null,null,null,null,null,null,null,null,null,null,null,null,null,null,null,null,null,null,null,null,null,null,null,null,null,null,null,null,null,null,null,null,null,null,null,null,null,null,null,null,null,null,null,null,null,null,null,null,null,null,null,null,null,null,null,null,null,null,null,null,null,null,null,null,null,null,null,null,null,null,null,null,null,null,null,null,null,null,null,null,null,null,null,null,null,null,null,null,null,null,null,null,"R4, 1 - 0","R1, 0.5 - 0.5",null,null,"R1, 0 - 1","R1, 0.5 - 0.5","R6, 0.5 - 0.5",null,null,"R6, 0.5 - 0.5","R1, 1 - 0","R2, 0.5 - 0.5","R3, 0 - 1","R4, 0 - 1","R6, 0 - 1","R1, 0.5 - 0.5","R1, 1 - 0","R4, 0 - 1","R3, 0.5 - 0.5","R5, 0 - 1","R2, 9 - 11","R1, 0.5 - 0.5","R1, 0 - 1","R5, 0.5 - 0.5",null,"R6, 0.5 - 0.5","R4, 0 - 1"]
[null,null,null,null,null,null,null,null,null,null,null,null,null,null,null,null,null,null,null,null,null,null,null,null,null,null,null,null,null,null,null,null,null,null,null,null,null,null,null,null,null,null,null,null,null,null,null,null,null,null,null,null,null,null,null,null,null,null,null,null,null,null,null,null,null,null,null,null,null,null,null,null,null,null,null,null,null,null,null,null,null,null,null,null,null,null,null,null,null,null,null,null,null,null,null,null,null,null,null,null,"R1, 0 - 1",null,"R5, 0.5 - 0.5",null,"R6, 20 - 5","R1, 1 - 0","R2, 0 - 1",null,"R1, 23 - 3","R1, 1 - 0","R5, 0 - 1",null,"R1, 0.5 - 0.5","R1, 0 - 1","R2, 22 - 3","R1, 0 - 1","R4, 1 - 0","R3, 1 - 0","R5, 0 - 1","R4, 20 - 4","R2, 0.5 - 0.5","R1, 0 - 1","R1, 1 - 0",null,"R1, 1 - 0","R5, 0.5 - 0.5","R2, 19 - 5",null,"R1, 1 - 0"]
[null,null,null,null,null,null,null,null,null,null,null,null,null,null,null,null,null,null,null,null,null,null,null,null,null,null,null,null,null,null,null,null,null,null,null,null,null,null,null,null,null,null,null,null,null,null,null,null,null,null,null,null,null,null,null,null,null,null,null,null,null,null,null,null,null,null,null,null,null,null,null,null,null,null,null,null,null,null,null,null,null,null,null,null,null,null,null,null,null,null,null,null,null,null,null,null,null,null,null,null,null,null,null,"R5, 0 - 1","R1, 0 - 1","R5, 0 - 1",null,"R2, 0 - 1","R6, 0 - 1","R1, 1 - 0","R1, 0 - 1",null,null,"R1, 1 - 0","R2, 0 - 1","R3, 0.5 - 0.5",null,null,null,"R4, 0.5 - 0.5","R1, 0 - 1",null,"R4, 0 - 1","R5, 0.5 - 0.5","R2, 12 - 11","R3, 1 - 0","R1, 0.5 - 0.5","R1, 0 - 1"]
[null,null,null,null,null,null,null,null,null,null,null,null,null,null,null,null,null,null,null,null,null,null,null,null,null,null,null,null,null,null,null,null,null,null,null,null,null,null,null,null,null,null,null,null,null,null,null,null,null,null,null,null,null,null,null,null,null,null,null,null,null,null,null,null,null,null,null,null,null,null,null,null,null,null,null,null,null,null,null,null,null,null,null,null,null,null,null,null,null,null,null,null,null,null,null,null,null,null,null,null,null,null,"R5, 18 - 2","R1, 0.5 - 0.5",null,null,null,"R4, 19 - 2","R1, 0.5 - 0.5","R6, 0 - 1",null,"R2, 0.5 - 0.5",null,"R4, 1 - 0","R1, 1 - 0","R5, 0 - 1","R3, 0 - 1","R4, 1 - 0","R2, 1 - 0",null,null,"R5, 0 - 1","R2, 23 - 5","R1, 1 - 0",null,"R6, 1 - 0","R1, 0 - 1","R3, 1 - 0","R1, 0.5 - 0.5"]
[null,null,null,null,null,null,null,null,null,null,null,null,null,null,null,null,null,null,null,null,null,null,null,null,null,null,null,null,null,null,null,null,null,null,null,null,null,null,null,null,null,null,null,null,null,null,null,null,null,null,null,null,null,null,null,null,null,null,null,null,null,null,null,null,null,null,null,null,null,null,null,null,null,null,null,null,null,null,null,null,null,null,null,null,null,null,null,null,null,null,null,null,null,null,null,null,null,null,null,null,"R5, 0.5 - 0.5",null,null,null,null,"R2, 0.5 - 0.5","R5, 1 - 0","R1, 1 - 0",null,"R1, 9 - 10",null,"R4, 0 - 1","R6, 0.5 - 0.5",null,"R4, 0.5 - 0.5","R1, 0 - 1","R5, 0.5 - 0.5",null,null,"R3, 1 - 0",null,"R1, 1 - 0","R5, 1 - 0","R3, 0 - 1","R4, 0.5 - 0.5",null,"R1, 0 - 1","R1, 1 - 0"]
[null,null,null,null,null,null,null,null,null,null,null,null,null,null,null,null,null,null,null,null,null,null,null,null,null,null,null,null,null,null,null,null,null,null,null,null,null,null,null,null,null,null,null,null,null,null,null,null,null,null,null,null,null,null,null,null,null,null,null,null,null,null,null,null,null,null,null,null,null,null,null,null,null,null,null,null,null,null,null,null,null,null,null,null,null,null,null,null,null,null,null,null,null,null,null,null,null,null,null,null,null,"R1, 1 - 0","R4, 0 - 1",null,null,null,"R6, 0.5 - 0.5","R5, 1 - 0",null,null,"R2, 0 - 1","R1, 0 - 1","R1, 0 - 1",null,"R5, 1 - 0","R4, 0.5 - 0.5","R2, 0 - 1",null,"R1, 0.5 - 0.5","R4, 0.5 - 0.5",null,"R1, 0 - 1",null,"R3, 1 - 0","R1, 0 - 1","R1, 0 - 1","R5, 0.5 - 0.5",null,"R4, 0 - 1"]
[null,null,null,null,null,null,null,null,null,null,null,null,null,null,null,null,null,null,null,null,null,null,null,null,null,null,null,null,null,null,null,null,null,null,null,null,null,null,null,null,null,null,null,null,null,null,null,null,null,null,null,null,null,null,null,null,null,null,null,null,null,null,null,null,null,null,null,null,null,null,null,null,null,null,null,null,null,null,null,null,null,null,null,null,null,null,null,null,null,null,null,null,null,null,null,null,null,null,null,null,"R1, 0.5 - 0.5",null,null,"R6, 1 - 0",null,"R2, 20 - 3",null,null,null,"R1, 1 - 0","R1, 0 - 1","R1, 0 - 1","R1, 0.5 - 0.5","R5, 0 - 1",null,"R3, 0 - 1","R6, 0 - 1","R4, 0.5 - 0.5",null,null,null,"R2, 1 - 0",null,"R1, 1 - 0","R6, 0 - 1","R2, 0.5 - 0.5","R1, 0.5 - 0.5","R3, 1 - 0"]
[null,null,null,null,null,null,null,null,null,null,null,null,null,null,null,null,null,null,null,null,null,null,null,null,null,null,null,null,null,null,null,null,null,null,null,null,null,null,null,null,null,null,null,null,null,null,null,null,null,null,null,null,null,null,null,null,null,null,null,null,null,null,null,null,null,null,null,null,null,null,null,null,null,null,null,null,null,null,null,null,null,null,null,null,null,null,null,null,null,null,null,null,null,null,null,null,null,null,null,null,"R4, 0 - 1","R3, 0.5 - 0.5",null,"R5, 1 - 0","R1, 0 - 1","R1, 0.5 - 0.5","R1, 1 - 0","R1, 0 - 1",null,null,null,"R1, 0 - 1",null,"R3, 1 - 0",null,null,null,"R2, 0.5 - 0.5","R6, 0.5 - 0.5","R5, 0 - 1","R2, 0.5 - 0.5","R2, 1 - 0","R1, 1 - 0","R3, 1 - 0","R1, 0 - 1","R4, 1 - 0","R2, 1 - 0","R2, 0.5 - 0.5","R5, 0 - 1"]
[null,null,null,null,null,null,null,null,null,null,null,null,null,null,null,null,null,null,null,null,null,null,null,null,null,null,null,null,null,null,null,null,null,null,null,null,null,null,null,null,null,null,null,null,null,null,null,null,null,null,null,null,null,null,null,null,null,null,null,null,null,null,null,null,null,null,null,null,null,null,null,null,null,null,null,null,null,null,null,null,null,null,null,null,null,null,null,null,null,null,null,null,null,null,null,null,null,null,null,null,"R5, 1 - 0","R6, 0 - 1",null,"R6, 0.5 - 0.5","R4, 0 - 1",null,null,null,null,"R1, 0 - 1","R1, 0.5 - 0.5",null,"R1, 0.5 - 0.5","R6, 0 - 1",null,"R5, 1 - 0","R2, 1 - 0",null,null,"R3, 0 - 1","R2, 1 - 0",null,"R2, 1 - 0",null,"R4, 0 - 1","R3, 0.5 - 0.5","R1, 0.5 - 0.5","R6, 0.5 - 0.5","R2, 0 - 1"]
[null,null,null,null,null,null,null,null,null,null,null,null,null,null,null,null,null,null,null,null,null,null,null,null,null,null,null,null,null,null,null,null,null,null,null,null,null,null,null,null,null,null,null,null,null,null,null,null,null,null,null,null,null,null,null,null,null,null,null,null,null,null,null,null,null,null,null,null,null,null,null,null,null,null,null,null,null,null,null,null,null,null,null,null,null,null,null,null,null,null,null,null,null,null,null,null,null,null,null,null,null,null,"R4, 0.5 - 0.5",null,"R6, 0.5 - 0.5","R3, 0.5 - 0.5",null,"R1, 1 - 0","R1, 1 - 0",null,"R1, 1 - 0",null,null,"R6, 1 - 0","R3, 0 - 1","R4, 0.5 - 0.5","R3, 0 - 1","R5, 1 - 0","R2, 1 - 0",null,null,"R6, 1 - 0","R4, 1 - 0","R2, 1 - 0","R3, 0 - 1","R1, 0.5 - 0.5","R2, 1 - 0","R1, 1 - 0"]
[null,null,null,null,null,null,null,null,null,null,null,null,null,null,null,null,null,null,null,null,null,null,null,null,null,null,null,null,null,null,null,null,null,null,null,null,null,null,null,null,null,null,null,null,null,null,null,null,null,null,null,null,null,null,null,null,null,null,null,null,null,null,null,null,null,null,null,null,null,null,null,null,null,null,null,null,null,null,null,null,null,null,null,null,null,null,null,null,null,null,null,null,null,null,null,null,null,null,null,null,"R6, 0.5 - 0.5","R6, 0.5 - 0.5",null,"R4, 1 - 0","R2, 0.5 - 0.5","R1, 0 - 1","R1, 0 - 1",null,"R4, 0 - 1",null,null,null,"R1, 1 - 0",null,"R2, 1 - 0",null,null,null,"R3, 1 - 0","R3, 0.5 - 0.5","R6, 0.5 - 0.5","R1, 0 - 1",null,"R2, 1 - 0","R4, 0 - 1",null,"R4, 1 - 0","R2, 0 - 1"]
[null,null,null,null,null,null,null,null,null,null,null,null,null,null,null,null,null,null,null,null,null,null,null,null,null,null,null,null,null,null,null,null,null,null,null,null,null,null,null,null,null,null,null,null,null,null,null,null,null,null,null,null,null,null,null,null,null,null,null,null,null,null,null,null,null,null,null,null,null,null,null,null,null,null,null,null,null,null,null,null,null,null,null,null,null,null,null,null,null,null,null,null,null,null,null,null,null,null,null,null,"R6, 0.5 - 0.5",null,"R5, 0.5 - 0.5","R1, 0.5 - 0.5",null,null,null,null,"R1, 1 - 0","R1, 0 - 1","R2, 0.5 - 0.5","R1, 0 - 1",null,"R2, 0.5 - 0.5","R6, 0 - 1",null,null,"R3, 0.5 - 0.5",null,"R2, 1 - 0","R5, 0.5 - 0.5","R6, 0 - 1",null,"R2, 1 - 0","R2, 0 - 1",null,"R3, 0.5 - 0.5","R4, 1 - 0","R1, 1 - 0"]
[null,null,null,null,null,null,null,null,null,null,null,null,null,null,null,null,null,null,null,null,null,null,null,null,null,null,null,null,null,null,null,null,null,null,null,null,null,null,null,null,null,null,null,null,null,null,null,null,null,null,null,null,null,null,null,null,null,null,null,null,null,null,null,null,null,null,null,null,null,null,null,null,null,null,null,null,null,null,null,null,null,null,null,null,null,null,null,null,null,null,null,null,null,null,null,null,null,null,null,null,"R3, 0 - 1",null,null,null,null,"R1, 0.5 - 0.5","R1, 1 - 0",null,"R5, 1 - 0",null,"R2, 0 - 1",null,"R1, 0 - 1","R2, 1 - 0",null,null,"R5, 0.5 - 0.5","R6, 1 - 0","R4, 0 - 1","R2, 0 - 1","R3, 0.5 - 0.5",null,"R2, 0.5 - 0.5","R4, 0 - 1",null,null,null,null,"R2, 1 - 0"]
[null,null,null,null,null,null,null,null,null,null,null,null,null,null,null,null,null,null,null,null,null,null,null,null,null,null,null,null,null,null,null,null,null,null,null,null,null,null,null,null,null,null,null,null,null,null,null,null,null,null,null,null,null,null,null,null,null,null,null,null,null,null,null,null,null,null,null,null,null,null,null,null,null,null,null,null,null,null,null,null,null,null,null,null,null,null,null,null,null,null,null,null,null,null,null,null,null,null,null,null,null,"R4, 1 - 0","R6, 1 - 0",null,null,null,null,"R1, 1 - 0","R1, 1 - 0",null,"R1, 1 - 0","R1, 0.5 - 0.5",null,"R4, 0 - 1","R3, 0 - 1","R6, 0 - 1","R2, 0 - 1",null,"R3, 1 - 0",null,null,"R2, 0.5 - 0.5",null,"R2, 1 - 0","R1, 0 - 1","R2, 1 - 0","R6, 0 - 1","R4, 0 - 1","R4, 0.5 - 0.5"]
[null,null,null,null,null,null,null,null,null,null,null,null,null,null,null,null,null,null,null,null,null,null,null,null,null,null,null,null,null,null,null,null,null,null,null,null,null,null,null,null,null,null,null,null,null,null,null,null,null,null,null,null,null,null,null,null,null,null,null,null,null,null,null,null,null,null,null,null,null,null,null,null,null,null,null,null,null,null,null,null,null,null,null,null,null,null,null,null,null,null,null,null,null,null,null,null,null,null,null,null,null,null,"R3, 0 - 1","R2, 1 - 0","R3, 0.5 - 0.5","R1, 0 - 1","R2, 0.5 - 0.5","R3, 1 - 0",null,"R5, 0 - 1","R1, 0 - 1",null,"R1, 0.5 - 0.5","R6, 0.5 - 0.5","R1, 1 - 0",null,null,"R6, 10 - 11","R2, 1 - 0",null,null,"R1, 1 - 0",null,"R4, 1 - 0","R4, 0 - 1",null,null,"R1, 0 - 1","R3, 1 - 0"]
[null,null,null,null,null,null,null,null,null,null,null,null,null,null,null,null,null,null,null,null,null,null,null,null,null,null,null,null,null,null,null,null,null,null,null,null,null,null,null,null,null,null,null,null,null,null,null,null,null,null,null,null,null,null,null,null,null,null,null,null,null,null,null,null,null,null,null,null,null,null,null,null,null,null,null,null,null,null,null,null,null,null,null,null,null,null,null,null,null,null,null,null,null,null,null,null,null,null,null,null,null,"R1, 0 - 1","R1, 0.5 - 0.5",null,null,"R1, 1 - 0",null,null,"R1, 1 - 0",null,"R1, 0.5 - 0.5","R1, 0 - 1",null,"R2, 0.5 - 0.5",null,null,"R6, 0 - 1",null,"R6, 1 - 0",null,"R5, 2 - 20",null,"R4, 1 - 0",null,"R1, 1 - 0","R2, 0 - 1","R6, 1 - 0","R4, 1 - 0"]
[null,null,null,null,null,null,null,null,null,null,null,null,null,null,null,null,null,null,null,null,null,null,null,null,null,null,null,null,null,null,null,null,null,null,null,null,null,null,null,null,null,null,null,null,null,null,null,null,null,null,null,null,null,null,null,null,null,null,null,null,null,null,null,null,null,null,null,null,null,null,null,null,null,null,null,null,null,null,null,null,null,null,null,null,null,null,null,null,null,null,null,null,null,null,null,null,null,null,null,null,"R1, 0.5 - 0.5",null,"R2, 0 - 1",null,null,"R1, 0.5 - 0.5",null,"R1, 1 - 0","R1, 0.5 - 0.5","R1, 1 - 0",null,null,"R3, 0 - 1","R2, 22 - 3",null,"R1, 0 - 1","R6, 1 - 0",null,null,null,null,"R4, 0.5 - 0.5",null,"R6, 0.5 - 0.5","R4, 1 - 0",null,"R1, 0.5 - 0.5","R1, 1 - 0"]
[null,null,null,null,null,null,null,null,null,null,null,null,null,null,null,null,null,null,null,null,null,null,null,null,null,null,null,null,null,null,null,null,null,null,null,null,null,null,null,null,null,null,null,null,null,null,null,null,null,null,null,null,null,null,null,null,null,null,null,null,null,null,null,null,null,null,null,null,null,null,null,null,null,null,null,null,null,null,null,null,null,null,null,null,null,null,null,null,null,null,null,null,null,null,null,null,null,null,null,null,"R3, 1 - 0","R1, 1 - 0","R1, 1 - 0","R3, 0 - 1",null,null,"R1, 0.5 - 0.5","R5, 0.5 - 0.5",null,"R3, 0 - 1","R1, 0.5 - 0.5","R1, 1 - 0","R1, 1 - 0","R4, 0.5 - 0.5","R6, 0.5 - 0.5","R2, 0.5 - 0.5",null,"R2, 1 - 0","R1, 0.5 - 0.5",null,null,"R4, 0 - 1",null,null,"R6, 1 - 0","R1, 1 - 0","R4, 0.5 - 0.5","R2, 0.5 - 0.5","R6, 0.5 - 0.5"]
[null,null,null,null,null,null,null,null,null,null,null,null,null,null,null,null,null,null,null,null,null,null,null,null,null,null,null,null,null,null,null,null,null,null,null,null,null,null,null,null,null,null,null,null,null,null,null,null,null,null,null,null,null,null,null,null,null,null,null,null,null,null,null,null,null,null,null,null,null,null,null,null,null,null,null,null,null,null,null,null,null,null,null,null,null,null,null,null,null,null,null,null,null,null,null,null,null,null,null,null,"R3, 0.5 - 0.5","R2, 1 - 0",null,"R3, 0 - 1","R1, 0 - 1","R1, 1 - 0","R3, 0 - 1","R1, 0 - 1","R1, 1 - 0","R1, 1 - 0",null,"R5, 1 - 0",null,null,null,null,null,"R2, 0 - 1",null,"R6, 0.5 - 0.5","R1, 0.5 - 0.5","R4, 0.5 - 0.5","R4, 0 - 1",null,"R1, 1 - 0","R4, 0.5 - 0.5"]
[null,null,null,null,null,null,null,null,null,null,null,null,null,null,null,null,null,null,null,null,null,null,null,null,null,null,null,null,null,null,null,null,null,null,null,null,null,null,null,null,null,null,null,null,null,null,null,null,null,null,null,null,null,null,null,null,null,null,null,null,null,null,null,null,null,null,null,null,null,null,null,null,null,null,null,null,null,null,null,null,null,null,null,null,null,null,null,null,null,null,null,null,null,null,null,null,null,null,null,null,"R3, 3 - 20",null,"R1, 0.5 - 0.5","R1, 0.5 - 0.5","R1, 0 - 1",null,null,"R1, 1 - 0","R1, 0.5 - 0.5","R1, 1 - 0",null,"R3, 1 - 0","R5, 1 - 0",null,null,null,"R2, 0.5 - 0.5","R6, 0.5 - 0.5",null,"R2, 1 - 0",null,"R2, 0.5 - 0.5","R6, 0 - 1","R1, 1 - 0",null,"R3, 1 - 0","R4, 1 - 0","R4, 0 - 1","R1, 0 - 1"]
[null,null,null,null,null,null,null,null,null,null,null,null,null,null,null,null,null,null,null,null,null,null,null,null,null,null,null,null,null,null,null,null,null,null,null,null,null,null,null,null,null,null,null,null,null,null,null,null,null,null,null,null,null,null,null,null,null,null,null,null,null,null,null,null,null,null,null,null,null,null,null,null,null,null,null,null,null,null,null,null,null,null,null,null,null,null,null,null,null,null,null,null,null,null,null,null,null,null,null,null,"R1, 1 - 0","R3, 1 - 0","R3, 0 - 1","R1, 0.5 - 0.5",null,"R5, 0.5 - 0.5",null,null,"R3, 0.5 - 0.5","R1, 1 - 0","R1, 0.5 - 0.5","R1, 1 - 0","R1, 0 - 1",null,"R4, 0 - 1",null,null,"R1, 0 - 1",null,null,"R6, 0 - 1","R6, 1 - 0","R1, 1 - 0","R3, 1 - 0",null,"R4, 0 - 1","R1, 1 - 0","R6, 5 - 18","R2, 0.5 - 0.5"]
[null,null,null,null,null,null,null,null,null,null,null,null,null,null,null,null,null,null,null,null,null,null,null,null,null,null,null,null,null,null,null,null,null,null,null,null,null,null,null,null,null,null,null,null,null,null,null,null,null,null,null,null,null,null,null,null,null,null,null,null,null,null,null,null,null,null,null,null,null,null,null,null,null,null,null,null,null,null,null,null,null,null,null,null,null,null,null,null,null,null,null,null,null,null,null,null,null,null,null,null,null,null,null,"R3, 0.5 - 0.5","R3, 1 - 0","R3, 0.5 - 0.5","R1, 0.5 - 0.5",null,null,null,null,"R1, 1 - 0",null,null,"R2, 0.5 - 0.5","R6, 0 - 1","R1, 0 - 1",null,null,null,null,"R6, 0 - 1","R3, 1 - 0","R1, 1 - 0",null,"R1, 11 - 11",null,"R6, 0 - 1","R4, 0 - 1"]
[null,null,null,null,null,null,null,null,null,null,null,null,null,null,null,null,null,null,null,null,null,null,null,null,null,null,null,null,null,null,null,null,null,null,null,null,null,null,null,null,null,null,null,null,null,null,null,null,null,null,null,null,null,null,null,null,null,null,null,null,null,null,null,null,null,null,null,null,null,null,null,null,null,null,null,null,null,null,null,null,null,null,null,null,null,null,null,null,null,null,null,null,null,null,null,null,null,null,null,null,"R5, 0.5 - 0.5","R6, 1 - 0","R4, 0.5 - 0.5","R2, 0.5 - 0.5","R2, 0 - 1","R1, 0.5 - 0.5","R1, 0 - 1","R6, 0 - 1","R2, 1 - 0",null,null,"R2, 0 - 1",null,null,null,null,"R1, 0 - 1",null,"R3, 0 - 1",null,"R1, 0 - 1","R2, 1 - 0",null,null,"R2, 0 - 1","R3, 0.5 - 0.5",null,"R2, 0 - 1"]
[null,null,null,null,null,null,null,null,null,null,null,null,null,null,null,null,null,null,null,null,null,null,null,null,null,null,null,null,null,null,null,null,null,null,null,null,null,null,null,null,null,null,null,null,null,null,null,null,null,null,null,null,null,null,null,null,null,null,null,null,null,null,null,null,null,null,null,null,null,null,null,null,null,null,null,null,null,null,null,null,null,null,null,null,null,null,null,null,null,null,null,null,null,null,null,null,null,null,null,null,"R1, 0 - 1","R2, 0.5 - 0.5","R2, 0.5 - 0.5","R1, 0.5 - 0.5",null,"R2, 0.5 - 0.5","R5, 0.5 - 0.5","R2, 18 - 4","R1, 1 - 0","R5, 1 - 0","R4, 0.5 - 0.5",null,"R1, 0 - 1","R3, 0 - 1","R3, 0 - 1",null,null,null,null,"R1, 0.5 - 0.5","R3, 0 - 1","R3, 1 - 0","R2, 0 - 1","R5, 0 - 1","R1, 0.5 - 0.5",null,"R2, 1 - 0",null,"R2, 0.5 - 0.5"]
[null,null,null,null,null,null,null,null,null,null,null,null,null,null,null,null,null,null,null,null,null,null,null,null,null,null,null,null,null,null,null,null,null,null,null,null,null,null,null,null,null,null,null,null,null,null,null,null,null,null,null,null,null,null,null,null,null,null,null,null,null,null,null,null,null,null,null,null,null,null,null,null,null,null,null,null,null,null,null,null,null,null,null,null,null,null,null,null,null,null,null,null,null,null,null,null,null,null,null,null,null,"R2, 0 - 1",null,"R5, 0.5 - 0.5","R1, 0 - 1",null,"R2, 0 - 1","R1, 0.5 - 0.5","R2, 0.5 - 0.5","R2, 21 - 4","R1, 0.5 - 0.5",null,"R4, 1 - 0","R1, 0 - 1","R1, 1 - 0","R2, 1 - 0",null,null,"R3, 0.5 - 0.5","R3, 0.5 - 0.5",null,"R5, 0 - 1","R1, 0.5 - 0.5","R2, 1 - 0",null,"R2, 0.5 - 0.5","R3, 0.5 - 0.5",null,"R2, 0.5 - 0.5"]
[null,null,null,null,null,null,null,null,null,null,null,null,null,null,null,null,null,null,null,null,null,null,null,null,null,null,null,null,null,null,null,null,null,null,null,null,null,null,null,null,null,null,null,null,null,null,null,null,null,null,null,null,null,null,null,null,null,null,null,null,null,null,null,null,null,null,null,null,null,null,null,null,null,null,null,null,null,null,null,null,null,null,null,null,null,null,null,null,null,null,null,null,null,null,null,null,null,null,null,null,"R4, 1 - 0","R5, 0.5 - 0.5","R1, 1 - 0","R5, 0.5 - 0.5","R2, 0 - 1",null,null,"R2, 0 - 1",null,"R3, 0 - 1","R1, 1 - 0","R4, 0.5 - 0.5","R1, 1 - 0","R2, 0.5 - 0.5",null,"R3, 0 - 1",null,"R1, 0 - 1",null,"R3, 0 - 1","R1, 0.5 - 0.5","R5, 0.5 - 0.5","R2, 0 - 1","R3, 0 - 1","R2, 0.5 - 0.5",null,"R1, 1 - 0","R2, 0 - 1"]
[null,null,null,null,null,null,null,null,null,null,null,null,null,null,null,null,null,null,null,null,null,null,null,null,null,null,null,null,null,null,null,null,null,null,null,null,null,null,null,null,null,null,null,null,null,null,null,null,null,null,null,null,null,null,null,null,null,null,null,null,null,null,null,null,null,null,null,null,null,null,null,null,null,null,null,null,null,null,null,null,null,null,null,null,null,null,null,null,null,null,null,null,null,null,null,null,null,null,null,null,"R2, 1 - 0","R1, 1 - 0","R2, 0 - 1","R6, 0 - 1","R1, 1 - 0","R1, 0.5 - 0.5","R2, 0.5 - 0.5","R4, 0.5 - 0.5","R1, 1 - 0","R4, 1 - 0",null,null,"R5, 0.5 - 0.5","R3, 0 - 1","R3, 0 - 1","R1, 0.5 - 0.5","R3, 1 - 0","R2, 0.5 - 0.5","R1, 0.5 - 0.5",null,"R5, 0.5 - 0.5",null,null,null,"R2, 0.5 - 0.5","R2, 1 - 0","R2, 0 - 1","R1, 1 - 0","R3, 0 - 1"]
[null,null,null,null,null,null,null,null,null,null,null,null,null,null,null,null,null,null,null,null,null,null,null,null,null,null,null,null,null,null,null,null,null,null,null,null,null,null,null,null,null,null,null,null,null,null,null,null,null,null,null,null,null,null,null,null,null,null,null,null,null,null,null,null,null,null,null,null,null,null,null,null,null,null,null,null,null,null,null,null,null,null,null,null,null,null,null,null,null,null,null,null,null,null,null,null,null,null,null,null,"R5, 0 - 1","R1, 0.5 - 0.5","R2, 0.5 - 0.5","R2, 1 - 0","R5, 1 - 0","R5, 0 - 1",null,null,"R4, 0.5 - 0.5","R1, 0.5 - 0.5",null,"R1, 0.5 - 0.5","R4, 0 - 1",null,"R1, 0 - 1",null,"R1, 0.5 - 0.5","R3, 0 - 1","R2, 0 - 1",null,null,"R2, 0 - 1",null,null,"R2, 0 - 1",null,null,null,"R5, 1 - 0"]
[null,null,null,null,null,null,null,null,null,null,null,null,null,null,null,null,null,null,null,null,null,null,null,null,null,null,null,null,null,null,null,null,null,null,null,null,null,null,null,null,null,null,null,null,null,null,null,null,null,null,null,null,null,null,null,null,null,null,null,null,null,null,null,null,null,null,null,null,null,null,null,null,null,null,null,null,null,null,null,null,null,null,null,null,null,null,null,null,null,null,null,null,null,null,null,null,null,null,null,null,"R2, 0.5 - 0.5",null,"R1, 0 - 1",null,"R5, 0 - 1","R4, 1 - 0","R1, 1 - 0","R5, 0 - 1",null,"R2, 1 - 0","R4, 0 - 1","R1, 0.5 - 0.5","R4, 0 - 1","R1, 1 - 0","R3, 1 - 0","R3, 1 - 0","R2, 0 - 1","R1, 1 - 0",null,null,"R3, 0.5 - 0.5",null,"R3, 0.5 - 0.5","R2, 0 - 1",null,"R5, 1 - 0","R1, 0.5 - 0.5","R2, 0 - 1","R3, 0 - 1"]
[null,null,null,null,null,null,null,null,null,null,null,null,null,null,null,null,null,null,null,null,null,null,null,null,null,null,null,null,null,null,null,null,null,null,null,null,null,null,null,null,null,null,null,null,null,null,null,null,null,null,null,null,null,null,null,null,null,null,null,null,null,null,null,null,null,null,null,null,null,null,null,null,null,null,null,null,null,null,null,null,null,null,null,null,null,null,null,null,null,null,null,null,null,null,null,null,null,null,null,null,"R1, 0 - 1","R2, 0 - 1","R6, 1 - 0","R4, 0.5 - 0.5",null,null,"R4, 1 - 0","R1, 1 - 0",null,"R1, 0 - 1","R2, 1 - 0","R2, 4 - 21","R4, 0.5 - 0.5",null,"R2, 0.5 - 0.5","R1, 1 - 0",null,"R3, 0 - 1","R1, 0 - 1","R3, 0.5 - 0.5",null,null,"R2, 0 - 1",null,"R5, 0.5 - 0.5",null,"R2, 1 - 0","R3, 0.5 - 0.5","R2, 0.5 - 0.5"]
[null,null,null,null,null,null,null,null,null,null,null,null,null,null,null,null,null,null,null,null,null,null,null,null,null,null,null,null,null,null,null,null,null,null,null,null,null,null,null,null,null,null,null,null,null,null,null,null,null,null,null,null,null,null,null,null,null,null,null,null,null,null,null,null,null,null,null,null,null,null,null,null,null,null,null,null,null,null,null,null,null,null,null,null,null,null,null,null,null,null,null,null,null,null,null,null,null,null,null,null,"R1, 0 - 1","R1, 0 - 1",null,"R3, 0.5 - 0.5",null,null,"R1, 0.5 - 0.5","R2, 1 - 0","R4, 0 - 1",null,"R2, 0 - 1","R5, 0.5 - 0.5","R2, 1 - 0","R4, 0 - 1","R1, 6 - 22","R4, 0.5 - 0.5",null,"R2, 0.5 - 0.5","R5, 0.5 - 0.5","R4, 0.5 - 0.5","R4, 0.5 - 0.5","R1, 0 - 1","R5, 0 - 1","R3, 1 - 0","R1, 1 - 0","R6, 0 - 1","R5, 0.5 - 0.5","R3, 1 - 0","R2, 1 - 0"]
[null,null,null,null,null,null,null,null,null,null,null,null,null,null,null,null,null,null,null,null,null,null,null,null,null,null,null,null,null,null,null,null,null,null,null,null,null,null,null,null,null,null,null,null,null,null,null,null,null,null,null,null,null,null,null,null,null,null,null,null,null,null,null,null,null,null,null,null,null,null,null,null,null,null,null,null,null,null,null,null,null,null,null,null,null,null,null,null,null,null,null,null,null,null,null,null,null,null,null,null,null,null,"R6, 0.5 - 0.5",null,"R2, 0 - 1","R2, 1 - 0","R2, 1 - 0","R2, 0 - 1","R2, 0 - 1","R1, 0.5 - 0.5",null,null,"R5, 0 - 1","R5, 1 - 0","R4, 0 - 1","R2, 0.5 - 0.5","R4, 1 - 0","R5, 1 - 0",null,null,null,"R1, 0 - 1",null,null,null,"R3, 1 - 0","R3, 0 - 1","R1, 0.5 - 0.5","R5, 0.5 - 0.5"]
[null,null,null,null,null,null,null,null,null,null,null,null,null,null,null,null,null,null,null,null,null,null,null,null,null,null,null,null,null,null,null,null,null,null,null,null,null,null,null,null,null,null,null,null,null,null,null,null,null,null,null,null,null,null,null,null,null,null,null,null,null,null,null,null,null,null,null,null,null,null,null,null,null,null,null,null,null,null,null,null,null,null,null,null,null,null,null,null,null,null,null,null,null,null,null,null,null,null,null,null,"R6, 0.5 - 0.5",null,null,"R1, 1 - 0",null,"R2, 0.5 - 0.5","R2, 1 - 0","R1, 1 - 0","R2, 0 - 1",null,null,null,"R2, 0 - 1","R4, 0 - 1","R5, 0 - 1","R4, 0.5 - 0.5",null,"R5, 1 - 0","R4, 0.5 - 0.5","R4, 0.5 - 0.5","R5, 0.5 - 0.5",null,"R3, 1 - 0",null,"R1, 0 - 1","R3, 1 - 0","R3, 0 - 1","R5, 0 - 1"]
[null,null,null,null,null,null,null,null,null,null,null,null,null,null,null,null,null,null,null,null,null,null,null,null,null,null,null,null,null,null,null,null,null,null,null,null,null,null,null,null,null,null,null,null,null,null,null,null,null,null,null,null,null,null,null,null,null,null,null,null,null,null,null,null,null,null,null,null,null,null,null,null,null,null,null,null,null,null,null,null,null,null,null,null,null,null,null,null,null,null,null,null,null,null,null,null,null,null,null,null,"R2, 1 - 0","R1, 0.5 - 0.5",null,null,null,"R2, 0.5 - 0.5","R5, 0.5 - 0.5","R2, 4 - 21","R2, 1 - 0","R2, 1 - 0",null,"R1, 0.5 - 0.5","R4, 1 - 0","R4, 0.5 - 0.5","R5, 0 - 1",null,"R1, 9 - 10","R5, 1 - 0","R4, 0 - 1","R3, 0.5 - 0.5",null,null,"R1, 0.5 - 0.5","R1, 0.5 - 0.5","R3, 1 - 0","R3, 0 - 1","R5, 1 - 0"]
[null,null,null,null,null,null,null,null,null,null,null,null,null,null,null,null,null,null,null,null,null,null,null,null,null,null,null,null,null,null,null,null,null,null,null,null,null,null,null,null,null,null,null,null,null,null,null,null,null,null,null,null,null,null,null,null,null,null,null,null,null,null,null,null,null,null,null,null,null,null,null,null,null,null,null,null,null,null,null,null,null,null,null,null,null,null,null,null,null,null,null,null,null,null,null,null,null,null,null,null,null,"R3, 0 - 1","R2, 0 - 1","R2, 1 - 0","R1, 1 - 0","R1, 0.5 - 0.5",null,"R2, 0 - 1",null,"R2, 0.5 - 0.5","R2, 0.5 - 0.5","R2, 1 - 0",null,"R4, 1 - 0",null,"R5, 0 - 1",null,"R5, 23 - 4","R1, 5 - 23","R4, 1 - 0","R4, 1 - 0",null,null,"R3, 0 - 1","R3, 0.5 - 0.5","R3, 0 - 1","R2, 0 - 1","R3, 1 - 0","R1, 0 - 1"]
[null,null,null,null,null,null,null,null,null,null,null,null,null,null,null,null,null,null,null,null,null,null,null,null,null,null,null,null,null,null,null,null,null,null,null,null,null,null,null,null,null,null,null,null,null,null,null,null,null,null,null,null,null,null,null,null,null,null,null,null,null,null,null,null,null,null,null,null,null,null,null,null,null,null,null,null,null,null,null,null,null,null,null,null,null,null,null,null,null,null,null,null,null,null,null,null,null,null,null,null,"R1, 1 - 0","R2, 0.5 - 0.5",null,null,"R3, 0 - 1",null,"R2, 0 - 1",null,"R1, 0 - 1","R2, 0.5 - 0.5","R2, 0.5 - 0.5","R2, 0 - 1",null,null,null,"R5, 1 - 0","R4, 1 - 0","R4, 0 - 1","R5, 0 - 1","R4, 1 - 0",null,"R3, 1 - 0","R3, 0 - 1","R5, 1 - 0",null,null,"R1, 0.5 - 0.5",null,"R3, 0.5 - 0.5"]
[null,null,null,null,null,null,null,null,null,null,null,null,null,null,null,null,null,null,null,null,null,null,null,null,null,null,null,null,null,null,null,null,null,null,null,null,null,null,null,null,null,null,null,null,null,null,null,null,null,null,null,null,null,null,null,null,null,null,null,null,null,null,null,null,null,null,null,null,null,null,null,null,null,null,null,null,null,null,null,null,null,null,null,null,null,null,null,null,null,null,null,null,null,null,null,null,null,null,null,null,null,null,"R2, 0 - 1","R2, 1 - 0","R6, 0.5 - 0.5",null,"R5, 0 - 1","R2, 1 - 0","R5, 1 - 0","R2, 1 - 0","R1, 1 - 0","R2, 1 - 0",null,"R1, 9 - 9","R4, 0.5 - 0.5","R5, 0.5 - 0.5","R5, 1 - 0",null,null,"R6, 1 - 0","R4, 1 - 0","R5, 1 - 0",null,"R1, 1 - 0","R3, 0.5 - 0.5","R1, 0.5 - 0.5",null,"R5, 0 - 1","R3, 1 - 0"]
[null,null,null,null,null,null,null,null,null,null,null,null,null,null,null,null,null,null,null,null,null,null,null,null,null,null,null,null,null,null,null,null,null,null,null,null,null,null,null,null,null,null,null,null,null,null,null,null,null,null,null,null,null,null,null,null,null,null,null,null,null,null,null,null,null,null,null,null,null,null,null,null,null,null,null,null,null,null,null,null,null,null,null,null,null,null,null,null,null,null,null,null,null,null,null,null,null,null,null,null,null,"R6, 0.5 - 0.5","R3, 0 - 1","R1, 1 - 0",null,"R2, 1 - 0",null,null,"R2, 0 - 1","R4, 1 - 0","R2, 1 - 0",null,"R1, 1 - 0",null,null,"R4, 0 - 1","R5, 0 - 1",null,"R4, 0 - 1","R5, 1 - 0","R1, 9 - 11","R5, 0.5 - 0.5","R3, 0 - 1","R5, 1 - 0",null,"R1, 0 - 1",null,"R3, 0.5 - 0.5","R3, 1 - 0"]
[null,null,null,null,null,null,null,null,null,null,null,null,null,null,null,null,null,null,null,null,null,null,null,null,null,null,null,null,null,null,null,null,null,null,null,null,null,null,null,null,null,null,null,null,null,null,null,null,null,null,null,null,null,null,null,null,null,null,null,null,null,null,null,null,null,null,null,null,null,null,null,null,null,null,null,null,null,null,null,null,null,null,null,null,null,null,null,null,null,null,null,null,null,null,null,null,null,null,null,null,null,"R3, 0 - 1","R1, 0 - 1",null,"R5, 0 - 1","R1, 0.5 - 0.5","R3, 1 - 0",null,"R1, 1 - 0",null,"R2, 1 - 0","R4, 0.5 - 0.5",null,null,null,"R1, 0.5 - 0.5","R6, 1 - 0","R2, 0.5 - 0.5","R6, 0.5 - 0.5","R1, 0 - 1",null,null,"R5, 1 - 0",null,null,null,null,"R1, 0.5 - 0.5","R1, 20 - 5"]
[null,null,null,null,null,null,null,null,null,null,null,null,null,null,null,null,null,null,null,null,null,null,null,null,null,null,null,null,null,null,null,null,null,null,null,null,null,null,null,null,null,null,null,null,null,null,null,null,null,null,null,null,null,null,null,null,null,null,null,null,null,null,null,null,null,null,null,null,null,null,null,null,null,null,null,null,null,null,null,null,null,null,null,null,null,null,null,null,null,null,null,null,null,null,null,null,null,null,null,null,null,"R5, 0 - 1","R3, 0 - 1",null,"R6, 0 - 1","R5, 0 - 1",null,"R2, 0.5 - 0.5",null,null,"R1, 0.5 - 0.5",null,"R6, 1 - 0","R6, 0 - 1","R6, 1 - 0",null,"R1, 0 - 1",null,null,"R2, 0.5 - 0.5",null,null,null,"R5, 0.5 - 0.5","R1, 4 - 20","R1, 0.5 - 0.5",null,null,"R1, 1 - 0"]
[null,null,null,null,null,null,null,null,null,null,null,null,null,null,null,null,null,null,null,null,null,null,null,null,null,null,null,null,null,null,null,null,null,null,null,null,null,null,null,null,null,null,null,null,null,null,null,null,null,null,null,null,null,null,null,null,null,null,null,null,null,null,null,null,null,null,null,null,null,null,null,null,null,null,null,null,null,null,null,null,null,null,null,null,null,null,null,null,null,null,null,null,null,null,null,null,null,null,null,null,"R1, 1 - 0","R3, 20 - 6","R2, 0 - 1","R1, 0.5 - 0.5","R3, 0 - 1","R1, 0.5 - 0.5","R5, 0.5 - 0.5",null,null,"R1, 0 - 1","R6, 1 - 0","R2, 1 - 0",null,null,"R2, 1 - 0",null,null,"R6, 0 - 1",null,"R6, 0 - 1",null,null,null,null,"R1, 1 - 0","R5, 1 - 0","R1, 1 - 0",null,"R2, 0 - 1"]
[null,null,null,null,null,null,null,null,null,null,null,null,null,null,null,null,null,null,null,null,null,null,null,null,null,null,null,null,null,null,null,null,null,null,null,null,null,null,null,null,null,null,null,null,null,null,null,null,null,null,null,null,null,null,null,null,null,null,null,null,null,null,null,null,null,null,null,null,null,null,null,null,null,null,null,null,null,null,null,null,null,null,null,null,null,null,null,null,null,null,null,null,null,null,null,null,null,null,null,null,"R3, 1 - 0","R1, 0 - 1","R1, 0.5 - 0.5","R6, 1 - 0",null,"R4, 23 - 4","R2, 1 - 0","R1, 0.5 - 0.5",null,"R5, 1 - 0",null,"R1, 1 - 0",null,null,"R1, 1 - 0",null,"R2, 0 - 1",null,"R6, 0.5 - 0.5","R1, 1 - 0","R6, 0.5 - 0.5","R1, 1 - 0",null,"R1, 1 - 0","R5, 1 - 0",null,null,"R5, 0 - 1"]
[null,null,null,null,null,null,null,null,null,null,null,null,null,null,null,null,null,null,null,null,null,null,null,null,null,null,null,null,null,null,null,null,null,null,null,null,null,null,null,null,null,null,null,null,null,null,null,null,null,null,null,null,null,null,null,null,null,null,null,null,null,null,null,null,null,null,null,null,null,null,null,null,null,null,null,null,null,null,null,null,null,null,null,null,null,null,null,null,null,null,null,null,null,null,null,null,null,null,null,null,"R2, 1 - 0","R6, 1 - 0",null,"R5, 0.5 - 0.5","R1, 0.5 - 0.5","R6, 1 - 0","R1, 0 - 1",null,"R5, 1 - 0",null,"R4, 0 - 1",null,"R2, 0 - 1","R2, 1 - 0",null,"R6, 1 - 0",null,null,"R2, 0 - 1",null,"R1, 0 - 1",null,null,"R1, 1 - 0",null,null,"R1, 1 - 0","R5, 0.5 - 0.5"]
[null,null,null,null,null,null,null,null,null,null,null,null,null,null,null,null,null,null,null,null,null,null,null,null,null,null,null,null,null,null,null,null,null,null,null,null,null,null,null,null,null,null,null,null,null,null,null,null,null,null,null,null,null,null,null,null,null,null,null,null,null,null,null,null,null,null,null,null,null,null,null,null,null,null,null,null,null,null,null,null,null,null,null,null,null,null,null,null,null,null,null,null,null,null,null,null,null,null,null,null,"R6, 1 - 0",null,null,"R1, 1 - 0",null,null,"R4, 0 - 1","R1, 0 - 1","R2, 1 - 0",null,null,"R1, 1 - 0",null,null,"R6, 0 - 1","R2, 1 - 0",null,"R6, 1 - 0",null,null,null,null,"R4, 0 - 1",null,"R1, 0.5 - 0.5",null,"R1, 20 - 4","R6, 0.5 - 0.5","R1, 1 - 0"]
[null,null,null,null,null,null,null,null,null,null,null,null,null,null,null,null,null,null,null,null,null,null,null,null,null,null,null,null,null,null,null,null,null,null,null,null,null,null,null,null,null,null,null,null,null,null,null,null,null,null,null,null,null,null,null,null,null,null,null,null,null,null,null,null,null,null,null,null,null,null,null,null,null,null,null,null,null,null,null,null,null,null,null,null,null,null,null,null,null,null,null,null,null,null,null,null,null,null,null,null,"R5, 0.5 - 0.5","R1, 1 - 0","R3, 1 - 0",null,"R3, 0 - 1",null,null,null,"R2, 0 - 1","R1, 0 - 1",null,null,"R1, 0.5 - 0.5","R2, 1 - 0",null,"R6, 0 - 1","R6, 1 - 0",null,"R1, 0.5 - 0.5",null,"R2, 1 - 0","R1, 1 - 0","R1, 1 - 0","R1, 2 - 17",null,null,null,null,"R5, 0.5 - 0.5"]
[null,null,null,null,null,null,null,null,null,null,null,null,null,null,null,null,null,null,null,null,null,null,null,null,null,null,null,null,null,null,null,null,null,null,null,null,null,null,null,null,null,null,null,null,null,null,null,null,null,null,null,null,null,null,null,null,null,null,null,null,null,null,null,null,null,null,null,null,null,null,null,null,null,null,null,null,null,null,null,null,null,null,null,null,null,null,null,null,null,null,null,null,null,null,null,null,null,null,null,null,"R1, 1 - 0",null,"R5, 0.5 - 0.5","R2, 1 - 0","R1, 1 - 0","R2, 0.5 - 0.5","R6, 1 - 0",null,"R1, 0.5 - 0.5",null,null,"R5, 0.5 - 0.5","R1, 1 - 0","R1, 0.5 - 0.5",null,"R2, 6 - 19",null,null,null,"R6, 1 - 0","R2, 0 - 1","R5, 0 - 1","R1, 0.5 - 0.5",null,"R6, 0 - 1","R1, 1 - 0","R5, 1 - 0"]
[null,null,null,null,null,null,null,null,null,null,null,null,null,null,null,null,null,null,null,null,null,null,null,null,null,null,null,null,null,null,null,null,null,null,null,null,null,null,null,null,null,null,null,null,null,null,null,null,null,null,null,null,null,null,null,null,null,null,null,null,null,null,null,null,null,null,null,null,null,null,null,null,null,null,null,null,null,null,null,null,null,null,null,null,null,null,null,null,null,null,null,null,null,null,null,null,null,null,null,null,"R2, 20 - 8",null,"R1, 1 - 0",null,"R1, 0.5 - 0.5",null,"R3, 0 - 1","R3, 0.5 - 0.5","R1, 0.5 - 0.5",null,null,"R1, 1 - 0",null,"R1, 0 - 1","R6, 0 - 1","R2, 0 - 1",null,"R3, 0.5 - 0.5","R1, 1 - 0","R1, 1 - 0","R6, 1 - 0","R2, 0.5 - 0.5","R3, 1 - 0",null,null,"R2, 1 - 0","R2, 0.5 - 0.5","R6, 0 - 1"]
[null,null,null,null,null,null,null,null,null,null,null,null,null,null,null,null,null,null,null,null,null,null,null,null,null,null,null,null,null,null,null,null,null,null,null,null,null,null,null,null,null,null,null,null,null,null,null,null,null,null,null,null,null,null,null,null,null,null,null,null,null,null,null,null,null,null,null,null,null,null,null,null,null,null,null,null,null,null,null,null,null,null,null,null,null,null,null,null,null,null,null,null,null,null,null,null,null,null,null,null,"R6, 1 - 0","R1, 1 - 0",null,null,null,"R3, 0 - 1",null,"R1, 1 - 0","R4, 6 - 21","R3, 1 - 0",null,null,"R3, 1 - 0",null,"R1, 0.5 - 0.5","R6, 0 - 1",null,null,"R5, 0 - 1","R2, 0 - 1","R1, 0.5 - 0.5","R6, 0 - 1","R2, 0.5 - 0.5",null,"R2, 1 - 0","R2, 0.5 - 0.5","R2, 0.5 - 0.5",null,"R2, 0.5 - 0.5"]
[null,null,null,null,null,null,null,null,null,null,null,null,null,null,null,null,null,null,null,null,null,null,null,null,null,null,null,null,null,null,null,null,null,null,null,null,null,null,null,null,null,null,null,null,null,null,null,null,null,null,null,null,null,null,null,null,null,null,null,null,null,null,null,null,null,null,null,null,null,null,null,null,null,null,null,null,null,null,null,null,null,null,null,null,null,null,null,null,null,null,null,null,null,null,null,null,null,null,null,null,"R5, 0.5 - 0.5","R6, 1 - 0","R1, 0.5 - 0.5",null,"R1, 0.5 - 0.5",null,"R1, 1 - 0",null,null,null,"R1, 0.5 - 0.5","R3, 1 - 0","R3, 0 - 1",null,null,"R1, 0.5 - 0.5","R6, 0.5 - 0.5","R2, 0.5 - 0.5","R6, 0 - 1","R6, 0.5 - 0.5","R1, 1 - 0","R3, 0 - 1","R6, 1 - 0","R1, 1 - 0","R2, 1 - 0",null,null,null,"R2, 0.5 - 0.5"]
[null,null,null,null,null,null,null,null,null,null,null,null,null,null,null,null,null,null,null,null,null,null,null,null,null,null,null,null,null,null,null,null,null,null,null,null,null,null,null,null,null,null,null,null,null,null,null,null,null,null,null,null,null,null,null,null,null,null,null,null,null,null,null,null,null,null,null,null,null,null,null,null,null,null,null,null,null,null,null,null,null,null,null,null,null,null,null,null,null,null,null,null,null,null,null,null,null,null,null,null,"R2, 0 - 1","R5, 1 - 0",null,"R1, 0 - 1",null,null,"R3, 1 - 0","R3, 0.5 - 0.5",null,null,"R1, 0.5 - 0.5","R1, 1 - 0","R3, 0 - 1","R1, 1 - 0",null,null,"R3, 1 - 0","R1, 1 - 0","R2, 0.5 - 0.5",null,"R1, 0 - 1","R1, 0 - 1",null,"R2, 0.5 - 0.5","R3, 0 - 1",null,"R2, 0 - 1","R2, 0.5 - 0.5","R1, 0 - 1"]
[null,null,null,null,null,null,null,null,null,null,null,null,null,null,null,null,null,null,null,null,null,null,null,null,null,null,null,null,null,null,null,null,null,null,null,null,null,null,null,null,null,null,null,null,null,null,null,null,null,null,null,null,null,null,null,null,null,null,null,null,null,null,null,null,null,null,null,null,null,null,null,null,null,null,null,null,null,null,null,null,null,null,null,null,null,null,null,null,null,null,null,null,null,null,null,null,null,null,null,null,"R1, 0 - 1","R2, 9 - 8","R1, 10 - 10",null,"R6, 1 - 0","R3, 0.5 - 0.5","R1, 0.5 - 0.5",null,"R1, 1 - 0",null,null,"R4, 1 - 0",null,null,"R1, 1 - 0",null,"R2, 0 - 1","R1, 1 - 0","R6, 0 - 1","R1, 0.5 - 0.5","R2, 0.5 - 0.5","R2, 1 - 0","R2, 1 - 0","R3, 0 - 1","R2, 1 - 0","R2, 0 - 1",null,null,"R6, 1 - 0"]
[null,null,null,null,null,null,null,null,null,null,null,null,null,null,null,null,null,null,null,null,null,null,null,null,null,null,null,null,null,null,null,null,null,null,null,null,null,null,null,null,null,null,null,null,null,null,null,null,null,null,null,null,null,null,null,null,null,null,null,null,null,null,null,null,null,null,null,null,null,null,null,null,null,null,null,null,null,null,null,null,null,null,null,null,null,null,null,null,null,null,null,null,null,null,null,null,null,null,null,null,"R1, 1 - 0","R1, 0.5 - 0.5","R5, 0.5 - 0.5","R1, 4 - 18",null,"R3, 0 - 1","R4, 0 - 1",null,null,null,"R3, 1 - 0","R3, 0 - 1","R1, 0.5 - 0.5","R6, 0 - 1","R2, 0 - 1","R1, 0.5 - 0.5","R1, 0 - 1","R6, 0 - 1","R1, 1 - 0","R3, 1 - 0",null,null,"R2, 1 - 0",null,"R6, 1 - 0","R3, 1 - 0",null,"R2, 0 - 1","R2, 0.5 - 0.5"]
[null,null,null,null,null,null,null,null,null,null,null,null,null,null,null,null,null,null,null,null,null,null,null,null,null,null,null,null,null,null,null,null,null,null,null,null,null,null,null,null,null,null,null,null,null,null,null,null,null,null,null,null,null,null,null,null,null,null,null,null,null,null,null,null,null,null,null,null,null,null,null,null,null,null,null,null,null,null,null,null,null,null,null,null,null,null,null,null,null,null,null,null,null,null,null,null,null,null,null,null,null,"R1, 0.5 - 0.5","R1, 1 - 0","R1, 0 - 1","R1, 11 - 11",null,null,"R3, 1 - 0",null,"R1, 0.5 - 0.5","R3, 0 - 1",null,"R1, 0.5 - 0.5","R3, 1 - 0","R1, 1 - 0","R3, 0.5 - 0.5",null,"R1, 1 - 0","R1, 0 - 1",null,"R2, 0 - 1","R2, 1 - 0",null,"R2, 0 - 1","R2, 0 - 1","R2, 0.5 - 0.5","R6, 0.5 - 0.5","R2, 0.5 - 0.5","R3, 0 - 1"]
[null,null,null,null,null,null,null,null,null,null,null,null,null,null,null,null,null,null,null,null,null,null,null,null,null,null,null,null,null,null,null,null,null,null,null,null,null,null,null,null,null,null,null,null,null,null,null,null,null,null,null,null,null,null,null,null,null,null,null,null,null,null,null,null,null,null,null,null,null,null,null,null,null,null,null,null,null,null,null,null,null,null,null,null,null,null,null,null,null,null,null,null,null,null,null,null,null,null,null,null,null,null,null,"R1, 1 - 0","R2, 0 - 1","R1, 1 - 0","R3, 0 - 1","R1, 0 - 1","R3, 0 - 1",null,"R3, 1 - 0","R6, 1 - 0",null,"R1, 1 - 0",null,"R6, 0.5 - 0.5","R1, 0.5 - 0.5",null,"R3, 0.5 - 0.5","R1, 1 - 0",null,null,null,"R2, 1 - 0",null,"R2, 0 - 1","R2, 0.5 - 0.5","R3, 0.5 - 0.5","R2, 0.5 - 0.5"]
[null,null,null,null,null,null,null,null,null,null,null,null,null,null,null,null,null,null,null,null,null,null,null,null,null,null,null,null,null,null,null,null,null,null,null,null,null,null,null,null,null,null,null,null,null,null,null,null,null,null,null,null,null,null,null,null,null,null,null,null,null,null,null,null,null,null,null,null,null,null,null,null,null,null,null,null,null,null,null,null,null,null,null,null,null,null,null,null,null,null,null,null,null,null,null,null,null,null,null,null,"R3, 0 - 1","R3, 0 - 1","R3, 0 - 1","R2, 0.5 - 0.5","R1, 1 - 0",null,"R1, 0 - 1",null,null,"R5, 0.5 - 0.5","R4, 0.5 - 0.5",null,null,null,"R6, 1 - 0","R2, 0 - 1","R1, 0.5 - 0.5",null,"R1, 0 - 1","R4, 1 - 0",null,null,"R3, 12 - 15","R4, 1 - 0",null,"R1, 0 - 1","R1, 1 - 0",null,"R6, 0.5 - 0.5"]
[null,null,null,null,null,null,null,null,null,null,null,null,null,null,null,null,null,null,null,null,null,null,null,null,null,null,null,null,null,null,null,null,null,null,null,null,null,null,null,null,null,null,null,null,null,null,null,null,null,null,null,null,null,null,null,null,null,null,null,null,null,null,null,null,null,null,null,null,null,null,null,null,null,null,null,null,null,null,null,null,null,null,null,null,null,null,null,null,null,null,null,null,null,null,null,null,null,null,null,null,null,null,"R3, 0 - 1","R1, 0.5 - 0.5","R2, 1 - 0",null,"R4, 0 - 1","R1, 1 - 0",null,null,null,null,null,"R2, 1 - 0","R1, 0.5 - 0.5","R4, 1 - 0","R1, 0.5 - 0.5",null,null,null,"R1, 0 - 1","R1, 1 - 0","R6, 1 - 0",null,null,null,"R4, 0 - 1",null,"R3, 19 - 4"]
[null,null,null,null,null,null,null,null,null,null,null,null,null,null,null,null,null,null,null,null,null,null,null,null,null,null,null,null,null,null,null,null,null,null,null,null,null,null,null,null,null,null,null,null,null,null,null,null,null,null,null,null,null,null,null,null,null,null,null,null,null,null,null,null,null,null,null,null,null,null,null,null,null,null,null,null,null,null,null,null,null,null,null,null,null,null,null,null,null,null,null,null,null,null,null,null,null,null,null,null,null,"R2, 0 - 1","R2, 1 - 0","R2, 0 - 1",null,"R5, 0 - 1",null,null,null,"R6, 0.5 - 0.5",null,"R1, 0 - 1",null,"R1, 0 - 1","R4, 1 - 0","R1, 0.5 - 0.5",null,null,null,null,"R6, 0.5 - 0.5","R6, 0 - 1","R4, 0 - 1","R1, 1 - 0","R1, 0.5 - 0.5","R3, 22 - 2",null,null,"R6, 0.5 - 0.5"]
[null,null,null,null,null,null,null,null,null,null,null,null,null,null,null,null,null,null,null,null,null,null,null,null,null,null,null,null,null,null,null,null,null,null,null,null,null,null,null,null,null,null,null,null,null,null,null,null,null,null,null,null,null,null,null,null,null,null,null,null,null,null,null,null,null,null,null,null,null,null,null,null,null,null,null,null,null,null,null,null,null,null,null,null,null,null,null,null,null,null,null,null,null,null,null,null,null,null,null,null,"R1, 0.5 - 0.5","R2, 1 - 0","R2, 1 - 0","R2, 0.5 - 0.5",null,null,null,null,"R5, 0.5 - 0.5",null,"R1, 0.5 - 0.5",null,"R6, 0.5 - 0.5","R6, 0.5 - 0.5",null,null,"R2, 0.5 - 0.5","R1, 0 - 1","R1, 0 - 1",null,"R4, 1 - 0",null,"R5, 0 - 1","R4, 0.5 - 0.5","R1, 1 - 0","R4, 0 - 1","R1, 1 - 0"]
[null,null,null,null,null,null,null,null,null,null,null,null,null,null,null,null,null,null,null,null,null,null,null,null,null,null,null,null,null,null,null,null,null,null,null,null,null,null,null,null,null,null,null,null,null,null,null,null,null,null,null,null,null,null,null,null,null,null,null,null,null,null,null,null,null,null,null,null,null,null,null,null,null,null,null,null,null,null,null,null,null,null,null,null,null,null,null,null,null,null,null,null,null,null,null,null,null,null,null,null,"R2, 0.5 - 0.5","R1, 0.5 - 0.5",null,"R3, 0 - 1","R2, 0 - 1",null,null,"R3, 0 - 1",null,"R1, 1 - 0",null,null,"R5, 0 - 1",null,"R1, 1 - 0","R1, 1 - 0","R4, 0.5 - 0.5",null,null,null,"R2, 1 - 0","R4, 0.5 - 0.5","R1, 0 - 1","R6, 0.5 - 0.5",null,"R1, 1 - 0"]
[null,null,null,null,null,null,null,null,null,null,null,null,null,null,null,null,null,null,null,null,null,null,null,null,null,null,null,null,null,null,null,null,null,null,null,null,null,null,null,null,null,null,null,null,null,null,null,null,null,null,null,null,null,null,null,null,null,null,null,null,null,null,null,null,null,null,null,null,null,null,null,null,null,null,null,null,null,null,null,null,null,null,null,null,null,null,null,null,null,null,null,null,null,null,null,null,null,null,null,null,"R3, 1 - 0","R1, 1 - 0","R2, 0 - 1","R2, 0.5 - 0.5","R3, 0.5 - 0.5",null,"R5, 1 - 0",null,null,null,null,null,"R1, 0.5 - 0.5","R1, 1 - 0","R1, 0 - 1",null,null,"R4, 0 - 1",null,"R6, 1 - 0",null,null,null,"R1, 1 - 0",null,null,"R6, 1 - 0","R1, 0.5 - 0.5","R4, 1 - 0"]
[null,null,null,null,null,null,null,null,null,null,null,null,null,null,null,null,null,null,null,null,null,null,null,null,null,null,null,null,null,null,null,null,null,null,null,null,null,null,null,null,null,null,null,null,null,null,null,null,null,null,null,null,null,null,null,null,null,null,null,null,null,null,null,null,null,null,null,null,null,null,null,null,null,null,null,null,null,null,null,null,null,null,null,null,null,null,null,null,null,null,null,null,null,null,null,null,null,null,null,null,"R2, 0.5 - 0.5",null,"R3, 0.5 - 0.5","R3, 1 - 0","R6, 1 - 0","R5, 6 - 20",null,null,"R1, 0.5 - 0.5",null,"R5, 0.5 - 0.5",null,null,"R4, 1 - 0",null,null,"R5, 0 - 1","R6, 0.5 - 0.5","R2, 0 - 1","R1, 0.5 - 0.5","R1, 0.5 - 0.5",null,"R1, 0 - 1",null,"R4, 1 - 0",null,"R3, 19 - 5","R6, 0 - 1","R1, 1 - 0"]
[null,null,null,null,null,null,null,null,null,null,null,null,null,null,null,null,null,null,null,null,null,null,null,null,null,null,null,null,null,null,null,null,null,null,null,null,null,null,null,null,null,null,null,null,null,null,null,null,null,null,null,null,null,null,null,null,null,null,null,null,null,null,null,null,null,null,null,null,null,null,null,null,null,null,null,null,null,null,null,null,null,null,null,null,null,null,null,null,null,null,null,null,null,null,null,null,null,null,null,null,"R3, 1 - 0","R3, 0.5 - 0.5","R6, 1 - 0",null,null,"R1, 1 - 0",null,null,null,null,"R4, 0.5 - 0.5","R5, 0 - 1",null,null,null,null,null,"R1, 0 - 1","R4, 0.5 - 0.5","R2, 0 - 1","R1, 1 - 0",null,"R3, 11 - 12",null,"R3, 0 - 1","R6, 0 - 1",null,"R1, 0.5 - 0.5","R1, 1 - 0"]
[null,null,null,null,null,null,null,null,null,null,null,null,null,null,null,null,null,null,null,null,null,null,null,null,null,null,null,null,null,null,null,null,null,null,null,null,null,null,null,null,null,null,null,null,null,null,null,null,null,null,null,null,null,null,null,null,null,null,null,null,null,null,null,null,null,null,null,null,null,null,null,null,null,null,null,null,null,null,null,null,null,null,null,null,null,null,null,null,null,null,null,null,null,null,null,null,null,null,null,null,"R4, 20 - 6",null,null,null,null,"R2, 0 - 1",null,"R3, 0.5 - 0.5","R3, 0 - 1","R5, 0 - 1","R6, 0 - 1",null,"R1, 12 - 12","R1, 0.5 - 0.5","R3, 1 - 0","R1, 0.5 - 0.5",null,"R1, 0.5 - 0.5","R2, 0.5 - 0.5","R3, 0 - 1",null,null,"R1, 0.5 - 0.5",null,null,"R1, 0 - 1",null,null,"R2, 0 - 1"]
[null,null,null,null,null,null,null,null,null,null,null,null,null,null,null,null,null,null,null,null,null,null,null,null,null,null,null,null,null,null,null,null,null,null,null,null,null,null,null,null,null,null,null,null,null,null,null,null,null,null,null,null,null,null,null,null,null,null,null,null,null,null,null,null,null,null,null,null,null,null,null,null,null,null,null,null,null,null,null,null,null,null,null,null,null,null,null,null,null,null,null,null,null,null,null,null,null,null,null,null,null,null,null,null,null,null,"R5, 1 - 0","R3, 0.5 - 0.5","R5, 0 - 1","R6, 0.5 - 0.5",null,"R2, 1 - 0","R6, 0.5 - 0.5",null,"R1, 0 - 1",null,"R1, 1 - 0","R5, 0.5 - 0.5","R3, 0.5 - 0.5","R2, 1 - 0",null,null,null,null,null,null,"R2, 0 - 1","R2, 1 - 0","R1, 1 - 0"]
[null,null,null,null,null,null,null,null,null,null,null,null,null,null,null,null,null,null,null,null,null,null,null,null,null,null,null,null,null,null,null,null,null,null,null,null,null,null,null,null,null,null,null,null,null,null,null,null,null,null,null,null,null,null,null,null,null,null,null,null,null,null,null,null,null,null,null,null,null,null,null,null,null,null,null,null,null,null,null,null,null,null,null,null,null,null,null,null,null,null,null,null,null,null,null,null,null,null,null,null,null,null,null,null,null,"R5, 0 - 1",null,"R6, 0.5 - 0.5","R6, 0.5 - 0.5","R3, 1 - 0","R2, 0 - 1",null,null,null,"R1, 0.5 - 0.5","R5, 0 - 1","R2, 0.5 - 0.5",null,"R1, 0.5 - 0.5",null,"R3, 1 - 0","R2, 0.5 - 0.5",null,null,"R1, 0 - 1"]
[null,null,null,null,null,null,null,null,null,null,null,null,null,null,null,null,null,null,null,null,null,null,null,null,null,null,null,null,null,null,null,null,null,null,null,null,null,null,null,null,null,null,null,null,null,null,null,null,null,null,null,null,null,null,null,null,null,null,null,null,null,null,null,null,null,null,null,null,null,null,null,null,null,null,null,null,null,null,null,null,null,null,null,null,null,null,null,null,null,null,null,null,null,null,null,null,null,null,null,null,null,"R6, 1 - 0",null,null,null,"R5, 1 - 0","R2, 1 - 0",null,"R5, 2 - 18","R6, 1 - 0","R5, 0 - 1","R6, 0 - 1",null,null,"R2, 1 - 0","R1, 0 - 1","R3, 1 - 0","R1, 0.5 - 0.5",null,null,null,"R6, 0.5 - 0.5","R2, 0.5 - 0.5",null,null,"R1, 1 - 0",null,"R2, 1 - 0"]
[null,null,null,null,null,null,null,null,null,null,null,null,null,null,null,null,null,null,null,null,null,null,null,null,null,null,null,null,null,null,null,null,null,null,null,null,null,null,null,null,null,null,null,null,null,null,null,null,null,null,null,null,null,null,null,null,null,null,null,null,null,null,null,null,null,null,null,null,null,null,null,null,null,null,null,null,null,null,null,null,null,null,null,null,null,null,null,null,null,null,null,null,null,null,null,null,null,null,null,null,"R6, 0 - 1",null,null,null,null,"R6, 0 - 1","R6, 1 - 0","R6, 1 - 0","R2, 1 - 0",null,null,"R3, 0 - 1","R5, 0.5 - 0.5","R1, 0 - 1","R6, 20 - 3",null,null,"R3, 0.5 - 0.5",null,null,"R5, 0 - 1",null,"R1, 1 - 0",null,null,"R2, 1 - 0","R1, 1 - 0"]
[null,null,null,null,null,null,null,null,null,null,null,null,null,null,null,null,null,null,null,null,null,null,null,null,null,null,null,null,null,null,null,null,null,null,null,null,null,null,null,null,null,null,null,null,null,null,null,null,null,null,null,null,null,null,null,null,null,null,null,null,null,null,null,null,null,null,null,null,null,null,null,null,null,null,null,null,null,null,null,null,null,null,null,null,null,null,null,null,null,null,null,null,null,null,null,null,null,null,null,null,null,null,null,null,null,"R3, 0.5 - 0.5","R5, 0.5 - 0.5","R2, 0.5 - 0.5","R6, 0.5 - 0.5","R1, 19 - 5",null,null,null,null,"R3, 0 - 1",null,"R1, 1 - 0",null,"R5, 0 - 1",null,"R1, 0.5 - 0.5","R1, 0 - 1",null,"R2, 0 - 1",null,null,null,null,"R1, 0 - 1"]
[null,null,null,null,null,null,null,null,null,null,null,null,null,null,null,null,null,null,null,null,null,null,null,null,null,null,null,null,null,null,null,null,null,null,null,null,null,null,null,null,null,null,null,null,null,null,null,null,null,null,null,null,null,null,null,null,null,null,null,null,null,null,null,null,null,null,null,null,null,null,null,null,null,null,null,null,null,null,null,null,null,null,null,null,null,null,null,null,null,null,null,null,null,null,null,null,null,null,null,null,null,null,null,null,null,"R6, 0 - 1","R6, 1 - 0","R5, 0.5 - 0.5",null,null,"R1, 11 - 12",null,"R2, 0 - 1","R3, 1 - 0",null,null,"R6, 1 - 0","R2, 0.5 - 0.5","R1, 0.5 - 0.5","R1, 0 - 1","R1, 0.5 - 0.5",null,"R2, 1 - 0","R1, 0 - 1",null,"R4, 0 - 1",null,"R1, 0.5 - 0.5"]
[null,null,null,null,null,null,null,null,null,null,null,null,null,null,null,null,null,null,null,null,null,null,null,null,null,null,null,null,null,null,null,null,null,null,null,null,null,null,null,null,null,null,null,null,null,null,null,null,null,null,null,null,null,null,null,null,null,null,null,null,null,null,null,null,null,null,null,null,null,null,null,null,null,null,null,null,null,null,null,null,null,null,null,null,null,null,null,null,null,null,null,null,null,null,null,null,null,null,null,null,null,null,null,null,null,"R5, 0 - 1",null,null,"R2, 0 - 1","R2, 1 - 0","R6, 1 - 0","R5, 1 - 0","R6, 0.5 - 0.5","R5, 0.5 - 0.5","R3, 10 - 10","R3, 0.5 - 0.5","R1, 0.5 - 0.5",null,null,"R1, 0.5 - 0.5","R2, 13 - 15","R4, 1 - 0",null,"R1, 0.5 - 0.5","R2, 1 - 0"]
[null,null,null,null,null,null,null,null,null,null,null,null,null,null,null,null,null,null,null,null,null,null,null,null,null,null,null,null,null,null,null,null,null,null,null,null,null,null,null,null,null,null,null,null,null,null,null,null,null,null,null,null,null,null,null,null,null,null,null,null,null,null,null,null,null,null,null,null,null,null,null,null,null,null,null,null,null,null,null,null,null,null,null,null,null,null,null,null,null,null,null,null,null,null,null,null,null,null,null,null,"R5, 0 - 1","R6, 1 - 0","R3, 0.5 - 0.5","R6, 1 - 0","R5, 1 - 0",null,null,null,null,null,null,null,null,"R6, 1 - 0","R6, 0 - 1","R5, 1 - 0","R2, 1 - 0",null,"R1, 0.5 - 0.5","R1, 1 - 0","R2, 0 - 1",null,"R2, 1 - 0","R6, 1 - 0","R3, 1 - 0","R2, 0.5 - 0.5","R6, 0.5 - 0.5","R6, 0.5 - 0.5","R1, 0.5 - 0.5"]
[null,null,null,null,null,null,null,null,null,null,null,null,null,null,null,null,null,null,null,null,null,null,null,null,null,null,null,null,null,null,null,null,null,null,null,null,null,null,null,null,null,null,null,null,null,null,null,null,null,null,null,null,null,null,null,null,null,null,null,null,null,null,null,null,null,null,null,null,null,null,null,null,null,null,null,null,null,null,null,null,null,null,null,null,null,null,null,null,null,null,null,null,null,null,null,null,null,null,null,null,"R2, 0 - 1","R6, 0 - 1","R5, 0.5 - 0.5","R6, 0 - 1",null,null,null,null,null,null,null,null,null,"R1, 0.5 - 0.5","R2, 0.5 - 0.5","R1, 0.5 - 0.5",null,"R3, 0.5 - 0.5","R5, 0.5 - 0.5","R2, 0 - 1",null,"R3, 0.5 - 0.5",null,"R1, 1 - 0","R6, 1 - 0",null,null,"R6, 0.5 - 0.5","R5, 1 - 0"]
[null,null,null,null,null,null,null,null,null,null,null,null,null,null,null,null,null,null,null,null,null,null,null,null,null,null,null,null,null,null,null,null,null,null,null,null,null,null,null,null,null,null,null,null,null,null,null,null,null,null,null,null,null,null,null,null,null,null,null,null,null,null,null,null,null,null,null,null,null,null,null,null,null,null,null,null,null,null,null,null,null,null,null,null,null,null,null,null,null,null,null,null,null,null,null,null,null,null,null,null,null,"R6, 0 - 1","R2, 0.5 - 0.5","R5, 0.5 - 0.5",null,null,null,null,"R6, 10 - 11",null,"R5, 19 - 4",null,null,"R2, 0.5 - 0.5",null,"R2, 0.5 - 0.5","R1, 0 - 1","R1, 0 - 1",null,"R2, 1 - 0","R5, 0.5 - 0.5",null,"R1, 0 - 1","R1, 1 - 0","R6, 0.5 - 0.5","R3, 0.5 - 0.5","R6, 0 - 1",null,"R4, 0 - 1"]
[null,null,null,null,null,null,null,null,null,null,null,null,null,null,null,null,null,null,null,null,null,null,null,null,null,null,null,null,null,null,null,null,null,null,null,null,null,null,null,null,null,null,null,null,null,null,null,null,null,null,null,null,null,null,null,null,null,null,null,null,null,null,null,null,null,null,null,null,null,null,null,null,null,null,null,null,null,null,null,null,null,null,null,null,null,null,null,null,null,null,null,null,null,null,null,null,null,null,null,null,"R5, 18 - 2","R2, 0 - 1","R6, 0.5 - 0.5",null,"R2, 1 - 0",null,null,"R6, 11 - 10",null,null,"R3, 8 - 8",null,null,null,"R5, 0.5 - 0.5","R1, 0.5 - 0.5","R1, 0 - 1","R1, 0 - 1","R2, 0 - 1",null,"R1, 1 - 0","R2, 0.5 - 0.5","R6, 1 - 0","R6, 0.5 - 0.5","R1, 1 - 0","R1, 0 - 1",null,null,"R3, 0.5 - 0.5"]
[null,null,null,null,null,null,null,null,null,null,null,null,null,null,null,null,null,null,null,null,null,null,null,null,null,null,null,null,null,null,null,null,null,null,null,null,null,null,null,null,null,null,null,null,null,null,null,null,null,null,null,null,null,null,null,null,null,null,null,null,null,null,null,null,null,null,null,null,null,null,null,null,null,null,null,null,null,null,null,null,null,null,null,null,null,null,null,null,null,null,null,null,null,null,null,null,null,null,null,null,"R6, 0 - 1",null,"R1, 5 - 19",null,"R2, 0 - 1",null,null,null,null,null,null,"R2, 0 - 1","R6, 0 - 1","R5, 0 - 1","R6, 1 - 0",null,"R1, 1 - 0","R1, 0 - 1","R1, 0.5 - 0.5","R3, 5 - 21","R1, 0.5 - 0.5","R6, 1 - 0","R6, 22 - 5","R6, 1 - 0",null,"R1, 1 - 0","R1, 1 - 0","R5, 0.5 - 0.5","R2, 0 - 1"]
[null,null,null,null,null,null,null,null,null,null,null,null,null,null,null,null,null,null,null,null,null,null,null,null,null,null,null,null,null,null,null,null,null,null,null,null,null,null,null,null,null,null,null,null,null,null,null,null,null,null,null,null,null,null,null,null,null,null,null,null,null,null,null,null,null,null,null,null,null,null,null,null,null,null,null,null,null,null,null,null,null,null,null,null,null,null,null,null,null,null,null,null,null,null,null,null,null,null,null,null,"R5, 1 - 0",null,null,"R1, 12 - 11","R6, 0 - 1",null,null,"R5, 4 - 19","R3, 8 - 8",null,null,"R5, 1 - 0",null,"R3, 0.5 - 0.5","R1, 1 - 0","R2, 0 - 1","R2, 1 - 0","R2, 1 - 0","R1, 0.5 - 0.5","R5, 0 - 1",null,"R6, 0.5 - 0.5","R3, 0 - 1","R4, 1 - 0",null,null,"R3, 0 - 1","R2, 1 - 0","R6, 0 - 1"]
[null,null,null,null,null,null,null,null,null,null,null,null,null,null,null,null,null,null,null,null,null,null,null,null,null,null,null,null,null,null,null,null,null,null,null,null,null,null,null,null,null,null,null,null,null,null,null,null,null,null,null,null,null,null,null,null,null,null,null,null,null,null,null,null,null,null,null,null,null,null,null,null,null,null,null,null,null,null,null,null,null,null,null,null,null,null,null,null,null,null,null,null,null,null,null,null,null,null,null,null,"R6, 1 - 0","R3, 1 - 0",null,null,"R5, 0 - 1",null,null,null,null,"R2, 1 - 0","R5, 0 - 1",null,null,"R1, 0 - 1","R1, 0 - 1",null,"R4, 1 - 0","R5, 0.5 - 0.5","R2, 1 - 0","R3, 20 - 4","R2, 0.5 - 0.5","R1, 1 - 0","R6, 0.5 - 0.5","R5, 1 - 0","R4, 0.5 - 0.5",null,"R2, 0 - 1","R3, 0 - 1","R6, 0.5 - 0.5"]
[null,null,null,null,null,null,null,null,null,null,null,null,null,null,null,null,null,null,null,null,null,null,null,null,null,null,null,null,null,null,null,null,null,null,null,null,null,null,null,null,null,null,null,null,null,null,null,null,null,null,null,null,null,null,null,null,null,null,null,null,null,null,null,null,null,null,null,null,null,null,null,null,null,null,null,null,null,null,null,null,null,null,null,null,null,null,null,null,null,null,null,null,null,null,null,null,null,null,null,null,null,"R5, 0.5 - 0.5",null,"R2, 1 - 0","R6, 0.5 - 0.5",null,null,null,null,"R6, 1 - 0",null,null,null,"R1, 0.5 - 0.5",null,null,"R5, 0.5 - 0.5","R2, 0.5 - 0.5","R1, 0.5 - 0.5","R2, 1 - 0","R1, 1 - 0",null,"R3, 0.5 - 0.5",null,"R5, 1 - 0","R6, 1 - 0","R4, 1 - 0",null,"R2, 0 - 1"]
[null,null,null,null,null,null,null,null,null,null,null,null,null,null,null,null,null,null,null,null,null,null,null,null,null,null,null,null,null,null,null,null,null,null,null,null,null,null,null,null,null,null,null,null,null,null,null,null,null,null,null,null,null,null,null,null,null,null,null,null,null,null,null,null,null,null,null,null,null,null,null,null,null,null,null,null,null,null,null,null,null,null,null,null,null,null,null,null,null,null,null,null,null,null,null,null,null,null,null,null,null,"R1, 1 - 0",null,"R3, 0 - 1","R5, 0.5 - 0.5","R6, 0 - 1","R1, 0.5 - 0.5","R2, 0.5 - 0.5",null,"R5, 1 - 0","R3, 0.5 - 0.5","R1, 1 - 0","R1, 0.5 - 0.5",null,null,"R6, 2 - 19",null,"R3, 20 - 3",null,null,null,null,null,null,"R2, 0.5 - 0.5","R1, 0.5 - 0.5","R2, 1 - 0",null,"R1, 0 - 1"]
[null,null,null,null,null,null,null,null,null,null,null,null,null,null,null,null,null,null,null,null,null,null,null,null,null,null,null,null,null,null,null,null,null,null,null,null,null,null,null,null,null,null,null,null,null,null,null,null,null,null,null,null,null,null,null,null,null,null,null,null,null,null,null,null,null,null,null,null,null,null,null,null,null,null,null,null,null,null,null,null,null,null,null,null,null,null,null,null,null,null,null,null,null,null,null,null,null,null,null,null,"R2, 0 - 1","R6, 3 - 20","R3, 1 - 0",null,"R3, 10 - 10","R6, 1 - 0","R2, 0.5 - 0.5",null,"R5, 0.5 - 0.5","R6, 0 - 1","R1, 0 - 1","R1, 1 - 0",null,null,null,null,null,null,null,null,null,null,null,"R1, 0.5 - 0.5","R2, 1 - 0","R6, 1 - 0",null,"R2, 0.5 - 0.5"]
[null,null,null,null,null,null,null,null,null,null,null,null,null,null,null,null,null,null,null,null,null,null,null,null,null,null,null,null,null,null,null,null,null,null,null,null,null,null,null,null,null,null,null,null,null,null,null,null,null,null,null,null,null,null,null,null,null,null,null,null,null,null,null,null,null,null,null,null,null,null,null,null,null,null,null,null,null,null,null,null,null,null,null,null,null,null,null,null,null,null,null,null,null,null,null,null,null,null,null,null,"R1, 1 - 0",null,null,null,"R3, 0.5 - 0.5","R5, 0 - 1","R1, 0.5 - 0.5","R2, 0.5 - 0.5","R1, 0.5 - 0.5",null,"R2, 1 - 0",null,null,"R6, 19 - 2",null,null,null,null,null,null,"R5, 0 - 1","R4, 1 - 0","R6, 0 - 1",null,null,"R2, 1 - 0","R1, 1 - 0",null,"R4, 0 - 1"]
[null,null,null,null,null,null,null,null,null,null,null,null,null,null,null,null,null,null,null,null,null,null,null,null,null,null,null,null,null,null,null,null,null,null,null,null,null,null,null,null,null,null,null,null,null,null,null,null,null,null,null,null,null,null,null,null,null,null,null,null,null,null,null,null,null,null,null,null,null,null,null,null,null,null,null,null,null,null,null,null,null,null,null,null,null,null,null,null,null,null,null,null,null,null,null,null,null,null,null,null,"R3, 0 - 1",null,"R1, 0 - 1","R6, 0 - 1","R1, 0.5 - 0.5","R2, 0 - 1",null,"R1, 1 - 0","R1, 1 - 0","R1, 0 - 1","R2, 0 - 1","R4, 0 - 1","R5, 0.5 - 0.5",null,null,null,null,null,null,"R2, 1 - 0",null,"R2, 1 - 0","R2, 1 - 0",null,null,"R5, 22 - 8","R4, 0 - 1",null,"R1, 1 - 0"]
[null,null,null,null,null,null,null,null,null,null,null,null,null,null,null,null,null,null,null,null,null,null,null,null,null,null,null,null,null,null,null,null,null,null,null,null,null,null,null,null,null,null,null,null,null,null,null,null,null,null,null,null,null,null,null,null,null,null,null,null,null,null,null,null,null,null,null,null,null,null,null,null,null,null,null,null,null,null,null,null,null,null,null,null,null,null,null,null,null,null,null,null,null,null,null,null,null,null,null,null,"R1, 0.5 - 0.5","R3, 0.5 - 0.5",null,"R2, 0.5 - 0.5",null,null,"R3, 0.5 - 0.5","R1, 1 - 0","R1, 1 - 0","R1, 1 - 0","R2, 0 - 1","R5, 0.5 - 0.5","R2, 0.5 - 0.5","R3, 3 - 20",null,null,null,null,null,null,null,"R1, 0 - 1","R3, 0 - 1","R2, 0.5 - 0.5",null,null,"R6, 0.5 - 0.5","R2, 0.5 - 0.5","R4, 1 - 0"]
[null,null,null,null,null,null,null,null,null,null,null,null,null,null,null,null,null,null,null,null,null,null,null,null,null,null,null,null,null,null,null,null,null,null,null,null,null,null,null,null,null,null,null,null,null,null,null,null,null,null,null,null,null,null,null,null,null,null,null,null,null,null,null,null,null,null,null,null,null,null,null,null,null,null,null,null,null,null,null,null,null,null,null,null,null,null,null,null,null,null,null,null,null,null,null,null,null,null,null,null,null,null,"R5, 1 - 0","R1, 0.5 - 0.5",null,"R1, 0.5 - 0.5","R5, 0.5 - 0.5",null,"R2, 1 - 0","R1, 0.5 - 0.5","R1, 0.5 - 0.5","R2, 0 - 1","R1, 0.5 - 0.5",null,null,null,null,null,null,null,"R4, 19 - 2","R2, 1 - 0","R1, 0 - 1","R2, 1 - 0",null,null,null,"R1, 1 - 0"]
[null,null,null,null,null,null,null,null,null,null,null,null,null,null,null,null,null,null,null,null,null,null,null,null,null,null,null,null,null,null,null,null,null,null,null,null,null,null,null,null,null,null,null,null,null,null,null,null,null,null,null,null,null,null,null,null,null,null,null,null,null,null,null,null,null,null,null,null,null,null,null,null,null,null,null,null,null,null,null,null,null,null,null,null,null,null,null,null,null,null,null,null,null,null,null,null,null,null,null,null,null,null,null,"R1, 1 - 0","R1, 0.5 - 0.5","R1, 0 - 1","R2, 1 - 0","R2, 0 - 1",null,"R3, 21 - 5","R5, 1 - 0","R3, 4 - 20","R2, 0 - 1",null,null,null,"R2, 0 - 1",null,null,null,null,null,"R2, 0 - 1",null,null,"R2, 0 - 1","R1, 0.5 - 0.5","R6, 0 - 1"]
[null,null,null,null,null,null,null,null,null,null,null,null,null,null,null,null,null,null,null,null,null,null,null,null,null,null,null,null,null,null,null,null,null,null,null,null,null,null,null,null,null,null,null,null,null,null,null,null,null,null,null,null,null,null,null,null,null,null,null,null,null,null,null,null,null,null,null,null,null,null,null,null,null,null,null,null,null,null,null,null,null,null,null,null,null,null,null,null,null,null,null,null,null,null,null,null,null,null,null,null,null,"R5, 1 - 0","R1, 0.5 - 0.5","R1, 0.5 - 0.5","R2, 15 - 13","R2, 1 - 0",null,"R5, 0.5 - 0.5","R1, 0 - 1","R1, 0.5 - 0.5",null,"R2, 0.5 - 0.5","R1, 0 - 1",null,null,"R5, 1 - 0",null,null,"R4, 2 - 19",null,null,"R6, 0 - 1","R6, 1 - 0","R4, 0 - 1","R1, 0.5 - 0.5","R3, 0 - 1",null,null,"R2, 0 - 1"]
[null,null,null,null,null,null,null,null,null,null,null,null,null,null,null,null,null,null,null,null,null,null,null,null,null,null,null,null,null,null,null,null,null,null,null,null,null,null,null,null,null,null,null,null,null,null,null,null,null,null,null,null,null,null,null,null,null,null,null,null,null,null,null,null,null,null,null,null,null,null,null,null,null,null,null,null,null,null,null,null,null,null,null,null,null,null,null,null,null,null,null,null,null,null,null,null,null,null,null,null,"R6, 0.5 - 0.5",null,"R1, 1 - 0",null,"R4, 0 - 1",null,"R3, 0.5 - 0.5",null,"R2, 0.5 - 0.5","R6, 0 - 1","R6, 0.5 - 0.5","R1, 0 - 1",null,null,null,"R4, 0 - 1","R2, 0 - 1","R1, 1 - 0","R2, 0 - 1",null,"R6, 1 - 0",null,null,"R6, 10 - 10"]
[null,null,null,null,null,null,null,null,null,null,null,null,null,null,null,null,null,null,null,null,null,null,null,null,null,null,null,null,null,null,null,null,null,null,null,null,null,null,null,null,null,null,null,null,null,null,null,null,null,null,null,null,null,null,null,null,null,null,null,null,null,null,null,null,null,null,null,null,null,null,null,null,null,null,null,null,null,null,null,null,null,null,null,null,null,null,null,null,null,null,null,null,null,null,null,null,null,null,null,null,"R2, 0.5 - 0.5","R1, 0 - 1",null,"R2, 0 - 1",null,"R2, 0 - 1",null,"R1, 1 - 0","R6, 0 - 1","R6, 5 - 22","R3, 1 - 0","R6, 0.5 - 0.5","R3, 0.5 - 0.5",null,null,"R6, 1 - 0","R2, 0 - 1","R3, 1 - 0","R1, 1 - 0","R2, 1 - 0","R6, 0 - 1",null,null,"R5, 0 - 1",null,null,null,null,"R6, 0.5 - 0.5"]
[null,null,null,null,null,null,null,null,null,null,null,null,null,null,null,null,null,null,null,null,null,null,null,null,null,null,null,null,null,null,null,null,null,null,null,null,null,null,null,null,null,null,null,null,null,null,null,null,null,null,null,null,null,null,null,null,null,null,null,null,null,null,null,null,null,null,null,null,null,null,null,null,null,null,null,null,null,null,null,null,null,null,null,null,null,null,null,null,null,null,null,null,null,null,null,null,null,null,null,null,null,null,"R2, 1 - 0","R1, 1 - 0","R1, 0.5 - 0.5","R6, 0 - 1","R1, 0 - 1","R1, 0 - 1","R6, 0.5 - 0.5","R6, 0 - 1","R4, 0 - 1","R5, 0 - 1",null,null,"R1, 0.5 - 0.5",null,null,"R2, 0.5 - 0.5","R2, 0 - 1",null,"R4, 1 - 0","R6, 10 - 10","R5, 1 - 0"]
[null,null,null,null,null,null,null,null,null,null,null,null,null,null,null,null,null,null,null,null,null,null,null,null,null,null,null,null,null,null,null,null,null,null,null,null,null,null,null,null,null,null,null,null,null,null,null,null,null,null,null,null,null,null,null,null,null,null,null,null,null,null,null,null,null,null,null,null,null,null,null,null,null,null,null,null,null,null,null,null,null,null,null,null,null,null,null,null,null,null,null,null,null,null,null,null,null,null,null,null,null,null,null,null,"R2, 0 - 1","R3, 0 - 1","R6, 0 - 1","R6, 0.5 - 0.5","R1, 0 - 1",null,null,"R4, 0.5 - 0.5","R5, 0 - 1","R2, 0.5 - 0.5","R2, 0 - 1",null,null,null,null,null,"R1, 0.5 - 0.5"]
[null,null,null,null,null,null,null,null,null,null,null,null,null,null,null,null,null,null,null,null,null,null,null,null,null,null,null,null,null,null,null,null,null,null,null,null,null,null,null,null,null,null,null,null,null,null,null,null,null,null,null,null,null,null,null,null,null,null,null,null,null,null,null,null,null,null,null,null,null,null,null,null,null,null,null,null,null,null,null,null,null,null,null,null,null,null,null,null,null,null,null,null,null,null,null,null,null,null,null,null,"R1, 0 - 1","R2, 0 - 1",null,"R4, 1 - 0",null,"R2, 0.5 - 0.5",null,"R3, 0.5 - 0.5","R1, 1 - 0","R1, 0 - 1",null,null,"R6, 0 - 1","R1, 0.5 - 0.5","R6, 0 - 1","R2, 0 - 1","R5, 8 - 22",null,null,"R2, 1 - 0","R3, 1 - 0",null,null,null,null,null,"R6, 0.5 - 0.5"]
[null,null,null,null,null,null,null,null,null,null,null,null,null,null,null,null,null,null,null,null,null,null,null,null,null,null,null,null,null,null,null,null,null,null,null,null,null,null,null,null,null,null,null,null,null,null,null,null,null,null,null,null,null,null,null,null,null,null,null,null,null,null,null,null,null,null,null,null,null,null,null,null,null,null,null,null,null,null,null,null,null,null,null,null,null,null,null,null,null,null,null,null,null,null,null,null,null,null,null,null,null,"R1, 0 - 1",null,null,null,"R6, 0.5 - 0.5",null,"R6, 1 - 0",null,"R1, 0 - 1","R3, 1 - 0","R2, 1 - 0","R4, 0 - 1","R2, 0 - 1",null,"R1, 0 - 1","R4, 1 - 0","R6, 0.5 - 0.5",null,"R1, 0.5 - 0.5",null,null,null,null,null,"R6, 0.5 - 0.5",null,"R3, 1 - 0"]
[null,null,null,null,null,null,null,null,null,null,null,null,null,null,null,null,null,null,null,null,null,null,null,null,null,null,null,null,null,null,null,null,null,null,null,null,null,null,null,null,null,null,null,null,null,null,null,null,null,null,null,null,null,null,null,null,null,null,null,null,null,null,null,null,null,null,null,null,null,null,null,null,null,null,null,null,null,null,null,null,null,null,null,null,null,null,null,null,null,null,null,null,null,null,null,null,null,null,null,null,"R2, 0 - 1",null,null,"R1, 0.5 - 0.5",null,"R6, 0.5 - 0.5","R6, 0.5 - 0.5",null,null,"R5, 0.5 - 0.5","R2, 0 - 1","R3, 1 - 0",null,null,"R2, 0.5 - 0.5",null,null,"R2, 0.5 - 0.5","R1, 0 - 1","R6, 1 - 0",null,null,null,null,null,null,"R3, 0 - 1"]
[null,null,null,null,null,null,null,null,null,null,null,null,null,null,null,null,null,null,null,null,null,null,null,null,null,null,null,null,null,null,null,null,null,null,null,null,null,null,null,null,null,null,null,null,null,null,null,null,null,null,null,null,null,null,null,null,null,null,null,null,null,null,null,null,null,null,null,null,null,null,null,null,null,null,null,null,null,null,null,null,null,null,null,null,null,null,null,null,null,null,null,null,null,null,null,null,null,null,null,null,null,null,"R1, 1 - 0",null,null,"R1, 0.5 - 0.5","R5, 0 - 1","R4, 1 - 0","R3, 0.5 - 0.5","R2, 1 - 0","R6, 1 - 0","R6, 0.5 - 0.5","R2, 1 - 0","R1, 1 - 0",null,"R4, 1 - 0","R1, 0 - 1","R4, 0 - 1",null,null,"R2, 1 - 0",null,"R6, 0.5 - 0.5"]

{"sheet":"Round1","index":8,"n_rows":0,"n_cols":0,"rows_kept":0,"cut":false,"hidden":false,"merged":[]}

{"sheet":"Round2","index":9,"n_rows":0,"n_cols":0,"rows_kept":0,"cut":false,"hidden":false,"merged":[]}

{"sheet":"Round3","index":10,"n_rows":0,"n_cols":0,"rows_kept":0,"cut":false,"hidden":false,"merged":[]}

{"sheet":"Round4","index":11,"n_rows":0,"n_cols":0,"rows_kept":0,"cut":false,"hidden":false,"merged":[]}

{"sheet":"Round5","index":12,"n_rows":0,"n_cols":0,"rows_kept":0,"cut":false,"hidden":false,"merged":[]}

{"sheet":"Round6","index":13,"n_rows":0,"n_cols":0,"rows_kept":0,"cut":false,"hidden":false,"merged":[]}

{"sheet":"Round7","index":14,"n_rows":0,"n_cols":0,"rows_kept":0,"cut":false,"hidden":false,"merged":[]}

{"sheet":"Round8","index":15,"n_rows":0,"n_cols":0,"rows_kept":0,"cut":false,"hidden":false,"merged":[]}

{"sheet":"Round9","index":16,"n_rows":0,"n_cols":0,"rows_kept":0,"cut":false,"hidden":false,"merged":[]}

{"sheet":"NAF","index":17,"n_rows":861,"n_cols":1,"rows_kept":861,"cut":false,"hidden":false,"merged":[]}
["<?xml version=\"1.0\" encoding=\"UTF-8\"?>"]
["<nafReport xmlns:blo=\"http://www.bloodbowl.net\">"]
["<organiser>Mike</organiser>"]
["<coaches>"]
["<coach>"]
["<name>Alex</name>"]
["<number>16761</number>"]
["<team>Skaven</team>"]
["</coach>"]
["<coach>"]
["<name>Mike</name>"]
["<number>10468</number>"]
["<team>Elves</team>"]
["</coach>"]
["<coach>"]
["<name>Linus</name>"]
["<number>15676</number>"]
["<team>Dwarves</team>"]
["</coach>"]
["<coach>"]
["<name>Player4</name>"]
["<number>9106</number>"]
["<team>Wood Elves</team>"]
["</coach>"]
["<coach>"]
["<name>Player5</name>"]
["<number>12789</number>"]
["<team>Dark Elves</team>"]
["</coach>"]
["<coach>"]
["<name>Player6</name>"]
["<number>18136</number>"]
["<team>Wood Elves</team>"]
["</coach>"]
["<coach>"]
["<name>Player7</name>"]
["<number>9672</number>"]
["<team>Wood Elves</team>"]
["</coach>"]
["<coach>"]
["<name>Player8</name>"]
["<number>4118</number>"]
["<team>Chaos Dwarves</team>"]
["</coach>"]
["<coach>"]
["<name>Player9</name>"]
["<number>14129</number>"]
["<team>Nurgle's Rotters</team>"]
["</coach>"]
["<coach>"]
["<name>Player10</name>"]
["<number>1739</number>"]
["<team>Lizardmen</team>"]
["</coach>"]
["<coach>"]
["<name>Player11</name>"]
["<number>19602</number>"]
["<team>Slann</team>"]
["</coach>"]
["<coach>"]
["<name>Player12</name>"]
["<number>15064</number>"]
["<team>Wood Elves</team>"]
["</coach>"]
["<coach>"]
["<name>Player13</name>"]
["<number>6092</number>"]
["<team>Amazons</team>"]
["</coach>"]
["<coach>"]
["<name>Player14</name>"]
["<number>9080</number>"]
["<team>Dwarves</team>"]
["</coach>"]
["<coach>"]
["<name>Player15</name>"]
["<number>7960</number>"]
["<team>Undead</team>"]
["</coach>"]
["<coach>"]
["<name>Player16</name>"]
["<number>15062</number>"]
["<team>Goblins</team>"]
["</coach>"]
["<coach>"]
["<name>Player17</name>"]
["<number>7106</number>"]
["<team>Wood Elves</team>"]
["</coach>"]
["<coach>"]
["<name>Player18</name>"]
["<number>7371</number>"]
["<team>Khemri</team>"]
["</coach>"]
["</coaches>"]
["<game>"]
["<timestamp>2016-09-18 01:00</timestamp>"]
["<playerRecord>"]
["<name>Player7</name>"]
["<number>9672</number>"]
["<teamRating>100</teamRating>"]
["<touchDowns>12</touchDowns>"]
["<badlyHurt>2</badlyHurt>"]
["</playerRecord>"]
["<playerRecord>"]
["<name>Player9</name>"]
["<number>14129</number>"]
["<teamRating>100</teamRating>"]
["<touchDowns>7</touchDowns>"]
["<badlyHurt>1</badlyHurt>"]
["</playerRecord>"]
["</game>"]
["<game>"]
["<timestamp>2016-09-18 01:00</timestamp>"]
["<playerRecord>"]
["<name>Player6</name>"]
["<number>18136</number>"]
["<teamRating>100</teamRating>"]
["<touchDowns>12</touchDowns>"]
["<badlyHurt>2</badlyHurt>"]
["</playerRecord>"]
["<playerRecord>"]
["<name>Player11</name>"]
["<number>19602</number>"]
["<teamRating>100</teamRating>"]
["<touchDowns>12</touchDowns>"]
["<badlyHurt>2</badlyHurt>"]
["</playerRecord>"]
["</game>"]
["<game>"]
["<timestamp>2016-09-18 01:00</timestamp>"]
["<playerRecord>"]
["<name>Player17</name>"]
["<number>7106</number>"]
["<teamRating>100</teamRating>"]
["<touchDowns>10</touchDowns>"]
["<badlyHurt>2</badlyHurt>"]
["</playerRecord>"]
["<playerRecord>"]
["<name>Player13</name>"]
["<number>6092</number>"]
["<teamRating>100</teamRating>"]
["<touchDowns>8</touchDowns>"]
["<badlyHurt>2</badlyHurt>"]
["</playerRecord>"]
["</game>"]
["<game>"]
["<timestamp>2016-09-18 01:00</timestamp>"]
["<playerRecord>"]
["<name>Player8</name>"]
["<number>4118</number>"]
["<teamRating>100</teamRating>"]
["<touchDowns>3</touchDowns>"]
["<badlyHurt>1</badlyHurt>"]
["</playerRecord>"]
["<playerRecord>"]
["<name>Linus</name>"]
["<number>15676</number>"]
["<teamRating>100</teamRating>"]
["<touchDowns>16</touchDowns>"]
["<badlyHurt>3</badlyHurt>"]
["</playerRecord>"]
["</game>"]
["<game>"]
["<timestamp>2016-09-18 01:00</timestamp>"]
["<playerRecord>"]
["<name>Player14</name>"]
["<number>9080</number>"]
["<teamRating>100</teamRating>"]
["<touchDowns>9</touchDowns>"]
["<badlyHurt>1</badlyHurt>"]
["</playerRecord>"]
["<playerRecord>"]
["<name>Player10</name>"]
["<number>1739</number>"]
["<teamRating>100</teamRating>"]
["<touchDowns>11</touchDowns>"]
["<badlyHurt>2</badlyHurt>"]
["</playerRecord>"]
["</game>"]
["<game>"]
["<timestamp>2016-09-18 01:00</timestamp>"]
["<playerRecord>"]
["<name>Mike</name>"]
["<number>10468</number>"]
["<teamRating>100</teamRating>"]
["<touchDowns>4</touchDowns>"]
["<badlyHurt>0</badlyHurt>"]
["</playerRecord>"]
["<playerRecord>"]
["<name>Player5</name>"]
["<number>12789</number>"]
["<teamRating>100</teamRating>"]
["<touchDowns>17</touchDowns>"]
["<badlyHurt>2</badlyHurt>"]
["</playerRecord>"]
["</game>"]
["<game>"]
["<timestamp>2016-09-18 01:00</timestamp>"]
["<playerRecord>"]
["<name>Player15</name>"]
["<number>7960</number>"]
["<teamRating>100</teamRating>"]
["<touchDowns>7</touchDowns>"]
["<badlyHurt>0</badlyHurt>"]
["</playerRecord>"]
["<playerRecord>"]
["<name>Player16</name>"]
["<number>15062</number>"]
["<teamRating>100</teamRating>"]
["<touchDowns>8</touchDowns>"]
["<badlyHurt>0</badlyHurt>"]
["</playerRecord>"]
["</game>"]
["<game>"]
["<timestamp>2016-09-18 01:00</timestamp>"]
["<playerRecord>"]
["<name>Player18</name>"]
["<number>7371</number>"]
["<teamRating>100</teamRating>"]
["<touchDowns>14</touchDowns>"]
["<badlyHurt>2</badlyHurt>"]
["</playerRecord>"]
["<playerRecord>"]
["<name>Player12</name>"]
["<number>15064</number>"]
["<teamRating>100</teamRating>"]
["<touchDowns>6</touchDowns>"]
["<badlyHurt>0</badlyHurt>"]
["</playerRecord>"]
["</game>"]
["<game>"]
["<timestamp>2016-09-18 01:00</timestamp>"]
["<playerRecord>"]
["<name>Alex</name>"]
["<number>16761</number>"]
["<teamRating>100</teamRating>"]
["<touchDowns>11</touchDowns>"]
["<badlyHurt>3</badlyHurt>"]
["</playerRecord>"]
["<playerRecord>"]
["<name>Player4</name>"]
["<number>9106</number>"]
["<teamRating>100</teamRating>"]
["<touchDowns>7</touchDowns>"]
["<badlyHurt>2</badlyHurt>"]
["</playerRecord>"]
["</game>"]
["<game>"]
["<timestamp>2016-09-18 02:00</timestamp>"]
["<playerRecord>"]
["<name>Player5</name>"]
["<number>12789</number>"]
["<teamRating>100</teamRating>"]
["<touchDowns>13</touchDowns>"]
["<badlyHurt>1</badlyHurt>"]
["</playerRecord>"]
["<playerRecord>"]
["<name>Linus</name>"]
["<number>15676</number>"]
["<teamRating>100</teamRating>"]
["<touchDowns>3</touchDowns>"]
["<badlyHurt>0</badlyHurt>"]
["</playerRecord>"]
["</game>"]
["<game>"]
["<timestamp>2016-09-18 02:00</timestamp>"]
["<playerRecord>"]
["<name>Player18</name>"]
["<number>7371</number>"]
["<teamRating>100</teamRating>"]
["<touchDowns>11</touchDowns>"]
["<badlyHurt>3</badlyHurt>"]
["</playerRecord>"]
["<playerRecord>"]
["<name>Player7</name>"]
["<number>9672</number>"]
["<teamRating>100</teamRating>"]
["<touchDowns>6</touchDowns>"]
["<badlyHurt>2</badlyHurt>"]
["</playerRecord>"]
["</game>"]
["<game>"]
["<timestamp>2016-09-18 02:00</timestamp>"]
["<playerRecord>"]
["<name>Player6</name>"]
["<number>18136</number>"]
["<teamRating>100</teamRating>"]
["<touchDowns>10</touchDowns>"]
["<badlyHurt>2</badlyHurt>"]
["</playerRecord>"]
["<playerRecord>"]
["<name>Player10</name>"]
["<number>1739</number>"]
["<teamRating>100</teamRating>"]
["<touchDowns>5</touchDowns>"]
["<badlyHurt>1</badlyHurt>"]
["</playerRecord>"]
["</game>"]
["<game>"]
["<timestamp>2016-09-18 02:00</timestamp>"]
["<playerRecord>"]
["<name>Player11</name>"]
["<number>19602</number>"]
["<teamRating>100</teamRating>"]
["<touchDowns>9</touchDowns>"]
["<badlyHurt>1</badlyHurt>"]
["</playerRecord>"]
["<playerRecord>"]
["<name>Alex</name>"]
["<number>16761</number>"]
["<teamRating>100</teamRating>"]
["<touchDowns>16</touchDowns>"]
["<badlyHurt>3</badlyHurt>"]
["</playerRecord>"]
["</game>"]
["<game>"]
["<timestamp>2016-09-18 02:00</timestamp>"]
["<playerRecord>"]
["<name>Player17</name>"]
["<number>7106</number>"]
["<teamRating>100</teamRating>"]
["<touchDowns>15</touchDowns>"]
["<badlyHurt>2</badlyHurt>"]
["</playerRecord>"]
["<playerRecord>"]
["<name>Player14</name>"]
["<number>9080</number>"]
["<teamRating>100</teamRating>"]
["<touchDowns>4</touchDowns>"]
["<badlyHurt>1</badlyHurt>"]
["</playerRecord>"]
["</game>"]
["<game>"]
["<timestamp>2016-09-18 02:00</timestamp>"]
["<playerRecord>"]
["<name>Player13</name>"]
["<number>6092</number>"]
["<teamRating>100</teamRating>"]
["<touchDowns>10</touchDowns>"]
["<badlyHurt>1</badlyHurt>"]
["</playerRecord>"]
["<playerRecord>"]
["<name>Player16</name>"]
["<number>15062</number>"]
["<teamRating>100</teamRating>"]
["<touchDowns>9</touchDowns>"]
["<badlyHurt>1</badlyHurt>"]
["</playerRecord>"]
["</game>"]
["<game>"]
["<timestamp>2016-09-18 02:00</timestamp>"]
["<playerRecord>"]
["<name>Player15</name>"]
["<number>7960</number>"]
["<teamRating>100</teamRating>"]
["<touchDowns>16</touchDowns>"]
["<badlyHurt>2</badlyHurt>"]
["</playerRecord>"]
["<playerRecord>"]
["<name>Player9</name>"]
["<number>14129</number>"]
["<teamRating>100</teamRating>"]
["<touchDowns>7</touchDowns>"]
["<badlyHurt>1</badlyHurt>"]
["</playerRecord>"]
["</game>"]
["<game>"]
["<timestamp>2016-09-18 02:00</timestamp>"]
["<playerRecord>"]
["<name>Player4</name>"]
["<number>9106</number>"]
["<teamRating>100</teamRating>"]
["<touchDowns>10</touchDowns>"]
["<badlyHurt>1</badlyHurt>"]
["</playerRecord>"]
["<playerRecord>"]
["<name>Player12</name>"]
["<number>15064</number>"]
["<teamRating>100</teamRating>"]
["<touchDowns>10</touchDowns>"]
["<badlyHurt>1</badlyHurt>"]
["</playerRecord>"]
["</game>"]
["<game>"]
["<timestamp>2016-09-18 02:00</timestamp>"]
["<playerRecord>"]
["<name>Mike</name>"]
["<number>10468</number>"]
["<teamRating>100</teamRating>"]
["<touchDowns>7</touchDowns>"]
["<badlyHurt>1</badlyHurt>"]
["</playerRecord>"]
["<playerRecord>"]
["<name>Player8</name>"]
["<number>4118</number>"]
["<teamRating>100</teamRating>"]
["<touchDowns>13</touchDowns>"]
["<badlyHurt>2</badlyHurt>"]
["</playerRecord>"]
["</game>"]
["<game>"]
["<timestamp>2016-09-18 03:00</timestamp>"]
["<playerRecord>"]
["<name>Player5</name>"]
["<number>12789</number>"]
["<teamRating>100</teamRating>"]
["<touchDowns>7</touchDowns>"]
["<badlyHurt>1</badlyHurt>"]
["</playerRecord>"]
["<playerRecord>"]
["<name>Alex</name>"]
["<number>16761</number>"]
["<teamRating>100</teamRating>"]
["<touchDowns>12</touchDowns>"]
["<badlyHurt>1</badlyHurt>"]
["</playerRecord>"]
["</game>"]
["<game>"]
["<timestamp>2016-09-18 03:00</timestamp>"]
["<playerRecord>"]
["<name>Player18</name>"]
["<number>7371</number>"]
["<teamRating>100</teamRating>"]
["<touchDowns>9</touchDowns>"]
["<badlyHurt>1</badlyHurt>"]
["</playerRecord>"]
["<playerRecord>"]
["<name>Player17</name>"]
["<number>7106</number>"]
["<teamRating>100</teamRating>"]
["<touchDowns>11</touchDowns>"]
["<badlyHurt>1</badlyHurt>"]
["</playerRecord>"]
["</game>"]
["<game>"]
["<timestamp>2016-09-18 03:00</timestamp>"]
["<playerRecord>"]
["<name>Player15</name>"]
["<number>7960</number>"]
["<teamRating>100</teamRating>"]
["<touchDowns>5</touchDowns>"]
["<badlyHurt>1</badlyHurt>"]
["</playerRecord>"]
["<playerRecord>"]
["<name>Player6</name>"]
["<number>18136</number>"]
["<teamRating>100</teamRating>"]
["<touchDowns>14</touchDowns>"]
["<badlyHurt>3</badlyHurt>"]
["</playerRecord>"]
["</game>"]
["<game>"]
["<timestamp>2016-09-18 03:00</timestamp>"]
["<playerRecord>"]
["<name>Player11</name>"]
["<number>19602</number>"]
["<teamRating>100</teamRating>"]
["<touchDowns>4</touchDowns>"]
["<badlyHurt>0</badlyHurt>"]
["</playerRecord>"]
["<playerRecord>"]
["<name>Linus</name>"]
["<number>15676</number>"]
["<teamRating>100</teamRating>"]
["<touchDowns>12</touchDowns>"]
["<badlyHurt>1</badlyHurt>"]
["</playerRecord>"]
["</game>"]
["<game>"]
["<timestamp>2016-09-18 03:00</timestamp>"]
["<playerRecord>"]
["<name>Player7</name>"]
["<number>9672</number>"]
["<teamRating>100</teamRating>"]
["<touchDowns>11</touchDowns>"]
["<badlyHurt>2</badlyHurt>"]
["</playerRecord>"]
["<playerRecord>"]
["<name>Player13</name>"]
["<number>6092</number>"]
["<teamRating>100</teamRating>"]
["<touchDowns>11</touchDowns>"]
["<badlyHurt>2</badlyHurt>"]
["</playerRecord>"]
["</game>"]
["<game>"]
["<timestamp>2016-09-18 03:00</timestamp>"]
["<playerRecord>"]
["<name>Player16</name>"]
["<number>15062</number>"]
["<teamRating>100</teamRating>"]
["<touchDowns>7</touchDowns>"]
["<badlyHurt>0</badlyHurt>"]
["</playerRecord>"]
["<playerRecord>"]
["<name>Player4</name>"]
["<number>9106</number>"]
["<teamRating>100</teamRating>"]
["<touchDowns>11</touchDowns>"]
["<badlyHurt>1</badlyHurt>"]
["</playerRecord>"]
["</game>"]
["<game>"]
["<timestamp>2016-09-18 03:00</timestamp>"]
["<playerRecord>"]
["<name>Player10</name>"]
["<number>1739</number>"]
["<teamRating>100</teamRating>"]
["<touchDowns>14</touchDowns>"]
["<badlyHurt>2</badlyHurt>"]
["</playerRecord>"]
["<playerRecord>"]
["<name>Player8</name>"]
["<number>4118</number>"]
["<teamRating>100</teamRating>"]
["<touchDowns>4</touchDowns>"]
["<badlyHurt>1</badlyHurt>"]
["</playerRecord>"]
["</game>"]
["<game>"]
["<timestamp>2016-09-18 03:00</timestamp>"]
["<playerRecord>"]
["<name>Player12</name>"]
["<number>15064</number>"]
["<teamRating>100</teamRating>"]
["<touchDowns>5</touchDowns>"]
["<badlyHurt>0</badlyHurt>"]
["</playerRecord>"]
["<playerRecord>"]
["<name>Player9</name>"]
["<number>14129</number>"]
["<teamRating>100</teamRating>"]
["<touchDowns>13</touchDowns>"]
["<badlyHurt>1</badlyHurt>"]
["</playerRecord>"]
["</game>"]
["<game>"]
["<timestamp>2016-09-18 03:00</timestamp>"]
["<playerRecord>"]
["<name>Player14</name>"]
["<number>9080</number>"]
["<teamRating>100</teamRating>"]
["<touchDowns>10</touchDowns>"]
["<badlyHurt>1</badlyHurt>"]
["</playerRecord>"]
["<playerRecord>"]
["<name>Mike</name>"]
["<number>10468</number>"]
["<teamRating>100</teamRating>"]
["<touchDowns>9</touchDowns>"]
["<badlyHurt>1</badlyHurt>"]
["</playerRecord>"]
["</game>"]
["<game>"]
["<timestamp>2016-09-18 04:00</timestamp>"]
["<playerRecord>"]
["<name>Alex</name>"]
["<number>16761</number>"]
["<teamRating>100</teamRating>"]
["<touchDowns>9</touchDowns>"]
["<badlyHurt>2</badlyHurt>"]
["</playerRecord>"]
["<playerRecord>"]
["<name>Player6</name>"]
["<number>18136</number>"]
["<teamRating>100</teamRating>"]
["<touchDowns>12</touchDowns>"]
["<badlyHurt>3</badlyHurt>"]
["</playerRecord>"]
["</game>"]
["<game>"]
["<timestamp>2016-09-18 04:00</timestamp>"]
["<playerRecord>"]
["<name>Player5</name>"]
["<number>12789</number>"]
["<teamRating>100</teamRating>"]
["<touchDowns>12</touchDowns>"]
["<badlyHurt>1</badlyHurt>"]
["</playerRecord>"]
["<playerRecord>"]
["<name>Player17</name>"]
["<number>7106</number>"]
["<teamRating>100</teamRating>"]
["<touchDowns>4</touchDowns>"]
["<badlyHurt>0</badlyHurt>"]
["</playerRecord>"]
["</game>"]
["<game>"]
["<timestamp>2016-09-18 04:00</timestamp>"]
["<playerRecord>"]
["<name>Player18</name>"]
["<number>7371</number>"]
["<teamRating>100</teamRating>"]
["<touchDowns>16</touchDowns>"]
["<badlyHurt>2</badlyHurt>"]
["</playerRecord>"]
["<playerRecord>"]
["<name>Linus</name>"]
["<number>15676</number>"]
["<teamRating>100</teamRating>"]
["<touchDowns>8</touchDowns>"]
["<badlyHurt>1</badlyHurt>"]
["</playerRecord>"]
["</game>"]
["<game>"]
["<timestamp>2016-09-18 04:00</timestamp>"]
["<playerRecord>"]
["<name>Player10</name>"]
["<number>1739</number>"]
["<teamRating>100</teamRating>"]
["<touchDowns>5</touchDowns>"]
["<badlyHurt>0</badlyHurt>"]
["</playerRecord>"]
["<playerRecord>"]
["<name>Player13</name>"]
["<number>6092</number>"]
["<teamRating>100</teamRating>"]
["<touchDowns>15</touchDowns>"]
["<badlyHurt>3</badlyHurt>"]
["</playerRecord>"]
["</game>"]
["<game>"]
["<timestamp>2016-09-18 04:00</timestamp>"]
["<playerRecord>"]
["<name>Player7</name>"]
["<number>9672</number>"]
["<teamRating>100</teamRating>"]
["<touchDowns>11</touchDowns>"]
["<badlyHurt>2</badlyHurt>"]
["</playerRecord>"]
["<playerRecord>"]
["<name>Player4</name>"]
["<number>9106</number>"]
["<teamRating>100</teamRating>"]
["<touchDowns>7</touchDowns>"]
["<badlyHurt>1</badlyHurt>"]
["</playerRecord>"]
["</game>"]
["<game>"]
["<timestamp>2016-09-18 04:00</timestamp>"]
["<playerRecord>"]
["<name>Player15</name>"]
["<number>7960</number>"]
["<teamRating>100</teamRating>"]
["<touchDowns>16</touchDowns>"]
["<badlyHurt>3</badlyHurt>"]
["</playerRecord>"]
["<playerRecord>"]
["<name>Player11</name>"]
["<number>19602</number>"]
["<teamRating>100</teamRating>"]
["<touchDowns>8</touchDowns>"]
["<badlyHurt>1</badlyHurt>"]
["</playerRecord>"]
["</game>"]
["<game>"]
["<timestamp>2016-09-18 04:00</timestamp>"]
["<playerRecord>"]
["<name>Player9</name>"]
["<number>14129</number>"]
["<teamRating>100</teamRating>"]
["<touchDowns>13</touchDowns>"]
["<badlyHurt>2</badlyHurt>"]
["</playerRecord>"]
["<playerRecord>"]
["<name>Player16</name>"]
["<number>15062</number>"]
["<teamRating>100</teamRating>"]
["<touchDowns>9</touchDowns>"]
["<badlyHurt>1</badlyHurt>"]
["</playerRecord>"]
["</game>"]
["<game>"]
["<timestamp>2016-09-18 04:00</timestamp>"]
["<playerRecord>"]
["<name>Player14</name>"]
["<number>9080</number>"]
["<teamRating>100</teamRating>"]
["<touchDowns>17</touchDowns>"]
["<badlyHurt>3</badlyHurt>"]
["</playerRecord>"]
["<playerRecord>"]
["<name>Player8</name>"]
["<number>4118</number>"]
["<teamRating>100</teamRating>"]
["<touchDowns>6</touchDowns>"]
["<badlyHurt>1</badlyHurt>"]
["</playerRecord>"]
["</game>"]
["<game>"]
["<timestamp>2016-09-18 04:00</timestamp>"]
["<playerRecord>"]
["<name>Mike</name>"]
["<number>10468</number>"]
["<teamRating>100</teamRating>"]
["<touchDowns>5</touchDowns>"]
["<badlyHurt>1</badlyHurt>"]
["</playerRecord>"]
["<playerRecord>"]
["<name>Player12</name>"]
["<number>15064</number>"]
["<teamRating>100</teamRating>"]
["<touchDowns>12</touchDowns>"]
["<badlyHurt>2</badlyHurt>"]
["</playerRecord>"]
["</game>"]
["<game>"]
["<timestamp>2016-09-18 05:00</timestamp>"]
["<playerRecord>"]
["<name>Player18</name>"]
["<number>7371</number>"]
["<teamRating>100</teamRating>"]
["<touchDowns>6</touchDowns>"]
["<badlyHurt>1</badlyHurt>"]
["</playerRecord>"]
["<playerRecord>"]
["<name>Player5</name>"]
["<number>12789</number>"]
["<teamRating>100</teamRating>"]
["<touchDowns>13</touchDowns>"]
["<badlyHurt>2</badlyHurt>"]
["</playerRecord>"]
["</game>"]
["<game>"]
["<timestamp>2016-09-18 05:00</timestamp>"]
["<playerRecord>"]
["<name>Player6</name>"]
["<number>18136</number>"]
["<teamRating>100</teamRating>"]
["<touchDowns>20</touchDowns>"]
["<badlyHurt>3</badlyHurt>"]
["</playerRecord>"]
["<playerRecord>"]
["<name>Player13</name>"]
["<number>6092</number>"]
["<teamRating>100</teamRating>"]
["<touchDowns>7</touchDowns>"]
["<badlyHurt>0</badlyHurt>"]
["</playerRecord>"]
["</game>"]
["<game>"]
["<timestamp>2016-09-18 05:00</timestamp>"]
["<playerRecord>"]
["<name>Alex</name>"]
["<number>16761</number>"]
["<teamRating>100</teamRating>"]
["<touchDowns>16</touchDowns>"]
["<badlyHurt>3</badlyHurt>"]
["</playerRecord>"]
["<playerRecord>"]
["<name>Player15</name>"]
["<number>7960</number>"]
["<teamRating>100</teamRating>"]
["<touchDowns>6</touchDowns>"]
["<badlyHurt>0</badlyHurt>"]
["</playerRecord>"]
["</game>"]
["<game>"]
["<timestamp>2016-09-18 05:00</timestamp>"]
["<playerRecord>"]
["<name>Player7</name>"]
["<number>9672</number>"]
["<teamRating>100</teamRating>"]
["<touchDowns>8</touchDowns>"]
["<badlyHurt>1</badlyHurt>"]
["</playerRecord>"]
["<playerRecord>"]
["<name>Player17</name>"]
["<number>7106</number>"]
["<teamRating>100</teamRating>"]
["<touchDowns>11</touchDowns>"]
["<badlyHurt>2</badlyHurt>"]
["</playerRecord>"]
["</game>"]
["<game>"]
["<timestamp>2016-09-18 05:00</timestamp>"]
["<playerRecord>"]
["<name>Player14</name>"]
["<number>9080</number>"]
["<teamRating>100</teamRating>"]
["<touchDowns>9</touchDowns>"]
["<badlyHurt>1</badlyHurt>"]
["</playerRecord>"]
["<playerRecord>"]
["<name>Player9</name>"]
["<number>14129</number>"]
["<teamRating>100</teamRating>"]
["<touchDowns>17</touchDowns>"]
["<badlyHurt>3</badlyHurt>"]
["</playerRecord>"]
["</game>"]
["<game>"]
["<timestamp>2016-09-18 05:00</timestamp>"]
["<playerRecord>"]
["<name>Linus</name>"]
["<number>15676</number>"]
["<teamRating>100</teamRating>"]
["<touchDowns>9</touchDowns>"]
["<badlyHurt>1</badlyHurt>"]
["</playerRecord>"]
["<playerRecord>"]
["<name>Player4</name>"]
["<number>9106</number>"]
["<teamRating>100</teamRating>"]
["<touchDowns>7</touchDowns>"]
["<badlyHurt>1</badlyHurt>"]
["</playerRecord>"]
["</game>"]
["<game>"]
["<timestamp>2016-09-18 05:00</timestamp>"]
["<playerRecord>"]
["<name>Player10</name>"]
["<number>1739</number>"]
["<teamRating>100</teamRating>"]
["<touchDowns>12</touchDowns>"]
["<badlyHurt>2</badlyHurt>"]
["</playerRecord>"]
["<playerRecord>"]
["<name>Player12</name>"]
["<number>15064</number>"]
["<teamRating>100</teamRating>"]
["<touchDowns>6</touchDowns>"]
["<badlyHurt>1</badlyHurt>"]
["</playerRecord>"]
["</game>"]
["<game>"]
["<timestamp>2016-09-18 05:00</timestamp>"]
["<playerRecord>"]
["<name>Player16</name>"]
["<number>15062</number>"]
["<teamRating>100</teamRating>"]
["<touchDowns>11</touchDowns>"]
["<badlyHurt>3</badlyHurt>"]
["</playerRecord>"]
["<playerRecord>"]
["<name>Player8</name>"]
["<number>4118</number>"]
["<teamRating>100</teamRating>"]
["<touchDowns>4</touchDowns>"]
["<badlyHurt>2</badlyHurt>"]
["</playerRecord>"]
["</game>"]
["<game>"]
["<timestamp>2016-09-18 05:00</timestamp>"]
["<playerRecord>"]
["<name>Mike</name>"]
["<number>10468</number>"]
["<teamRating>100</teamRating>"]
["<touchDowns>9</touchDowns>"]
["<badlyHurt>3</badlyHurt>"]
["</playerRecord>"]
["<playerRecord>"]
["<name>Player11</name>"]
["<number>19602</number>"]
["<teamRating>100</teamRating>"]
["<touchDowns>12</touchDowns>"]
["<badlyHurt>3</badlyHurt>"]
["</playerRecord>"]
["</game>"]
["</nafReport>"]

{"sheet":"Working","index":18,"n_rows":34,"n_cols":34,"rows_kept":34,"cut":false,"hidden":false,"merged":[]}
[null,null,null,null,null,null,null,null,null,null,null,null,null,null,null,null,null,null,null,null,null,null,null,null,null,"Latest Rd:",6]
[null,null,null,null,null,null,null,null,null,null,null,null,null,null,null,null,null,null,null,null,null,null,null,null,null,"Players:",{"$f":"COUNTA(Players!B:B)-1","v":128},null,null,null,"Max Score",{"$f":"Setup!B19*TeamSize*Setup!B19+Setup!B19","v":9}]
[null,null,null,null,null,null,null,null,null,null,null,null,null,null,null,null,null,null,null,null,null,null,null,null,null,"Display",14,"Columns"]
[null,null,null,null,null,null,null,null,null,null,null,null,null,null,null,null,null,null,null,null,null,null,null,null,null,"Enter",7,"Columns"]
[null,null,null,null,null,null,null,null,null,null,null,null,null,null,null,null,null,null,null,null,null,null,null,null,null,"Max random",3]
[null,null,null,null,null,null,null,null,null,null,null,null,null,null,null,null,null,null,null,null,null,null,null,null,null,"Number of Groups",{"$f":"COUNTA(Players!M:M)-1","v":16},null,null,null,"Group"]
[null,null,null,null,null,null,null,null,null,null,null,null,null,null,null,null,null,null,null,null,null,null,null,null,null,null,null,null,null,null,"Individual"]
[null,null,null,null,null,null,null,null,null,null,null,null,null,null,null,null,null,null,null,null,null,null,null,null,null,"Group display",18,"columns"]
[]
[null,null,null,null,null,null,null,null,null,null,null,null,null,null,null,null,null,null,null,null,null,null,null,null,null,null,null,null,"Cumulative"]
[null,null,null,null,null,null,null,null,null,null,null,null,null,null,null,null,null,null,null,null,null,null,null,null,null,null,"Amazons",null,null,null,null,null,"Entry Data"]
[null,null,null,null,null,null,null,null,null,null,null,null,null,null,null,null,null,null,null,null,null,null,null,null,null,null,"Chaos",null,null,null,"Initial Display Columns",null,"Player"]
[null,null,null,null,null,null,null,null,null,null,null,null,null,null,null,null,null,null,null,null,null,null,null,null,null,null,"Chaos Dwarves",null,null,null,"Player",null,"Points"]
[null,null,null,null,null,null,null,null,null,null,null,null,null,null,null,null,null,null,null,null,null,null,null,null,null,null,"Chaos Pact",null,null,null,"Points",null,"TD"]
[null,null,null,null,null,null,null,null,null,null,null,null,null,null,null,null,null,null,null,null,null,null,null,null,null,null,"Dark Elves",null,null,null,"TD For",null,"Cas"]
[null,null,null,null,null,null,null,null,null,null,null,null,null,null,null,null,null,null,null,null,null,null,null,null,null,null,"Dwarves",null,null,null,"Cas For",null,{"$f":"Setup!E3","v":"Bonus1"},"Bonus1 Name"]
[null,null,null,null,null,null,null,null,null,null,null,null,null,null,null,null,null,null,null,null,null,null,null,null,null,null,"Elves",null,null,null,{"$f":"Working!AG16","v":"Bonus1"},null,{"$f":"Setup!E4","v":"Bonus2"},"Bonus2 Name"]
[null,null,null,null,null,null,null,null,null,null,null,null,null,null,null,null,null,null,null,null,null,null,null,null,null,null,"Goblins",null,null,null,{"$f":"Working!AG17","v":"Bonus2"},null,"Group"]
[null,null,null,null,null,null,null,null,null,null,null,null,null,null,null,null,null,null,null,null,null,null,null,null,null,null,"Halflings",null,null,null,"TD Against"]
[null,null,null,null,null,null,null,null,null,null,null,null,null,null,null,null,null,null,null,null,null,null,null,null,null,null,"High Elves",null,null,null,"Cas Against"]
[null,null,null,null,null,null,null,null,null,null,null,null,null,null,null,null,null,null,null,null,null,null,null,null,null,null,"Humans",null,null,null,"TD Net"]
[null,null,null,null,null,null,null,null,null,null,null,null,null,null,null,null,null,null,null,null,null,null,null,null,null,null,"Khemri",null,null,null,"Cas Net"]
[null,null,null,null,null,null,null,null,null,null,null,null,null,null,null,null,null,null,null,null,null,null,null,null,null,null,"Lizardmen",null,null,null,"Wins"]
[null,null,null,null,null,null,null,null,null,null,null,null,null,null,null,null,null,null,null,null,null,null,null,null,null,null,"Necromantic",null,null,null,"Draws"]
[null,null,null,null,null,null,null,null,null,null,null,null,null,null,null,null,null,null,null,null,null,null,null,null,null,null,"Norse",null,null,null,"Losses"]
[null,null,null,null,null,null,null,null,null,null,null,null,null,null,null,null,null,null,null,null,null,null,null,null,null,null,"Nurgle's Rotters",null,null,null,"Opp Score"]
[null,null,null,null,null,null,null,null,null,null,null,null,null,null,null,null,null,null,null,null,null,null,null,null,null,null,"Ogres",null,null,null,"Group"]
[null,null,null,null,null,null,null,null,null,null,null,null,null,null,null,null,null,null,null,null,null,null,null,null,null,null,"Orc"]
[null,null,null,null,null,null,null,null,null,null,null,null,null,null,null,null,null,null,null,null,null,null,null,null,null,null,"Skaven"]
[null,null,null,null,null,null,null,null,null,null,null,null,null,null,null,null,null,null,null,null,null,null,null,null,null,null,"Slann"]
[null,null,null,null,null,null,null,null,null,null,null,null,null,null,null,null,null,null,null,null,null,null,null,null,null,null,"Undead"]
[null,null,null,null,null,null,null,null,null,null,null,null,null,null,null,null,null,null,null,null,null,null,null,null,null,null,"Underworld"]
[null,null,null,null,null,null,null,null,null,null,null,null,null,null,null,null,null,null,null,null,null,null,null,null,null,null,"Vampires"]
[null,null,null,null,null,null,null,null,null,null,null,null,null,null,null,null,null,null,null,null,null,null,null,null,null,null,"Wood Elves"]

{"sheet":"ChangeLog","index":19,"n_rows":29,"n_cols":4,"rows_kept":29,"cut":false,"hidden":false,"merged":[]}
[null,"This spreadsheet is based on one by Kaper on an Excel forum: http://www.excelforum.com/excel-programming-vba-macros/1105569-swiss-pairing-algorithm-in-excel-to-organize-a-chess-tournament.html"]
[null,"Massive thanks due to him!"]
[null,"The original was used for Chess, and it has been adapted to work for Blood Bowl by sann0638 (Mike Davies)"]
[]
["Version","Summary","Date","Notes"]
["1.0","Multi-sheet version of the chess","2016-06-19"]
[1.1000000000000001,"Remove Black and White stuff","2016-06-19"]
[1.2,"Change to TDs to generate points","2016-06-19"]
[null,"Got the Swiss working properly","2016-06-19","Published."]
[1.3,"More help information.","2016-06-20"]
[null,"Added Table","2016-06-20"]
[null,"Added Opponent Score","2016-06-20"]
[2.1,"Big overhaul to where info stored","2016-06-21"]
[2.2000000000000002,"Putting in the Score formula","2016-06-21","Published."]
[3.1,"Added all tiebreaker columns","2016-06-22"]
[null,"Realised opponent score was wrong, fixed it.","2016-06-22"]
[3.2,"Fixed problem with sorting the table.","2016-06-23","Published."]
[3.3,"Tiebreakers implemented","2016-06-24"]
[null,"NAF Upload file","2016-06-24","Published."]
[4.0999999999999996,"Group results and matrix added","2016-06-25"]
[null,"Group results fully implemented","2016-06-26"]
[4.2,"Fixed net casualties","2016-06-28"]
[4.3,"Tiebreakers corrected, yet again!","2016-09-17","Published."]
[4.4000000000000004,"Group results corrected, groups added to table","2016-09-17"]
[null,"Removed need for Groups to be in there, corrected number of players.","2016-09-18","Published."]
["5.0","Mostly working Group Swiss","2016-09-21"]
[5.0999999999999996,"Working Group Swiss.","2016-09-21","Published."]
[5.2,"Fixed problem with more than 100 coaches.","2016-09-25"]
[null,"Tidied up tabs.","2016-09-25","Published."]